Workbook

Sheet Daily OIL
B1: DAILY AVG SPOT PRICES | G1: MONTHLY AVERAGE SPOT PRICE | K1: DAILY AVG POSTED PRICES | M1: DAILY AVG PRICES | Q1: LLS - ST. JAMES
A2: Date | B2: ST. JAMES - LA SWEET (U.S. Dollars per Barrel from WSJ Barchart.com) | C2: WILLISTON BASIN SWEET POSTING (U.S. Dollars per Barrel from Plains Marketing POSTINGS) | D2: Europe Brent SPOT F.O.B. (US. $/BBL from Reuter's & eia.gov) | E2: WTI at Cushing SPOT CASH MARKET (U.S. Dollars Per Barrel from Houston Chronicle / Bloomberg) & cmegroup.com | F2: Ratio of Brent to WTI | G2: ST. JAMES - LS Monthly | H2: Brent F.O.B. -Monthly | I2: WTI @ Cushing-Monthly | K2: Plains POSTINGS - WTI (MIDLAND - Formerly "All Other Areas") - DAILY POSTINGS (Corrections made from May 14, 2020 - Dec 1, 2020) | M2: Mont Belvieu, TX PROPANE DAILY SPOT PRICES (CENTS/GALLON) | N2: Mont Belvieu, TX PROPANE DAILY SPOT PRICES ($ / BBL) | P2: Brent F.O.B. (US. Dollars Per Barrel) from The Wall Street Journal | Q2: CARGILL DATA | R2: BARCHART.COM DATA
A4: 1998-01-02 | D4: 15.89 | E4: 17.53
A5: 1998-01-05 | D5: 15.43 | E5: 16.88
A6: 1998-01-06 | D6: 15.35 | E6: 16.88
A7: 1998-01-07 | D7: 15.17 | E7: 16.83
A8: 1998-01-08 | D8: 15.43 | E8: 16.98
A9: 1998-01-09 | D9: 15.29 | E9: 16.63
A10: 1998-01-12 | D10: 14.97 | E10: 16.48
A11: 1998-01-13 | D11: 15.27 | E11: 16.43
A12: 1998-01-14 | D12: 14.91 | E12: 16.45
A13: 1998-01-15 | D13: 14.91 | E13: 16.33
A14: 1998-01-16 | D14: 14.78 | E14: 16.53
A15: 1998-01-20 | D15: 15.1 | E15: 16.43
A16: 1998-01-21 | D16: 15.1 | E16: 16.18
A17: 1998-01-22 | D17: 14.4 | E17: 15.88
A18: 1998-01-23 | D18: 14.47 | E18: 15.63
A19: 1998-01-26 | D19: 14.74 | E19: 16.83
A20: 1998-01-27 | D20: 15.62 | E20: 16.98
A21: 1998-01-28 | D21: 15.67 | E21: 17.33
A22: 1998-01-29 | D22: 16.03 | E22: 17.83
A23: 1998-01-30 | D23: 15.55 | E23: 17.23 | F23: 20 | H23: =SUM(D4:D23)/F23 -> 15.204 | I23: =SUM(E4:E23)/F23 -> 16.7135
A24: 1998-02-02 | D24: 15.55 | E24: 17.05
A25: 1998-02-03 | D25: 15.07 | E25: 16.5
A26: 1998-02-04 | D26: 14.68 | E26: 16.38
A27: 1998-02-05 | D27: 14.7 | E27: 16.58
A28: 1998-02-06 | D28: 14.8 | E28: 16.73
A29: 1998-02-09 | D29: 14.75 | E29: 16.63
A30: 1998-02-10 | D30: 14.57 | E30: 16.43
A31: 1998-02-11 | D31: 14.45 | E31: 16.15
A32: 1998-02-12 | D32: 14.12 | E32: 15.98
A33: 1998-02-13 | D33: 14.07 | E33: 16.03
A34: 1998-02-16
A35: 1998-02-17 | D35: 13.48 | E35: 15.68
A36: 1998-02-18 | D36: 13.26 | E36: 16.28
A37: 1998-02-19 | D37: 13.88 | E37: 16.18
A38: 1998-02-20 | D38: 13.71 | E38: 16.15
A39: 1998-02-23 | D39: 14.02 | E39: 15.18
A40: 1998-02-24 | D40: 14.02 | E40: 15.18
A41: 1998-02-25 | D41: 13.3 | E41: 15.3
A42: 1998-02-26 | D42: 13.3 | E42: 15.35
A43: 1998-02-27 | D43: 13.3 | E43: 15.43 | F43: 19 | H43: =SUM(D24:D43)/F43 -> 14.15947368 | I43: =SUM(E24:E43)/F43 -> 16.06263158
A44: 1998-03-02 | D44: 13.4 | E44: 15.33
A45: 1998-03-03 | D45: 13.23 | E45: 15.28
A46: 1998-03-04 | D46: 13.17 | E46: 15.33
A47: 1998-03-05 | D47: 13.28 | E47: 15.33
A48: 1998-03-06 | D48: 12.95 | E48: 14.93
A49: 1998-03-09 | D49: 12.54 | E49: 14.33
A50: 1998-03-10 | D50: 12.44 | E50: 14.28
A51: 1998-03-11 | D51: 12.5 | E51: 14.18
A52: 1998-03-12 | D52: 12.13 | E52: 14.2
A53: 1998-03-13 | D53: 12.44 | E53: 14.08
A54: 1998-03-16 | D54: 12.07 | E54: 13.28
A55: 1998-03-17 | D55: 11.09 | E55: 13.23
A56: 1998-03-18 | D56: 11.86 | E56: 14.33
A57: 1998-03-19 | D57: 11.86 | E57: 14.33
A58: 1998-03-20 | D58: 12.29 | E58: 14.33
A59: 1998-03-23 | D59: 14.71 | E59: 16.23
A60: 1998-03-24 | D60: 14.21 | E60: 15.65
A61: 1998-03-25 | D61: 14.01 | E61: 16.33
A62: 1998-03-26 | D62: 14.95 | E62: 16.83
A63: 1998-03-27 | D63: 14.99 | E63: 16.78
A64: 1998-03-30 | D64: 14.66 | E64: 16.23
A65: 1998-03-31 | D65: 13.83 | E65: 15.63 | F65: 22 | H65: =SUM(D44:D65)/F65 -> 13.11863636 | I65: =SUM(E44:E65)/F65 -> 15.02045455
A66: 1998-04-01 | D66: 13.46 | E66: 15.53
A67: 1998-04-02 | D67: 13.38 | E67: 15.73
A68: 1998-04-03 | D68: 13.74 | E68: 15.98
A69: 1998-04-06 | D69: 13.13 | E69: 15.45
A70: 1998-04-07 | D70: 12.71 | E70: 15.23
A71: 1998-04-08 | D71: 12.8 | E71: 15.55
A72: 1998-04-09 | D72: 13.2 | E72: 15.58
A73: 1998-04-10 | D73: 13.2 | E73: 15.58
A74: 1998-04-13 | D74: 13.2 | E74: 15.33
A75: 1998-04-14 | D75: 13.18 | E75: 15.13
A76: 1998-04-15 | D76: 12.93 | E76: 15.48
A77: 1998-04-16 | D77: 13.67 | E77: 15.9
A78: 1998-04-17 | D78: 13.9 | E78: 15.48
A79: 1998-04-20 | D79: 13.74 | E79: 15.43
A80: 1998-04-21 | D80: 13.76 | E80: 15.45
A81: 1998-04-22 | D81: 13.85 | E81: 14.9
A82: 1998-04-23 | D82: 13.5 | E82: 15.18
A83: 1998-04-24 | D83: 13.33 | E83: 15.08
A84: 1998-04-27 | D84: 13.46 | E84: 15.33
A85: 1998-04-28 | D85: 13.92 | E85: 15.73
A86: 1998-04-29 | D86: 14.01 | E86: 15.33
A87: 1998-04-30 | D87: 13.74 | E87: 15.38 | F87: 22 | H87: =SUM(D66:D87)/F87 -> 13.44590909 | I87: =SUM(E66:E87)/F87 -> 15.44363636
A88: 1998-05-01 | D88: 14.32 | E88: 16.13
A89: 1998-05-04 | D89: 14.32 | E89: 15.95
A90: 1998-05-05 | D90: 14.06 | E90: 15.48
A91: 1998-05-06 | D91: 13.93 | E91: 15.38
A92: 1998-05-07 | D92: 14.4 | E92: 15.23
A93: 1998-05-08 | D93: 14.01 | E93: 15.13
A94: 1998-05-11 | D94: 14.24 | E94: 15.18
A95: 1998-05-12 | D95: 14.47 | E95: 15.23
A96: 1998-05-13 | D96: 14.47 | E96: 14.95
A97: 1998-05-14 | D97: 14.05 | E97: 15.08
A98: 1998-05-15 | D98: 14.69 | E98: 14.48
A99: 1998-05-18 | D99: 14.56 | E99: 14.08
A100: 1998-05-19 | D100: 14.69 | E100: 12.98
A101: 1998-05-20 | D101: 14.58 | E101: 13.28
A102: 1998-05-21 | D102: 14.24 | E102: 14.13
A103: 1998-05-22 | D103: 14.42 | E103: 14.63
A104: 1998-05-25 | D104: 14.42 | E104: 14.63
A105: 1998-05-26 | D105: 14.42 | E105: 14.83
A106: 1998-05-27 | D106: 14.63 | E106: 14.98
A107: 1998-05-28 | D107: 14.58 | E107: 14.83
A108: 1998-05-29 | D108: 14.68 | E108: 15.2 | F108: 21 | H108: =SUM(D88:D108)/F108 -> 14.38952381 | I108: =SUM(E88:E108)/F108 -> 14.84714286
A109: 1998-06-01 | D109: 14.08 | E109: 14.98
A110: 1998-06-02 | D110: 13.62 | E110: 14.83
A111: 1998-06-03 | D111: 13.08 | E111: 14.83
A112: 1998-06-04 | D112: 13.08 | E112: 15.13
A113: 1998-06-05 | D113: 13.08 | E113: 15.08
A114: 1998-06-08 | D114: 13.66 | E114: 14.55
A115: 1998-06-09 | D115: 13.09 | E115: 13.85
A116: 1998-06-10 | D116: 12.13 | E116: 13.48
A117: 1998-06-11 | D117: 12.19 | E117: 12.75
A118: 1998-06-12 | D118: 11.67 | E118: 12.58
A119: 1998-06-15 | D119: 11.01 | E119: 11.58
A120: 1998-06-16 | D120: 11.23 | E120: 11.98
A121: 1998-06-17 | D121: 11.32 | E121: 12.6
A122: 1998-06-18 | D122: 10.9 | E122: 11.78
A123: 1998-06-19 | D123: 10.9 | E123: 11.83
A124: 1998-06-22 | D124: 11.21 | E124: 13.43
A125: 1998-06-23 | D125: 12.31 | E125: 14.33
A126: 1998-06-24 | D126: 12.22 | E126: 14.5
A127: 1998-06-25 | D127: 11.96 | E127: 14.03
A128: 1998-06-26 | D128: 12.29 | E128: 14.13
A129: 1998-06-29 | D129: 12.08 | E129: 14.08
A130: 1998-06-30 | D130: 12.04 | E130: 14.18 | F130: 22 | H130: =SUM(D109:D130)/F130 -> 12.23409091 | I130: =SUM(E109:E130)/F130 -> 13.65954545
A131: 1998-07-01 | D131: 12.04 | E131: 14.38
A132: 1998-07-02 | D132: 12.13 | E132: 14.5
A133: 1998-07-06 | D133: 11.82 | E133: 13.93
A134: 1998-07-07 | D134: 11.45 | E134: 13.63
A135: 1998-07-08 | D135: 11.45 | E135: 13.85
A136: 1998-07-09 | D136: 12.08 | E136: 13.88
A137: 1998-07-10 | D137: 14 | E137: 13.88
A138: 1998-07-13 | D138: 11.67 | E138: 13.93
A139: 1998-07-14 | D139: 11.85 | E139: 14.58
A140: 1998-07-15 | D140: 12.16 | E140: 14.88
A141: 1998-07-16 | D141: 11.8 | E141: 14.53
A142: 1998-07-17 | D142: 12.43 | E142: 13.98
A143: 1998-07-20 | D143: 11.97 | E143: 13.33
A144: 1998-07-21 | D144: 11.97 | E144: 13.78
A145: 1998-07-22 | D145: 11.92 | E145: 14.08
A146: 1998-07-23 | D146: 12.22 | E146: 13.78
A147: 1998-07-24 | D147: 12.16 | E147: 13.78
A148: 1998-07-27 | D148: 12.46 | E148: 14.23
A149: 1998-07-28 | D149: 12.73 | E149: 14.28
A150: 1998-07-29 | D150: 12.56 | E150: 14.08
A151: 1998-07-30 | D151: 12.65 | E151: 14.23
A152: 1998-07-31 | D152: 12.61 | E152: 14.23 | F152: 22 | H152: =SUM(D131:D152)/F152 -> 12.18772727 | I152: =SUM(E131:E152)/F152 -> 14.07954545
A153: 1998-08-03 | D153: 12.45 | E153: 13.7
A154: 1998-08-04 | D154: 12.11 | E154: 13.75
A155: 1998-08-05 | D155: 12.05 | E155: 13.68
A156: 1998-08-06 | D156: 12.06 | E156: 13.78
A157: 1998-08-07 | D157: 12.03 | E157: 13.8
A158: 1998-08-10 | D158: 11.72 | E158: 13.05
A159: 1998-08-11 | D159: 11.13 | E159: 12.78
A160: 1998-08-12 | D160: 11.26 | E160: 12.73
A161: 1998-08-13 | D161: 11.74 | E161: 13.23
A162: 1998-08-14 | D162: 11.74 | E162: 13.35
A163: 1998-08-17 | D163: 12.12 | E163: 13.2
A164: 1998-08-18 | D164: 11.91 | E164: 12.93
A165: 1998-08-19 | D165: 12.06 | E165: 13.18
A166: 1998-08-20 | D166: 12.25 | E166: 13.53
A167: 1998-08-21 | D167: 12.15 | E167: 13.23
A168: 1998-08-24 | D168: 12.07 | E168: 13.48
A169: 1998-08-25 | D169: 12.38 | E169: 13.58
A170: 1998-08-26 | D170: 12.16 | E170: 13.58
A171: 1998-08-27 | D171: 11.92 | E171: 13.23
A172: 1998-08-28 | D172: 12.04 | E172: 13.5
A173: 1998-08-31 | D173: 12.04 | E173: 13.33 | F173: 21 | H173: =SUM(D153:D173)/F173 -> 11.97095238 | I173: =SUM(E153:E173)/F173 -> 13.36285714
A174: 1998-09-01 | D174: 12.01 | E174: 13.73
A175: 1998-09-02 | D175: 12.08 | E175: 13.68
A176: 1998-09-03 | D176: 12.65 | E176: 14.68
A177: 1998-09-04 | D177: 13.01 | E177: 14.58
A178: 1998-09-08 | D178: 12.47 | E178: 14.28
A179: 1998-09-09 | D179: 12.34 | E179: 14.15
A180: 1998-09-10 | D180: 12.52 | E180: 14.68
A181: 1998-09-11 | D181: 12.82 | E181: 14.33
A182: 1998-09-14 | D182: 12.83 | E182: 14.43
A183: 1998-09-15 | D183: 12.7 | E183: 14.58
A184: 1998-09-16 | D184: 12.72 | E184: 14.53
A185: 1998-09-17 | D185: 13.37 | E185: 14.88
A186: 1998-09-18 | D186: 13.48 | E186: 15.48
A187: 1998-09-21 | D187: 14.25 | E187: 15.48
A188: 1998-09-22 | D188: 14.19 | E188: 15.68
A189: 1998-09-23 | D189: 14.68 | E189: 15.58
A190: 1998-09-24 | D190: 14.49 | E190: 15.83
A191: 1998-09-25 | D191: 14.78 | E191: 15.58
A192: 1998-09-28 | D192: 14.59 | E192: 15.63
A193: 1998-09-29 | D193: 14.33 | E193: 15.98
A194: 1998-09-30 | D194: 14.33 | E194: 16.13 | F194: 21 | H194: =SUM(D174:D194)/F194 -> 13.36380952 | I194: =SUM(E174:E194)/F194 -> 14.94761905
A195: 1998-10-01 | D195: 14.57 | E195: 15.43
A196: 1998-10-02 | D196: 14.15 | E196: 15.63
A197: 1998-10-05 | D197: 14.01 | E197: 15.38
A198: 1998-10-06 | D198: 14.01 | E198: 15.5
A199: 1998-10-07 | D199: 13.82 | E199: 15.08
A200: 1998-10-08 | D200: 13.33 | E200: 14.43
A201: 1998-10-09 | D201: 13.08 | E201: 14.58
... 7988 more rows

Sheet Monthly AVG OIL
A1: Date | B1: Last Bus. Day of Month | D1: MONTHLY AVERAGE SPOT | L1: MONTHLY AVERAGE POSTED | M1: Last Bus. Day of Month | O1: MONTHLY AVERAGE
B2: Europe Brent F.O.B. (Daily) | C2: WTI @ Cushing SPOT (12/31 Daily) | D2: Europe Brent SPOT F.O.B. (MONTHLY Avg) | E2: WTI @ Cushing SPOT (MONTHLY Avg) | G2: Monthly Ratio of Europe Brent F.O.B. to WTI Cushing Spot | H2: Preceding 12 Mo Running Avg Ratio of Brent to WTI | J2: Avg Annual WTI @ Cushing Price | L2: Plains POSTING - WTI (MIDLAND - Formerly "All Other Areas") - MONTHLY AVG (Corrections made to May '20 -Nov '20 prices.) | M2: Plains POSTING - WTI (Midland - All Other Areas) - 12/31 Daily | O2: Mont Belvieu, TX PROPANE MONTHLY AVG SPOT PRICES (CENTS/GALLON) | P2: Mont Belvieu, TX PROPANE MONTHLY AVG SPOT PRICES ($ / BBL) | R2: Texas Upper Gulf Coast POSTING (MONTHLY Avg) | S2: WILLISTON BASIN SWEET POSTING (MONTHLY Avg) | T2: ST. JAMES - LA SWEET (MONTHLY Avg) | V2: Monthly Avg Ex Rate - $US/$Cdn | X2: TOTAL LNG U.S. EXPORT PRICE ($US/Mcf) | Z2: Preceding 12 Mo Running Avg Monthly Avg Ex Rate - $US/$Cdn
A3: 1994-04-30
A4: 1994-05-31
A5: 1994-06-30
A6: 1994-07-31
A7: 1994-08-31
A8: 1994-09-30
A9: 1994-10-31
A10: 1994-11-30
A11: 1994-12-31
A12: 1995-01-31 | D12: 16.59 | E12: 17.97 | G12: =D12/E12 -> 0.9232053422
A13: 1995-02-28 | D13: 17.15 | E13: 18.6 | G13: =D13/E13 -> 0.9220430108
A14: 1995-03-31 | D14: 16.98 | E14: 18.51 | G14: 0.9173419773
A15: 1995-04-30 | D15: 18.61 | E15: 19.82 | G15: 0.938950555
A16: 1995-05-31 | D16: 18.34 | E16: 19.68 | G16: 0.9319105691
A17: 1995-06-30 | D17: 17.34 | E17: 18.45 | G17: 0.9398373984
A18: 1995-07-31 | D18: 15.8 | E18: 17.25 | G18: 0.915942029
A19: 1995-08-31 | D19: 16.05 | E19: 17.82 | G19: 0.9006734007
A20: 1995-09-30 | D20: 16.7 | E20: 18.17 | G20: 0.9190974133
A21: 1995-10-31 | D21: 16.1 | E21: 17.39 | G21: 0.9258194365
A22: 1995-11-30 | D22: 16.82 | E22: 18.02 | G22: 0.9334073252
A23: 1995-12-31 | D23: 18 | E23: 19.07 | G23: 0.9438909282
A24: 1996-01-31 | D24: 17.93 | E24: 18.8 | G24: 0.9537234043
A25: 1996-02-29 | D25: 17.98 | E25: 18.7 | G25: 0.9614973262
A26: 1996-03-31 | D26: 19.95 | E26: 21.09 | G26: 0.9459459459
A27: 1996-04-30 | D27: 20.93 | E27: 23.29 | G27: 0.8986689566
A28: 1996-05-31 | D28: 19.11 | E28: 21.09 | G28: 0.906116643
A29: 1996-06-30 | D29: 18.38 | E29: 20.37 | G29: 0.9023073147
A30: 1996-07-31 | D30: 19.6 | E30: 21.2 | G30: 0.9245283019
A31: 1996-08-31 | D31: 20.56 | E31: 21.91 | G31: 0.9383842994
A32: 1996-09-30 | D32: 22.64 | E32: 23.88 | G32: 0.9480737018
A33: 1996-10-31 | D33: 24.17 | E33: 24.93 | G33: 0.969514641
A34: 1996-11-30 | D34: 22.7 | E34: 23.59 | G34: 0.9622721492
A35: 1996-12-31 | D35: 23.4 | E35: 25.07 | G35: 0.9333865178
A36: 1997-01-31 | D36: 23.45 | E36: 25.23 | G36: 0.9294490686
A37: 1997-02-28 | D37: 20.83 | E37: 22.29 | G37: 0.9344997757
A38: 1997-03-31 | D38: 19.06 | E38: 20.98 | G38: 0.9084842707
A39: 1997-04-30 | D39: 17.46 | E39: 19.7 | G39: 0.8862944162
A40: 1997-05-31 | D40: 19.07 | E40: 20.92 | G40: 0.9115678776
A41: 1997-06-30 | D41: 17.58 | E41: 19.19 | G41: 0.9161021365
A42: 1997-07-31 | D42: 18.37 | E42: 19.62 | G42: 0.9362895005
A43: 1997-08-31 | D43: 18.81 | E43: 19.91 | G43: 0.9447513812
A44: 1997-09-30 | D44: 18.45 | E44: 19.78 | G44: 0.932760364
A45: 1997-10-31 | D45: 19.89 | E45: 21.36 | G45: 0.9311797753
A46: 1997-11-30 | D46: 19.21 | E46: 20.19 | G46: 0.9514611194
A47: 1997-12-31 | D47: 17.11 | E47: 18.34 | G47: 0.9329334787 | H47: DATA PRIOR TO THIS DATE CAME FROM A MAJOR INDEPENDENT
A48: 1998-01-30 | B48: 15.55 | D48: 15.204 | E48: 16.7135 | G48: 0.9096837886
A49: 1998-02-27 | B49: 13.3 | D49: 14.15947368 | E49: 16.06263158 | G49: 0.8815164324
A50: 1998-03-31 | B50: 13.83 | D50: 13.11863636 | E50: 15.02045455 | G50: 0.8733847783
A51: 1998-04-30 | B51: 13.74 | D51: 13.44590909 | E51: 15.44363636 | G51: 0.870643984
A52: 1998-05-29 | B52: 14.68 | D52: 14.38952381 | E52: 14.84714286 | G52: 0.9691779724
A53: 1998-06-30 | B53: 12.04 | D53: 12.23409091 | E53: 13.65954545 | G53: 0.8956440717
A54: 1998-07-31 | B54: 12.61 | D54: 12.18772727 | E54: 14.07954545 | G54: 0.8656335755
A55: 1998-08-31 | B55: 12.04 | D55: 11.97095238 | E55: 13.36285714 | G55: 0.8958377878
A56: 1998-09-30 | B56: 14.33 | D56: 13.36380952 | E56: 14.94761905 | G56: 0.8940426888
A57: 1998-10-30 | B57: 12.03 | D57: 12.73090909 | E57: 14.38772727 | G57: 0.8848450384
A58: 1998-11-30 | B58: 10.32 | D58: 11.088 | E58: 12.8515 | G58: 0.862778664
A59: 1998-12-31 | B59: 10.44 | C59: 12.05 | D59: 9.848181818 | E59: 11.28 | G59: 0.873065764
A60: 1999-01-29 | B60: 11.04 | D60: 11.06473684 | E60: 12.47210526 | G60: 0.8871587121
A61: 1999-02-26 | B61: 10.73 | D61: 10.27842105 | E61: 12.01052632 | G61: 0.8557843996
A62: 1999-03-31 | B62: 14.47 | D62: 12.39434783 | E62: 14.66086957 | G62: 0.8454033215
A63: 1999-04-30 | B63: 16.6 | D63: 15.24761905 | E63: 17.34333333 | G63: 0.8791631202
A64: 1999-05-28 | B64: 14.74 | D64: 14.50047619 | E64: 16.90380952 | G64: 0.8578229759
A65: 1999-06-30 | B65: 16.84 | D65: 15.72272727 | E65: 17.88909091 | G65: 0.8789002947
A66: 1999-07-30 | B66: 19.86 | D66: 18.97 | E66: 20.07238095 | G66: 0.9450797115
A67: 1999-08-31 | B67: 21.15 | D67: 20.24863636 | E67: 21.25727273 | G67: 0.9525509986
A68: 1999-09-30 | B68: 22.78 | D68: 22.48619048 | E68: 23.88285714 | G68: 0.941520118
A69: 1999-10-29 | B69: 21.14 | D69: 21.97619048 | E69: 22.64285714 | G69: 0.9705573081
A70: 1999-11-30 | B70: 25.08 | D70: 24.41857143 | E70: 24.97190476 | G70: 0.977841765
A71: 1999-12-30 | B71: 25.1 | C71: 25.6 | D71: 25.43238095 | E71: 26.08333333 | G71: 0.9750433592
A72: 2000-01-31 | B72: 26.17 | D72: 25.307 | E72: 27.184 | G72: 0.9309520306
A73: 2000-02-29 | B73: 28.83 | D73: 27.7535 | E73: 29.354 | G73: 0.9454759147
A74: 2000-03-31 | B74: 24.07 | D74: 27.55956522 | E74: 29.89217391 | G74: 0.9219659064
A75: 2000-04-28 | B75: 23.92 | D75: 22.80421053 | E75: 25.73578947 | G75: 0.8860894106
A76: 2000-05-31 | B76: 29.06 | D76: 27.51636364 | E76: 28.78 | G76: 0.9560932466
A77: 2000-06-30 | B77: 31.82 | D77: 29.60227273 | E77: 31.82954545 | G77: =D77/E77 -> 0.9300249911
A78: 2000-07-31 | B78: 25.78 | D78: 28.4825 | E78: 29.767 | G78: 0.9568481876
A79: 2000-08-31 | B79: 34.83 | D79: 29.78782609 | E79: 31.21869565 | G79: 0.9541662605
A80: 2000-09-29 | B80: 28.48 | D80: 32.931 | E80: 33.884 | G80: 0.9718746311
A81: 2000-10-31 | B81: 30.25 | D81: 30.83727273 | E81: 33.075 | G81: 0.9323438466
A82: 2000-11-30 | B82: 32.44 | D82: 32.4447619 | E82: 34.48 | G82: 0.9409733731
A83: 2000-12-29 | B83: 22.5 | C83: 26.83 | D83: 25.5675 | E83: 28.4585 | G83: 0.8984134793 | J83: =(SUM(E72:E83))/12 -> 30.30489204
A84: 2001-01-31 | B84: 26.56 | D84: 25.44857143 | E84: 29.58 | G84: 0.860330339 | X84: ='Gas Monthly Avg& Bidweek Prices'!L126 -> 4.69
A85: 2001-02-28 | B85: 25.51 | D85: 27.50631579 | E85: 29.60736842 | G85: 0.9290361574 | X85: ='Gas Monthly Avg& Bidweek Prices'!L127 -> 4.74
A86: 2001-03-31 | B86: 23.85 | D86: 24.57090909 | E86: 27.24136364 | G86: 0.9019705995 | X86: ='Gas Monthly Avg& Bidweek Prices'!L128 -> 4.71
A87: 2001-04-30 | B87: 27.51 | D87: 25.645 | E87: 27.3125 | G87: 0.9389473684 | X87: ='Gas Monthly Avg& Bidweek Prices'!L129 -> 4.26
A88: 2001-05-31 | B88: 28.49 | D88: 28.31636364 | E88: 28.64 | G88: 0.9886998476 | X88: ='Gas Monthly Avg& Bidweek Prices'!L130 -> 4.23
A89: 2001-06-29 | B89: 26.13 | D89: 27.75142857 | E89: 27.60095238 | G89: 1.005451848 | X89: ='Gas Monthly Avg& Bidweek Prices'!L131 -> 4.29
A90: 2001-07-31 | B90: 24.44 | D90: 24.52571429 | E90: 26.44571429 | G90: 0.9273984443 | X90: ='Gas Monthly Avg& Bidweek Prices'!L132 -> 4.28
A91: 2001-08-31 | B91: 26.68 | D91: 25.75347826 | E91: 27.46782609 | G91: 0.9375870584 | X91: ='Gas Monthly Avg& Bidweek Prices'!L133 -> 4.3
A92: 2001-09-28 | B92: 21.69 | D92: 25.22375 | E92: 25.88125 | G92: 0.9745955083 | X92: ='Gas Monthly Avg& Bidweek Prices'!L134 -> 4.4
A93: 2001-10-31 | B93: 19.78 | D93: 20.55695652 | E93: 22.21043478 | G93: 0.9255539895 | X93: ='Gas Monthly Avg& Bidweek Prices'!L135 -> 4.41
A94: 2001-11-30 | B94: 18.87 | D94: 18.84714286 | E94: 19.6695 | G94: 0.9581912533 | X94: ='Gas Monthly Avg& Bidweek Prices'!L136 -> 4.3
A95: 2001-12-31 | B95: 19.29 | C95: 19.78 | D95: 18.67263158 | E95: 19.33210526 | G95: 0.9658871253 | J95: =(SUM(E84:E95))/12 -> 25.91575124 | X95: ='Gas Monthly Avg& Bidweek Prices'!L137 -> 4.3
A96: 2002-01-31 | B96: 19.13 | D96: 19.45857143 | E96: 19.67428571 | G96: 0.9890357247 | X96: ='Gas Monthly Avg& Bidweek Prices'!L138 -> 4.27
A97: 2002-02-28 | B97: 20.69 | D97: 20.12157895 | E97: 20.73578947 | G97: 0.9703792071 | X97: ='Gas Monthly Avg& Bidweek Prices'!L139 -> 4.04
A98: 2002-03-28 | B98: 25.15 | D98: 23.542 | E98: 24.417 | G98: 0.9641643118 | X98: ='Gas Monthly Avg& Bidweek Prices'!L140 -> 3.74
A99: 2002-04-30 | B99: 26.95 | D99: 25.66318182 | E99: 26.26636364 | G99: 0.9770359603 | X99: ='Gas Monthly Avg& Bidweek Prices'!L141 -> 3.68
A100: 2002-05-31 | B100: 23.93 | D100: 25.39181818 | E100: 27.02090909 | G100: 0.9397099889 | X100: ='Gas Monthly Avg& Bidweek Prices'!L142 -> 3.79
A101: 2002-06-28 | B101: 25.31 | D101: 24.033 | E101: 25.521 | G101: 0.9416950746 | X101: ='Gas Monthly Avg& Bidweek Prices'!L143 -> 3.85
A102: 2002-07-31 | B102: 26.12 | D102: 25.69136364 | E102: 26.91863636 | G102: 0.9544080647 | X102: ='Gas Monthly Avg& Bidweek Prices'!L144 -> 4.09
A103: 2002-08-30 | B103: 27.33 | D103: 26.555 | E103: 28.38136364 | G103: 0.9356491936 | X103: ='Gas Monthly Avg& Bidweek Prices'!L145 -> 4.26
A104: 2002-09-30 | B104: 29.02 | D104: 28.385 | E104: 29.6655 | G104: 0.9568353812 | X104: ='Gas Monthly Avg& Bidweek Prices'!L146 -> 4.3
A105: 2002-10-30 | B105: 25.43 | D105: 27.4973913 | E105: 28.85391304 | G105: 0.952986559 | X105: ='Gas Monthly Avg& Bidweek Prices'!L147 -> 4.28
A106: 2002-11-27 | B106: 24.65 | D106: 24.18421053 | E106: 26.26631579 | G106: 0.9207309742 | X106: ='Gas Monthly Avg& Bidweek Prices'!L148 -> 4.3
A107: 2002-12-31 | B107: 30.12 | C107: 31.23 | D107: 28.46809524 | E107: 29.42333333 | G107: 0.9675346745 | J107: =(SUM(E96:E107))/12 -> 26.09536751 | X107: ='Gas Monthly Avg& Bidweek Prices'!L149 -> 4.34
A108: 2003-01-31 | B108: 32.5 | D108: 31.28952381 | E108: 32.94333333 | G108: 0.949798355 | X108: ='Gas Monthly Avg& Bidweek Prices'!L150 -> 4.43
A109: 2003-02-28 | B109: 33.85 | D109: 32.71894737 | E109: 35.86684211 | G109: 0.9122338474 | X109: ='Gas Monthly Avg& Bidweek Prices'!L151 -> 4.44
A110: 2003-03-31 | B110: 28.06 | D110: 30.45857143 | E110: 33.54761905 | G110: 0.907920511 | X110: ='Gas Monthly Avg& Bidweek Prices'!L152 -> 4.3
A111: 2003-04-30 | B111: 23.31 | D111: 24.88619048 | E111: 28.25333333 | G111: 0.8808231646 | X111: ='Gas Monthly Avg& Bidweek Prices'!L153 -> 4.44
A112: 2003-05-30 | B112: 26.44 | D112: 25.68333333 | E112: 28.1447619 | G112: 0.9125439903 | X112: ='Gas Monthly Avg& Bidweek Prices'!L154 -> 4.62
A113: 2003-06-30 | B113: 28.17 | D113: 27.51809524 | E113: 30.7247619 | G113: 0.8956324974 | X113: ='Gas Monthly Avg& Bidweek Prices'!L155 -> 4.76
A114: 2003-07-31 | B114: 28.64 | D114: 28.38727273 | E114: 30.76181818 | G114: 0.9228086766 | L114: 27.48 | X114: ='Gas Monthly Avg& Bidweek Prices'!L156 -> 4.67
A115: 2003-08-29 | B115: 30.26 | D115: 29.74857143 | E115: 31.59190476 | G115: 0.9416517191 | X115: ='Gas Monthly Avg& Bidweek Prices'!L157 -> 4.43
A116: 2003-09-30 | B116: 28.23 | D116: 26.85142857 | E116: 28.29761905 | G116: 0.9488935633 | X116: ='Gas Monthly Avg& Bidweek Prices'!L158 -> 4.4
A117: 2003-10-31 | B117: 27.89 | D117: 29.51434783 | E117: 30.33304348 | G117: 0.9730097755 | X117: ='Gas Monthly Avg& Bidweek Prices'!L159 -> 4.4
A118: 2003-11-28 | B118: 28.9 | D118: 28.75222222 | E118: 31.055 | G118: 0.9258484052 | X118: ='Gas Monthly Avg& Bidweek Prices'!L160 -> 4.45
A119: 2003-12-31 | B119: 30.14 | C119: 32.55 | D119: 29.76047619 | E119: 32.12333333 | G119: 0.9264442106 | H119: =SUM(G108:G119)/12 -> 0.9248007263 | J119: =(SUM(E108:E119))/12 -> 31.13694754 | L119: 28.96 | M119: 29.25 | X119: ='Gas Monthly Avg& Bidweek Prices'!L161 -> 4.51
A120: 2004-01-29 | B120: 29.48 | D120: 31.29684211 | E120: 34.36684211 | G120: 0.9106697092 | X120: ='Gas Monthly Avg& Bidweek Prices'!L162 -> 4.42
A121: 2004-02-27 | B121: 32.53 | D121: 30.7185 | E121: 34.6965 | G121: 0.8853486663 | X121: ='Gas Monthly Avg& Bidweek Prices'!L163 -> 4.53
A122: 2004-03-31 | B122: 32.41 | D122: 33.84304348 | E122: 36.73695652 | G122: 0.9212261081 | X122: ='Gas Monthly Avg& Bidweek Prices'!L164 -> 4.6
A123: 2004-04-30 | B123: 35.02 | D123: 33.1652381 | E123: 36.69952381 | G123: 0.9036966874 | X123: ='Gas Monthly Avg& Bidweek Prices'!L165 -> 4.79
A124: 2004-05-28 | B124: 37.04 | D124: 37.759 | E124: 40.2915 | G124: 0.9371455518 | X124: ='Gas Monthly Avg& Bidweek Prices'!L166 -> 4.89
A125: 2004-06-30 | B125: 33.04 | D125: 35.235 | E125: 38.05954545 | G125: 0.9257861485 | X125: ='Gas Monthly Avg& Bidweek Prices'!L167 -> 4.83
A126: 2004-07-30 | B126: 41.61 | D126: 38.23952381 | E126: 40.79666667 | G126: 0.937319809 | H126: =SUM(G115:G126)/12 -> 0.9280866962 | L126: 37.41 | X126: ='Gas Monthly Avg& Bidweek Prices'!L168 -> 4.98
A127: 2004-08-31 | B127: 39.75 | D127: 43.02772727 | E127: 44.93727273 | G127: 0.9575064231 | X127: ='Gas Monthly Avg& Bidweek Prices'!L169 -> 5.05
A128: 2004-09-30 | B128: 47.26 | D128: 43.56619048 | E128: 45.94952381 | G128: 0.94813149 | X128: ='Gas Monthly Avg& Bidweek Prices'!L170 -> 5.24
A129: 2004-10-31 | B129: 48.02 | D129: 49.7052381 | E129: 53.13333333 | G129: 0.935481269 | X129: ='Gas Monthly Avg& Bidweek Prices'!L171 -> 5.24
A130: 2004-11-30 | B130: 44.04 | D130: 43.0752381 | E130: 48.52333333 | G130: 0.8877221563 | X130: ='Gas Monthly Avg& Bidweek Prices'!L172 -> 5.32
A131: 2004-12-30 | B131: 39.9 | C131: 43.46 | D131: 39.49 | E131: 43.33238095 | G131: 0.9113277215 | J131: =(SUM(E120:E131))/12 -> 41.46028156 | X131: ='Gas Monthly Avg& Bidweek Prices'!L173 -> 5.4
A132: 2004-12-31 | B132: 40.47 | D132: 39.54 | E132: 43.33 | G132: 0.9125317332 | L132: 40.02 | M132: 40
A133: 2005-01-31 | B133: 46.02 | D133: 44.154 | E133: 46.839 | G133: 0.9426759751 | H133: =SUM(G122:G133)/12 -> 0.9267125894 | X133: ='Gas Monthly Avg& Bidweek Prices'!L174 -> 5.27
A134: 2005-02-28 | B134: 50.11 | D134: 45.35894737 | E134: 47.97105263 | G134: 0.9455483022 | H134: 0.9287394389 | X134: ='Gas Monthly Avg& Bidweek Prices'!L175 -> 5.4
A135: 2005-03-31 | B135: 52.9 | D135: 52.79863636 | E135: 54.21818182 | G135: =D135/E135 -> 0.9738179074 | H135: 0.9345828739 | X135: ='Gas Monthly Avg& Bidweek Prices'!L176 -> 5.26
A136: 2005-04-29 | B136: 50.74 | D136: 51.96047619 | E136: 53.03666667 | G136: 0.9797085574 | H136: 0.9381297911 | X136: ='Gas Monthly Avg& Bidweek Prices'!L177 -> 5.19
A137: 2005-05-31 | B137: 50.52 | D137: 48.66809524 | E137: 49.83047619 | G137: 0.9766732923 | H137: 0.9423703864 | X137: ='Gas Monthly Avg& Bidweek Prices'!L178 -> 5.38
A138: 2005-06-30 | B138: 55.35 | D138: 54.83909091 | E138: 56.39681818 | G138: 0.9723791639 | H138: 0.9452919993 | X138: ='Gas Monthly Avg& Bidweek Prices'!L179 -> 5.49
A139: 2005-07-29 | B139: 59.79 | D139: 57.566 | E139: 58.703 | G139: 0.9806313136 | H139: =SUM(G128:G139)/12 -> 0.9472190735 | L139: 55.65 | X139: ='Gas Monthly Avg& Bidweek Prices'!L180 -> 5.89
A140: 2005-08-31 | B140: 66.81 | D140: 64.19782609 | E140: 64.96826087 | G140: 0.9881413667 | H140: 0.9505532299 | X140: ='Gas Monthly Avg& Bidweek Prices'!L181 -> 6.08
A141: 2005-09-30 | B141: 61.88 | D141: 62.92 | E141: 65.6255 | G141: =D141/E141 -> 0.9587736474 | H141: 0.9524942614 | X141: ='Gas Monthly Avg& Bidweek Prices'!L182 -> 5.97
A142: 2005-10-31 | B142: 58.5 | D142: 58.82190476 | E142: 62.37047619 | G142: 0.9431049489 | H142: 0.9571094941 | X142: ='Gas Monthly Avg& Bidweek Prices'!L183 -> 6.24
A143: 2005-11-30 | B143: 53.24 | D143: 55.3347619 | E143: 58.24095238 | G143: 0.9501005674 | H143: 0.9603405646 | X143: ='Gas Monthly Avg& Bidweek Prices'!L184 -> 6.4
A144: 2005-12-30 | B144: 59.17 | C144: 61.04 | D144: 56.99 | E144: 59.494 | G144: 0.9579117222 | H144: 0.9641222304 | J144: =(SUM(E133:E144))/12 -> 56.47453208 | L144: 55.9 | M144: 57.75 | X144: ='Gas Monthly Avg& Bidweek Prices'!L185 -> 6.68
A145: 2006-01-31 | B145: 65.2 | D145: 63.17714286 | E145: 65.48952381 | G145: 0.9646908266 | H145: =SUM(G134:G145)/12 -> 0.9659568013 | L145: 61.92 | X145: ='Gas Monthly Avg& Bidweek Prices'!L186 -> 5.9
A146: 2006-02-28 | B146: 59.61 | D146: 60.18894737 | E146: 61.63105263 | G146: 0.9766009957 | H146: 0.9685445258 | L146: 58.61 | X146: ='Gas Monthly Avg& Bidweek Prices'!L187 -> 5.81
A147: 2006-03-31 | B147: 66.09 | D147: 62.11956522 | E147: 62.89956522 | G147: =D147/E147 -> 0.9875992784 | H147: 0.9696929734 | L147: 59.45 | X147: ='Gas Monthly Avg& Bidweek Prices'!L188 -> 5.69
A148: 2006-04-28 | B148: 72.3 | D148: 70.13052632 | E148: 69.69157895 | G148: 1.006298428 | H148: 0.9719087959 | L148: 66.71 | X148: ='Gas Monthly Avg& Bidweek Prices'!L189 -> 5.76
A149: 2006-05-31 | B149: 68.67 | D149: 69.93318182 | E149: 70.94045455 | G149: 0.9858011521 | H149: 0.9726694509 | L149: 67.41 | X149: ='Gas Monthly Avg& Bidweek Prices'!L190 -> 5.95
A150: 2006-06-30 | B150: 73.27 | D150: 68.55909091 | E150: 70.95772727 | G150: 0.9661962628 | H150: 0.9721542091 | L150: 67.64 | X150: ='Gas Monthly Avg& Bidweek Prices'!L191 -> 5.94
A151: 2006-07-31 | B151: 74.61 | D151: 73.771 | E151: 74.462 | G151: 0.9907200988 | H151: =SUM(G140:G151)/12 -> 0.9729949412 | L151: 71.05 | X151: ='Gas Monthly Avg& Bidweek Prices'!L192 -> 5.95
A152: 2006-08-31 | B152: 67.66 | D152: 73.23043478 | E152: 73.04869565 | G152: 1.002487918 | H152: 0.9741904871 | L152: 69.7 | X152: ='Gas Monthly Avg& Bidweek Prices'!L193 -> 6.17
A153: 2006-09-29 | B153: 59.09 | D153: 61.6255 | E153: 63.865 | G153: =D153/E153 -> 0.9649338448 | H153: 0.9747038369 | L153: 60.88 | X153: ='Gas Monthly Avg& Bidweek Prices'!L194 -> 6.22
A154: 2006-10-31 | B154: 56.13 | D154: 57.80818182 | E154: 58.87818182 | G154: 0.9818268845 | H154: 0.9779306649 | L154: 55.81 | X154: ='Gas Monthly Avg& Bidweek Prices'!L195 -> 6.28
A155: 2006-11-30 | B155: 64.36 | D155: 58.71666667 | E155: 59.41952381 | G155: 0.9881712761 | H155: 0.9811032239 | L155: 55.73 | X155: ='Gas Monthly Avg& Bidweek Prices'!L196 -> 6.45
A156: 2006-12-29 | B156: 58.96 | C156: 61.06 | D156: 62.47210526 | E156: 62.034 | G156: 1.007062341 | H156: 0.9851991088 | J156: =(SUM(E145:E156))/12 -> 66.10977531 | L156: 58.81 | M156: 57.75 | X156: ='Gas Monthly Avg& Bidweek Prices'!L197 -> 6.44
A157: 2007-01-31 | D157: 53.68 | E157: 54.56571429 | G157: 0.9837679338 | H157: =SUM(G146:G157)/12 -> 0.9867888678 | L157: 51.28 | X157: ='Gas Monthly Avg& Bidweek Prices'!L198 -> 6.08
A158: 2007-02-28 | D158: 57.55578947 | E158: 59.26210526 | G158: 0.9712073039 | H158: 0.9863393934 | L158: 56.11 | X158: ='Gas Monthly Avg& Bidweek Prices'!L199 -> 5.91
A159: 2007-03-30 | D159: 62.05045455 | E159: 60.56409091 | G159: =D159/E159 -> 1.024541995 | H159: 0.9894179532 | L159: 57.39 | X159: ='Gas Monthly Avg& Bidweek Prices'!L200 -> 5.85
A160: 2007-04-30 | D160: 67.48578947 | E160: 63.959 | G160: 1.05514141 | H160: 0.9934882018 | L160: 60.83 | X160: ='Gas Monthly Avg& Bidweek Prices'!L201 -> 5.86
A161: 2007-05-31 | D161: 67.21227273 | E161: 63.46090909 | G161: 1.059112983 | H161: 0.999597521 | L161: 60.18 | T161: 69.18818182 | X161: ='Gas Monthly Avg& Bidweek Prices'!L202 -> 5.65
A162: 2007-06-30 | D162: 71.04571429 | E162: 67.47857143 | G162: 1.052863343 | H162: 1.006819778 | L162: 64 | T162: 73.22380952 | X162: ='Gas Monthly Avg& Bidweek Prices'!L203 -> 5.73
A163: 2007-07-31 | D163: 76.93 | E163: 74.18190476 | G163: 1.037045358 | H163: =SUM(G152:G163)/12 -> 1.010680216 | L163: 70.71 | T163: 78.57952381 | X163: ='Gas Monthly Avg& Bidweek Prices'!L204 -> 5.87
A164: 2007-08-31 | D164: 70.76086957 | E164: 72.39217391 | G164: 0.9774657361 | H164: 1.008595034 | L164: 68.98 | X164: ='Gas Monthly Avg& Bidweek Prices'!L205 -> 6.06
A165: 2007-09-28 | D165: 77.17315789 | E165: 79.92684211 | G165: =D165/E165 -> 0.9655474414 | H165: 1.008646167 | L165: 75.69 | X165: ='Gas Monthly Avg& Bidweek Prices'!L206 -> 6.14
A166: 2007-10-31 | D166: 82.34 | E166: 85.92782609 | G166: 0.9582460508 | H166: 1.006681098 | L166: 82.31 | X166: ='Gas Monthly Avg& Bidweek Prices'!L207 -> 9.34
A167: 2007-11-30 | D167: 92.41428571 | E167: 94.62380952 | G167: 0.9766493886 | H167: 1.00572094 | L167: 91.6667 | X167: ='Gas Monthly Avg& Bidweek Prices'!L208 -> 6.33
A168: 2007-12-31 | B168: 93.68 | C168: 96.01 | D168: 90.92684211 | E168: 91.36777778 | G168: 0.9951740572 | H168: 1.00473025 | J168: =(SUM(E157:E168))/12 -> 72.3092271 | L168: 88.21 | M168: 92.5 | X168: ='Gas Monthly Avg& Bidweek Prices'!L209 -> 6.28
A169: 2008-01-31 | D169: 92.17809524 | E169: 92.95285714 | G169: 0.9916650017 | H169: =SUM(G158:G169)/12 -> 1.005388339 | L169: 89.45 | O169: 150.58 | P169: =(O169/100)*42 -> 63.2436 | X169: ='Gas Monthly Avg& Bidweek Prices'!L210 -> 6.6
A170: 2008-02-29 | D170: 94.99 | E170: 95.354 | G170: 0.9961826457 | H170: 1.007469618 | L170: 91.39 | O170: 142.52 | P170: =(O170/100)*42 -> 59.8584 | X170: ='Gas Monthly Avg& Bidweek Prices'!L211 -> 6.9
A171: 2008-03-31 | D171: 103.6355 | E171: 105.4635 | G171: =D171/E171 -> 0.9826669891 | H171: 1.003980034 | L171: 101.62 | O171: 147.47 | P171: 61.9374 | X171: ='Gas Monthly Avg& Bidweek Prices'!L212 -> 7.09
A172: 2008-04-30 | D172: 109.0713636 | E172: 112.5663636 | G172: 0.9689516487 | H172: 0.9967975536 | L172: 109.06 | O172: 159.03 | P172: 66.7926 | X172: ='Gas Monthly Avg& Bidweek Prices'!L213 -> 7.09
A173: 2008-05-30 | D173: 122.7971429 | E173: 125.3890476 | G173: 0.9793290976 | H173: 0.9901488965 | L173: 122.15 | O173: 170.01 | P173: 71.4042 | X173: ='Gas Monthly Avg& Bidweek Prices'!L214 -> 7.21
A174: 2008-06-30 | D174: 132.322381 | E174: 133.9280952 | G174: 0.988010624 | H174: 0.9847445033 | L174: 131.08 | O174: 181.29 | P174: 76.1418 | X174: ='Gas Monthly Avg& Bidweek Prices'!L215 -> 7.38
A175: 2008-07-31 | D175: 132.7181818 | E175: 133.4440909 | G175: 0.9945602006 | H175: =SUM(G164:G175)/12 -> 0.9812040735 | L175: 130.911 | O175: 186.15 | P175: 78.183 | X175: ='Gas Monthly Avg& Bidweek Prices'!L216 -> 7.49
A176: 2008-08-29 | D176: 113.2433333 | E176: 116.6971429 | G176: 0.9704036497 | H176: 0.9806155663 | L176: 113.21 | O176: 165.09 | P176: 69.3378 | X176: ='Gas Monthly Avg& Bidweek Prices'!L217 -> 7.97
A177: 2008-09-30 | D177: 97.23428571 | E177: 103.8957143 | G177: =D177/E177 -> 0.9358835096 | H177: 0.9781435719 | L177: 100.88 | O177: 153 | P177: 64.26 | X177: ='Gas Monthly Avg& Bidweek Prices'!L218 -> 8.56
A178: 2008-10-31 | D178: 71.58173913 | E178: 76.64782609 | G178: 0.9339043621 | H178: 0.9761150979 | L178: 73.25 | O178: 104.47 | P178: 43.8774 | X178: ='Gas Monthly Avg& Bidweek Prices'!L219 -> 8.72
A179: 2008-11-30 | D179: 52.45263158 | E179: 57.44166667 | G179: 0.9131460597 | H179: 0.9708231538 | L179: 54.04 | O179: 73.79 | P179: 30.9918 | X179: ='Gas Monthly Avg& Bidweek Prices'!L220 -> 8.87
A180: 2008-12-31 | B180: 35.82 | C180: 44.6 | D180: 39.94636364 | E180: 41.43428571 | G180: 0.9640895927 | H180: 0.9682327818 | J180: =(SUM(E169:E180))/12 -> 99.60121585 | L180: 37.69 | M180: 41 | O180: 61.03 | P180: 25.6326 | X180: ='Gas Monthly Avg& Bidweek Prices'!L221 -> 8.27
A181: 2009-01-31 | D181: 43.4395 | E181: 41.7385 | G181: 1.040753741 | H181: =SUM(G170:G181)/12 -> 0.97232351 | L181: 38.47 | O181: 72.71 | P181: 30.5382 | X181: ='Gas Monthly Avg& Bidweek Prices'!L222 -> 7.54
A182: 2009-02-27 | D182: 43.32473684 | E182: 39.16105263 | G182: 1.106322071 | H182: 0.9815017954 | L182: 35.87 | O182: 65.88 | P182: 27.6696 | X182: ='Gas Monthly Avg& Bidweek Prices'!L223 -> 6
A183: 2009-03-31 | D183: 46.54045455 | E183: 47.98 | G183: =D183/E183 -> 0.9699969684 | H183: 0.9804459604 | L183: 44.63 | O183: 65.34 | P183: 27.4428 | X183: ='Gas Monthly Avg& Bidweek Prices'!L224 -> 6.42
A184: 2009-04-30 | D184: 50.18190476 | E184: 49.7947619 | G184: 1.007774771 | H184: 0.9836812205 | L184: 46.95 | O184: 63.82 | P184: 26.8044 | X184: ='Gas Monthly Avg& Bidweek Prices'!L225 -> 7.33
A185: 2009-05-31 | D185: 57.3025 | E185: 59.1615 | G185: 0.9685775378 | H185: 0.9827852572 | L185: 55.77 | O185: 70.1 | P185: 29.442 | X185: ='Gas Monthly Avg& Bidweek Prices'!L226 -> 7.2
A186: 2009-06-30 | D186: 68.60954545 | E186: 69.675 | G186: 0.9847082232 | H186: 0.9825100571 | L186: 66.21 | O186: 84.64 | P186: 35.5488 | X186: ='Gas Monthly Avg& Bidweek Prices'!L227 -> 7.65
A187: 2009-07-31 | D187: 64.43545455 | E187: 64.09409091 | G187: 1.005325977 | H187: =SUM(G176:G187)/12 -> 0.9834072052 | L187: 60.91 | O187: 75.15 | P187: 31.563 | X187: ='Gas Monthly Avg& Bidweek Prices'!L228 -> 8
A188: 2009-08-31 | D188: 72.50857143 | E188: 71.0552381 | G188: 1.020453571 | H188: 0.9875780319 | L188: 67.55 | O188: 90.57 | P188: 38.0394 | X188: ='Gas Monthly Avg& Bidweek Prices'!L229 -> 8.36
A189: 2009-09-30 | D189: 67.64619048 | E189: 69.46333333 | G189: =D189/E189 -> 0.9738402583 | H189: 0.9907410943 | L189: 65.73 | O189: 94.64 | P189: 39.7488 | X189: ='Gas Monthly Avg& Bidweek Prices'!L230 -> 10.2
A190: 2009-10-31 | D190: 72.76954545 | E190: 75.82363636 | G190: 0.9597211232 | H190: 0.9928924911 | L190: 72.18 | O190: 100.84 | P190: 42.3528 | X190: ='Gas Monthly Avg& Bidweek Prices'!L231 -> 10.97
A191: 2009-11-30 | D191: 76.662 | E191: 78.08421053 | G191: 0.9817861957 | H191: 0.9986125024 | L191: 74.18 | O191: 107.6 | P191: 45.192 | X191: ='Gas Monthly Avg& Bidweek Prices'!L232 -> 10.69
A192: 2009-12-31 | D192: 74.45636364 | E192: 74.3035 | G192: 1.002057287 | H192: 1.001776477 | L192: 71.08 | O192: 119.04 | P192: 49.9968 | X192: ='Gas Monthly Avg& Bidweek Prices'!L233 -> 9.18
A193: 2010-01-29 | D193: 76.16736842 | E193: 78.21777778 | G193: 0.9737858909 | H193: =SUM(G182:G193)/12 -> 0.9961958228 | L193: 74.6 | O193: 131.25 | P193: =(O193/100)*42 -> 55.125 | R193: 68.85 | X193: ='Gas Monthly Avg& Bidweek Prices'!L234 -> 11.68
A194: 2010-02-26 | D194: 73.75210526 | E194: 76.42263158 | G194: 0.9650558184 | H194: 0.9844236351 | L194: 72.79 | O194: 128.39 | P194: =(O194/100)*42 -> 53.9238 | R194: 68.29 | X194: ='Gas Monthly Avg& Bidweek Prices'!L235 -> 7.97
A195: 2010-03-31 | D195: 78.8273913 | E195: 81.24217391 | G195: =D195/E195 -> 0.9702767357 | H195: 0.984446949 | L195: 77.65 | O195: 113.61 | P195: 47.7162 | R195: 73.15 | X195: ='Gas Monthly Avg& Bidweek Prices'!L236 -> 12.36
A196: 2010-04-30 | D196: 84.81761905 | E196: 84.48 | G196: 1.003996438 | H196: 0.984132088 | L196: 81.06 | O196: 113.71 | P196: 47.7582 | R196: 76.06 | X196: ='Gas Monthly Avg& Bidweek Prices'!L237 -> 12.21
A197: 2010-05-28 | D197: 75.9457 | E197: 74.06894737 | G197: 1.025337914 | H197: 0.9888621193 | L197: 71 | O197: 108.18 | P197: 45.4356 | R197: 65.25 | X197: ='Gas Monthly Avg& Bidweek Prices'!L238 -> 11.94
A198: 2010-06-30 | D198: 74.76090909 | E198: 75.34909091 | G198: 0.9921939096 | H198: 0.9894859265 | L198: 71.87 | O198: 103.71 | P198: 43.5582 | R198: 63.87 | X198: ='Gas Monthly Avg& Bidweek Prices'!L239 -> 8.27
A199: 2010-07-31 | D199: 75.58 | E199: 76.36952381 | G199: 0.9896617948 | H199: =SUM(G188:G199)/12 -> 0.988180578 | L199: 72.66 | O199: 100.97 | P199: 42.4074 | R199: 66.66 | X199: ='Gas Monthly Avg& Bidweek Prices'!L240 -> 12.83
A200: 2010-08-31 | D200: 77.03954545 | E200: 76.82318182 | G200: 1.002816385 | H200: 0.9867108125 | L200: 73.09 | O200: 107.24 | P200: 45.0408 | R200: 67.84 | X200: ='Gas Monthly Avg& Bidweek Prices'!L241 -> 13.19
... 185 more rows

Sheet Gas Monthly Avg& Bidweek Prices
A1: NATURAL GAS WEEK & Natural Gas Intelligence (NGI) | R1: NATURAL GAS WEEK & Natural Gas Intelligence (NGI)
A2: SPOT CASH MARKET MONTHLY AVERAGE PRICES - $US / MMBTU | L2: eia.gov/ | N2: Taken from: | O2: eia.gov/ | R2: BIDWEEK PRICES FOR EFFECTIVE MONTH - $US / MMBTU | AA2: NGI SPOT CASH MARKET PRICES - MONTHLY AVG Beginning in October 2010 | AE2: NGI BIDWEEK PRICES Beginning for November 2010
N3: http://tonto.eia.doe.gov/dnav/ng/hist/n9190us3m.htm
A4: DATE | N4: U.S. Natural Gas Wellhead Price (Dollars per Thousand Cubic Feet)
A5: MONTH | B5: Henry Hub (Monthly Avg) | C5: Colorado Interstate Gas (Monthly Avg) | D5: AECO Canada (Monthly Avg) | E5: Houston Ship Channel (Monthly Avg) | F5: El Paso Permian (Monthly Avg) | G5: El Paso San Juan (Non Bondad) (Monthly Avg) | H5: NGPL-MC (Monthly Avg) | I5: Henry Hub Annual Avg MONTHLY Price | J5: Berkshire Hathaway - Eastern Gas South (Formerly Dominion-South) [Appalachia] (Monthly Avg) | L5: TOTAL LNG U.S. EXPORT PRICE ($US/Mcf) | M5: Date | N5: U.S. Natural Gas Wellhead Price (Dollars per Thousand Cubic Feet) | O5: LNG U.S.EXPORT PRICE TO MEXICO ($US/Mcf) | R5: Henry Hub (BIDWEEK) | S5: Colorado Interstate Gas (BIDWEEK) | T5: AECO Canada (BIDWEEK) | U5: Houston Ship Channel (BIDWEEK) | V5: El Paso Permian (BIDWEEK) | W5: El Paso San Juan (Non Bondad) (BIDWEEK) | X5: NGPL-MC (BIDWEEK) | Y5: Berkshire Hathaway - Eastern Gas South (Formerly Dominion-South) [Appalachia] (BIDWEEK) | AA5: (Monthly Avg) AECO Canada $Cdn/GJ | AB5: Monthly Avg Ex Rate - $US/$Cdn | AC5: MONTHLY AVG AECO Prices - $US/MMBTU (assumes 1.054615GJ/MMBTU) | AE5: (BIDWEEK) AECO Canada $Cdn/GJ | AF5: Last Day of Preceding Month Ex Rate - $US/$Cdn | AG5: BIDWEEK AECO Prices - $US/MMBTU (assumes 1.054615GJ/MMBTU) | AJ5: 3rd Party supplied Mo Avg Texas Eastern So Tx
A6: 1991-01-31 | B6: 1.67 | M6: 1991-01-15 | N6: 1.96
A7: 1991-02-28 | B7: 1.36 | M7: 1991-02-15 | N7: 1.62
A8: 1991-03-31 | B8: 1.34 | M8: 1991-03-15 | N8: 1.49
A9: 1991-04-30 | B9: 1.33 | M9: 1991-04-15 | N9: 1.5
A10: 1991-05-31 | B10: 1.31 | M10: 1991-05-15 | N10: 1.48
A11: 1991-06-30 | B11: 1.2 | M11: 1991-06-15 | N11: 1.43
A12: 1991-07-31 | B12: 1.19 | M12: 1991-07-15 | N12: 1.34
A13: 1991-08-31 | B13: 1.31 | M13: 1991-08-15 | N13: 1.43
A14: 1991-09-30 | B14: 1.63 | M14: 1991-09-15 | N14: 1.59
A15: 1991-10-31 | B15: 1.77 | M15: 1991-10-15 | N15: 1.82
A16: 1991-11-30 | B16: 1.81 | M16: 1991-11-15 | N16: 1.89
A17: 1991-12-31 | B17: 1.92 | M17: 1991-12-15 | N17: 2
A18: 1992-01-31 | B18: 1.28 | M18: 1992-01-15 | N18: 1.74
A19: 1992-02-29 | B19: 1.21 | M19: 1992-02-15 | N19: 1.26
A20: 1992-03-31 | B20: 1.28 | M20: 1992-03-15 | N20: 1.35
A21: 1992-04-30 | B21: 1.47 | M21: 1992-04-15 | N21: 1.42
A22: 1992-05-31 | B22: 1.59 | M22: 1992-05-15 | N22: 1.51
A23: 1992-06-30 | B23: 1.56 | M23: 1992-06-15 | N23: 1.62
A24: 1992-07-31 | B24: 1.75 | M24: 1992-07-15 | N24: 1.55
A25: 1992-08-31 | B25: 1.97 | M25: 1992-08-15 | N25: 1.84
A26: 1992-09-30 | B26: 2.33 | M26: 1992-09-15 | N26: 1.92
A27: 1992-10-31 | B27: 2.42 | M27: 1992-10-15 | N27: 2.38
A28: 1992-11-30 | B28: 2.24 | M28: 1992-11-15 | N28: 2.13
A29: 1992-12-31 | B29: 2.16 | M29: 1992-12-15 | N29: 2.07
A30: 1993-01-31 | B30: 1.88 | M30: 1993-01-15 | N30: 2.03
A31: 1993-02-28 | B31: 1.69 | M31: 1993-02-15 | N31: 1.76
A32: 1993-03-31 | B32: 2.18 | M32: 1993-03-15 | N32: 2
A33: 1993-04-30 | B33: 2.35 | M33: 1993-04-15 | N33: 2.06
A34: 1993-05-31 | B34: 2.17 | M34: 1993-05-15 | N34: 2.18
A35: 1993-06-30 | B35: 1.97 | M35: 1993-06-15 | N35: 1.98
A36: 1993-07-31 | B36: 2.06 | M36: 1993-07-15 | N36: 1.99
A37: 1993-08-31 | B37: 2.26 | M37: 1993-08-15 | N37: 2.04
A38: 1993-09-30 | B38: 2.27 | M38: 1993-09-15 | N38: 2.09
A39: 1993-10-31 | B39: 2.02 | M39: 1993-10-15 | N39: 2.02
A40: 1993-11-30 | B40: 2.26 | M40: 1993-11-15 | N40: 2.03
A41: 1993-12-31 | B41: 2.34 | M41: 1993-12-15 | N41: 2.15
A42: 1994-01-31 | B42: 2.34 | M42: 1994-01-15 | N42: 1.93
A43: 1994-02-28 | B43: 2.71 | M43: 1994-02-15 | N43: 1.88
A44: 1994-03-31 | B44: 2.21 | M44: 1994-03-15 | N44: 1.93
A45: 1994-04-30 | B45: 2.04 | M45: 1994-04-15 | N45: 1.91
A46: 1994-05-31 | B46: 1.92 | M46: 1994-05-15 | N46: 2
A47: 1994-06-30 | B47: 1.9 | M47: 1994-06-15 | N47: 1.8
A48: 1994-07-31 | B48: 1.96 | M48: 1994-07-15 | N48: 1.81
A49: 1994-08-31 | B49: 1.66 | M49: 1994-08-15 | N49: 1.83
A50: 1994-09-30 | B50: 1.49 | M50: 1994-09-15 | N50: 1.78
A51: 1994-10-31 | B51: 1.51 | M51: 1994-10-15 | N51: 1.7
A52: 1994-11-30 | B52: 1.58 | M52: 1994-11-15 | N52: 1.75
A53: 1994-12-31 | B53: 1.72 | M53: 1994-12-15 | N53: 1.88
A54: 1995-01-31 | B54: 1.48 | M54: 1995-01-15 | N54: 1.62
A55: 1995-02-28 | B55: 1.54 | M55: 1995-02-15 | N55: 1.48
A56: 1995-03-31 | B56: 1.52 | M56: 1995-03-15 | N56: 1.47
A57: 1995-04-30 | B57: 1.59 | M57: 1995-04-15 | N57: 1.52
A58: 1995-05-31 | B58: 1.64 | M58: 1995-05-15 | N58: 1.55
A59: 1995-06-30 | B59: 1.65 | M59: 1995-06-15 | N59: 1.58
A60: 1995-07-31 | B60: 1.44 | M60: 1995-07-15 | N60: 1.43
A61: 1995-08-31 | B61: 1.56 | M61: 1995-08-15 | N61: 1.43
A62: 1995-09-30 | B62: 1.63 | M62: 1995-09-15 | N62: 1.52
A63: 1995-10-31 | B63: 1.76 | M63: 1995-10-15 | N63: 1.54
A64: 1995-11-30 | B64: 1.98 | M64: 1995-11-15 | N64: 1.61
A65: 1995-12-31 | B65: 2.45 | M65: 1995-12-15 | N65: 1.84
A66: 1996-01-31 | B66: 2.92 | M66: 1996-01-15 | N66: 2.05
A67: 1996-02-29 | B67: 4.41 | M67: 1996-02-15 | N67: 1.89
A68: 1996-03-31 | B68: 3 | M68: 1996-03-15 | N68: 1.95
A69: 1996-04-30 | B69: 2.71 | M69: 1996-04-15 | N69: 2.08
A70: 1996-05-31 | B70: 2.21 | M70: 1996-05-15 | N70: 2.01
A71: 1996-06-30 | B71: 2.43 | M71: 1996-06-15 | N71: 2.08
A72: 1996-07-31 | B72: 2.57 | M72: 1996-07-15 | N72: 2.25
A73: 1996-08-31 | B73: 2.12 | M73: 1996-08-15 | N73: 2.1
A74: 1996-09-30 | B74: 1.84 | M74: 1996-09-15 | N74: 1.85
A75: 1996-10-31 | B75: 2.27 | M75: 1996-10-15 | N75: 1.94
A76: 1996-11-30 | B76: 2.82 | M76: 1996-11-15 | N76: 2.5
A77: 1996-12-31 | B77: 3.78 | M77: 1996-12-15 | N77: 3.26
A78: 1997-01-31 | B78: 3.47 | M78: 1997-01-15 | N78: 3.4
A79: 1997-02-28 | B79: 2.55 | M79: 1997-02-15 | N79: 2.49
A80: 1997-03-31 | B80: 1.88 | M80: 1997-03-15 | N80: 1.79
A81: 1997-04-30 | B81: 2 | M81: 1997-04-15 | N81: 1.81
A82: 1997-05-31 | B82: 2.19 | M82: 1997-05-15 | N82: 2
A83: 1997-06-30 | B83: 2.21 | M83: 1997-06-15 | N83: 2.08
A84: 1997-07-31 | B84: 2.17 | M84: 1997-07-15 | N84: 2
A85: 1997-08-31 | B85: 2.4 | M85: 1997-08-15 | N85: 2.08
A86: 1997-09-30 | B86: 2.8 | M86: 1997-09-15 | N86: 2.33
A87: 1997-10-31 | B87: 3.03 | M87: 1997-10-15 | N87: 2.68
A88: 1997-11-30 | B88: 3.23 | M88: 1997-11-15 | N88: 2.92
A89: 1997-12-31 | B89: 2.37 | M89: 1997-12-15 | N89: 2.28
A90: 1998-01-31 | B90: 2.1 | M90: 1998-01-15 | N90: 1.96
A91: 1998-02-28 | B91: 2.17 | M91: 1998-02-15 | N91: 1.96
A92: 1998-03-31 | B92: 2.23 | M92: 1998-03-15 | N92: 2.06
A93: 1998-04-30 | B93: 2.45 | M93: 1998-04-15 | N93: 2.16
A94: 1998-05-31 | B94: 2.18 | M94: 1998-05-15 | N94: 2.04
A95: 1998-06-30 | B95: 2.14 | M95: 1998-06-15 | N95: 1.91
A96: 1998-07-31 | B96: 2.25 | M96: 1998-07-15 | N96: 2.09
A97: 1998-08-31 | B97: 1.9 | M97: 1998-08-15 | N97: 1.82
A98: 1998-09-30 | B98: 1.91 | M98: 1998-09-15 | N98: 1.7
A99: 1998-10-31 | B99: 1.93 | M99: 1998-10-15 | N99: 1.86
A100: 1998-11-30 | B100: 2.06 | M100: 1998-11-15 | N100: 1.94
A101: 1998-12-31 | B101: 1.69 | M101: 1998-12-15 | N101: 1.95
A102: 1999-01-31 | B102: 1.87 | M102: 1999-01-15 | N102: 1.85
A103: 1999-02-28 | B103: 1.78 | M103: 1999-02-15 | N103: 1.77
A104: 1999-03-31 | B104: 1.78 | M104: 1999-03-15 | N104: 1.7
A105: 1999-04-30 | B105: 2.07 | M105: 1999-04-15 | N105: 1.9
A106: 1999-05-31 | B106: 2.27 | M106: 1999-05-15 | N106: 2.17
A107: 1999-06-30 | B107: 2.3 | M107: 1999-06-15 | N107: 2.14
A108: 1999-07-31 | B108: 2.23 | M108: 1999-07-15 | N108: 2.2
A109: 1999-08-31 | B109: 2.74 | M109: 1999-08-15 | N109: 2.51
A110: 1999-09-30 | B110: 2.63 | M110: 1999-09-15 | N110: 2.62
A111: 1999-10-31 | B111: 2.63 | M111: 1999-10-15 | N111: 2.52
A112: 1999-11-30 | B112: 2.54 | M112: 1999-11-15 | N112: 2.68
A113: 1999-12-31 | B113: 2.35 | M113: 1999-12-15 | N113: 2.24
A114: 2000-01-31 | B114: 2.37 | M114: 2000-01-15 | N114: 2.6
A115: 2000-02-29 | B115: 2.66 | M115: 2000-02-15 | N115: 2.73
A116: 2000-03-31 | B116: 2.75 | M116: 2000-03-15 | N116: 2.66
A117: 2000-04-30 | B117: 2.99 | M117: 2000-04-15 | N117: 2.86
A118: 2000-05-31 | B118: 3.47 | M118: 2000-05-15 | N118: 3.04
A119: 2000-06-30 | B119: 4.3 | M119: 2000-06-15 | N119: 3.77
A120: 2000-07-31 | B120: 4.1 | M120: 2000-07-15 | N120: 3.84
A121: 2000-08-31 | B121: 4.35 | M121: 2000-08-15 | N121: 3.73
A122: 2000-09-30 | B122: 5.01 | M122: 2000-09-15 | N122: 4.26
A123: 2000-10-31 | B123: 5.11 | M123: 2000-10-15 | N123: 4.58
A124: 2000-11-30 | B124: 5.52 | M124: 2000-11-15 | N124: 4.4
A125: 2000-12-31 | B125: 8.08 | M125: 2000-12-15 | N125: 5.77
A126: 2001-01-31 | B126: 9.13 | L126: 4.69 | M126: 2001-01-15 | N126: 6.82
A127: 2001-02-28 | B127: 5.73 | L127: 4.74 | M127: 2001-02-15 | N127: 5.08
A128: 2001-03-31 | B128: 5.12 | L128: 4.71 | M128: 2001-03-15 | N128: 4.37
A129: 2001-04-30 | B129: 5.23 | L129: 4.26 | M129: 2001-04-15 | N129: 4.52
A130: 2001-05-31 | B130: 4.18 | L130: 4.23 | M130: 2001-05-15 | N130: 4.36
A131: 2001-06-30 | B131: 3.78 | L131: 4.29 | M131: 2001-06-15 | N131: 3.79
A132: 2001-07-31 | B132: 3.18 | L132: 4.28 | M132: 2001-07-15 | N132: 3.35
A133: 2001-08-31 | B133: 3.01 | L133: 4.3 | M133: 2001-08-15 | N133: 3.33
A134: 2001-09-30 | B134: 2.24 | L134: 4.4 | M134: 2001-09-15 | N134: 2.93
A135: 2001-10-31 | B135: 2.44 | L135: 4.41 | M135: 2001-10-15 | N135: 2.78
A136: 2001-11-30 | B136: 2.45 | L136: 4.3 | M136: 2001-11-15 | N136: 3.41
A137: 2001-12-31 | B137: 2.33 | L137: 4.3 | M137: 2001-12-15 | N137: 3.42
A138: 2002-01-31 | B138: 2.29 | L138: 4.27 | M138: 2002-01-15 | N138: 2.5
A139: 2002-02-28 | B139: 2.26 | L139: 4.04 | M139: 2002-02-15 | N139: 2.19
A140: 2002-03-31 | B140: 2.85 | L140: 3.74 | M140: 2002-03-15 | N140: 2.4
A141: 2002-04-30 | B141: 3.44 | L141: 3.68 | M141: 2002-04-15 | N141: 2.94
A142: 2002-05-31 | B142: 3.54 | L142: 3.79 | M142: 2002-05-15 | N142: 2.94
A143: 2002-06-30 | B143: 3.23 | L143: 3.85 | M143: 2002-06-15 | N143: 2.96
A144: 2002-07-31 | B144: 3.06 | L144: 4.09 | M144: 2002-07-15 | N144: 2.92
A145: 2002-08-31 | B145: 3.05 | L145: 4.26 | M145: 2002-08-15 | N145: 2.76
A146: 2002-09-30 | B146: 3.45 | L146: 4.3 | M146: 2002-09-15 | N146: 2.97
A147: 2002-10-31 | B147: 4.06 | L147: 4.28 | M147: 2002-10-15 | N147: 3.24
A148: 2002-11-30 | B148: 4.09 | L148: 4.3 | M148: 2002-11-15 | N148: 3.59
A149: 2002-12-31 | B149: 4.65 | I149: =(SUM(B138:B149))/12 -> 3.330833333 | L149: 4.34 | M149: 2002-12-15 | N149: 3.96
A150: 2003-01-31 | B150: 5.3 | L150: 4.43 | M150: 2003-01-15 | N150: 4.43
A151: 2003-02-28 | B151: 7.35 | L151: 4.44 | M151: 2003-02-15 | N151: 5.05
A152: 2003-03-31 | B152: 8.06 | L152: 4.3 | M152: 2003-03-15 | N152: 6.96
A153: 2003-04-30 | B153: 5.27 | L153: 4.44 | M153: 2003-04-15 | N153: 4.47
A154: 2003-05-31 | B154: 5.78 | L154: 4.62 | M154: 2003-05-15 | N154: 4.77
A155: 2003-06-30 | B155: 5.84 | L155: 4.76 | M155: 2003-06-15 | N155: 5.41
A156: 2003-07-31 | B156: 5.04 | C156: 4.33 | D156: 4.23 | E156: 4.99 | G156: 4.54 | H156: 4.83 | L156: 4.67 | M156: 2003-07-15 | N156: 5.08
A157: 2003-08-31 | B157: 5.01 | C157: 4.52 | D157: 4.42 | E157: 4.97 | G157: 4.61 | H157: 4.89 | L157: 4.43 | M157: 2003-08-15 | N157: 4.46
A158: 2003-09-30 | B158: 4.62 | C158: 4.12 | D158: 4.24 | E158: 4.57 | G158: 4.26 | H158: 4.37 | L158: 4.4 | M158: 2003-09-15 | N158: 4.59
A159: 2003-10-31 | B159: 4.63 | C159: 4.16 | D159: 4.17 | E159: 4.58 | G159: 4.29 | H159: 4.37 | L159: 4.4 | M159: 2003-10-15 | N159: 4.32
A160: 2003-11-30 | B160: 4.46 | C160: 4.12 | D160: 4.08 | E160: 4.42 | G160: 4.1 | H160: 4.27 | L160: 4.45 | M160: 2003-11-15 | N160: 4.26
A161: 2003-12-31 | B161: 6.14 | C161: 5.22 | D161: 5.1 | E161: 5.74 | G161: 5.37 | H161: 5.61 | I161: =(SUM(B150:B161))/12 -> 5.625 | L161: 4.51 | M161: 2003-12-15 | N161: 4.76
A162: 2004-01-31 | B162: 6.09 | C162: 5.37 | D162: 5.42 | E162: 5.8 | G162: 5.45 | H162: 5.64 | L162: 4.42 | M162: 2004-01-15 | N162: 5.21
A163: 2004-02-29 | B163: 5.37 | C163: 4.79 | D163: 4.68 | E163: 5.14 | G163: 4.84 | H163: 4.97 | L163: 4.53 | M163: 2004-02-15 | N163: 5.02
A164: 2004-03-31 | B164: 5.36 | C164: 4.64 | D164: 4.56 | E164: 5.38 | G164: 4.76 | H164: 4.99 | L164: 4.6 | M164: 2004-03-15 | N164: 5.12
A165: 2004-04-30 | B165: 5.7 | C165: 4.95 | D165: 4.98 | E165: 5.61 | G165: 5.12 | H165: 5.31 | L165: 4.79 | M165: 2004-04-15 | N165: 5.03
A166: 2004-05-31 | B166: 6.29 | C166: 5.18 | D166: 5.37 | E166: 6.2 | G166: 5.32 | H166: 5.82 | L166: 4.89 | M166: 2004-05-15 | N166: 5.4
A167: 2004-06-30 | B167: 6.25 | C167: 5.11 | D167: 5.25 | E167: 6.16 | G167: 5.27 | H167: 5.69 | L167: 4.83 | M167: 2004-06-15 | N167: 5.82 | R167: 6.68 | S167: 5.62 | T167: 5.61 | U167: 6.56 | W167: 5.7 | X167: 6.14
A168: 2004-07-31 | B168: 5.94 | C168: 5.01 | D168: 5.2 | E168: 5.88 | G168: 5.26 | H168: 5.52 | L168: 4.98 | M168: 2004-07-15 | N168: 5.62 | R168: 6.14 | S168: 5.26 | T168: 5.12 | U168: 6 | W168: 5.49 | X168: 5.79
A169: 2004-08-31 | B169: 5.49 | C169: 4.92 | D169: 4.78 | E169: 5.69 | G169: 5.06 | H169: 5.15 | L169: 5.05 | M169: 2004-08-15 | N169: 5.52 | R169: 6.04 | S169: 5.29 | T169: 5.33 | U169: 5.95 | W169: 5.4 | X169: 5.67
A170: 2004-09-30 | B170: 4.95 | C170: 4.27 | D170: 4.4 | E170: 4.69 | G170: 4.35 | H170: 4.5 | L170: 5.24 | M170: 2004-09-15 | N170: 5.06 | R170: 5.08 | S170: 4.5 | T170: 4.5 | U170: 5.13 | W170: 4.56 | X170: 4.72
A171: 2004-10-31 | B171: 6.22 | C171: 5.15 | D171: 5.24 | E171: 5.95 | G171: 5.01 | H171: 5.08 | L171: 5.24 | M171: 2004-10-15 | N171: 5.43 | R171: 5.81 | S171: 4.42 | T171: 4.55 | U171: 5.17 | W171: 4.47 | X171: 4.79
A172: 2004-11-30 | B172: 5.89 | C172: 5.62 | D172: 5.3 | E172: 4.97 | G172: 5.55 | H172: 5.38 | L172: 5.32 | M172: 2004-11-15 | N172: 6.21 | R172: 7.67 | S172: 7.03 | T172: 7.22 | U172: 7.26 | W172: 6.93 | X172: 6.9
A173: 2004-12-31 | B173: 6.64 | C173: 6.07 | D173: 5.63 | E173: 6.3 | G173: 6.12 | H173: 6.12 | I173: =(SUM(B162:B173))/12 -> 5.849166667 | L173: 5.4 | M173: 2004-12-15 | N173: 6.01 | R173: 7.81 | S173: 6.23 | T173: 6.94 | U173: 6.4 | W173: 5.96 | X173: 6.17
A174: 2005-01-31 | B174: 6.13 | C174: 5.49 | D174: 5.4 | E174: 5.84 | G174: 5.46 | H174: 5.61 | L174: 5.27 | M174: 2005-01-15 | N174: 5.52 | R174: 6.21 | S174: 5.63 | T174: 5.39 | U174: 5.83 | W174: 5.66 | X174: 5.64
A175: 2005-02-28 | B175: 6.11 | C175: 5.49 | D175: 5.33 | E175: 5.79 | G175: 5.48 | H175: 5.66 | L175: 5.4 | M175: 2005-02-15 | N175: 5.59 | R175: 6.29 | S175: 5.47 | T175: 5.45 | U175: 5.77 | W175: 5.43 | X175: 5.68
A176: 2005-03-31 | B176: 6.96 | C176: 6.15 | D176: 6.13 | E176: 6.48 | G176: 6.21 | H176: 6.41 | L176: 5.26 | M176: 2005-03-15 | N176: 5.98 | R176: 6.3 | S176: 5.29 | T176: 5.52 | U176: 5.95 | W176: 5.29 | X176: 5.47
A177: 2005-04-30 | B177: 7.28 | C177: 6.35 | D177: 6.38 | E177: 7.11 | G177: 6.35 | H177: 6.6 | L177: 5.19 | M177: 2005-04-15 | N177: 6.44 | R177: 7.33 | S177: 6.27 | T177: 6.3 | U177: 7.01 | W177: 6.19 | X177: 6.54
A178: 2005-05-31 | B178: 6.48 | C178: 5.68 | D178: 5.57 | E178: 6.41 | G178: 5.59 | H178: 5.95 | L178: 5.38 | M178: 2005-05-15 | N178: 6.02 | R178: 6.8 | S178: 6.06 | T178: 6.04 | U178: 6.5 | W178: 6.31 | X178: 6.35
A179: 2005-06-30 | B179: 7.09 | C179: 5.91 | D179: 5.84 | E179: 7.34 | G179: 5.76 | H179: 6.42 | L179: 5.49 | M179: 2005-06-15 | N179: 6.15 | R179: 6.14 | S179: 5.48 | T179: 5.42 | U179: 6.18 | W179: 5.37 | X179: 5.82
A180: 2005-07-31 | B180: 7.56 | C180: 6.34 | D180: 6.13 | E180: 7.45 | G180: 6.22 | H180: 6.99 | L180: 5.89 | M180: 2005-07-15 | N180: 6.69 | R180: 6.98 | S180: 6.22 | T180: 6.03 | U180: 6.89 | W180: 6.08 | X180: 6.54
A181: 2005-08-31 | B181: 9.29 | C181: 7.55 | D181: 7.73 | E181: 8.56 | G181: 7.44 | H181: 8.3 | L181: 6.08 | M181: 2005-08-15 | N181: 7.68 | R181: 7.65 | S181: 6.04 | T181: 6.12 | U181: 7.42 | W181: 5.98 | X181: 6.79
A182: 2005-09-30 | B182: 11.73 | C182: 9.18 | D182: 9.33 | E182: 11.02 | G182: 9.04 | H182: 9.57 | L182: 5.97 | M182: 2005-09-15 | N182: 9.5 | R182: 11.06 | S182: 8.19 | T182: 8.4 | U182: 9.89 | W182: 8.02 | X182: 8.94
A183: 2005-10-31 | B183: 13.36 | C183: 10.37 | D183: 10.75 | E183: 11.2 | G183: 10.25 | H183: 10.86 | L183: 6.24 | M183: 2005-10-15 | N183: 10.97 | R183: 13.96 | S183: 10.2 | T183: 10.42 | U183: 10.4 | W183: 9.56 | X183: 10.17
A184: 2005-11-30 | B184: 10.36 | C184: 7.44 | D184: 8.02 | E184: 7.73 | G184: 7.49 | H184: 6.86 | L184: 6.4 | M184: 2005-11-15 | N184: 9.54 | R184: 13.83 | S184: 10.87 | T184: 9.71 | U184: 10.82 | W184: 10.74 | X184: 10.7
A185: 2005-12-31 | B185: 13.08 | C185: 11.23 | D185: 10.41 | E185: 11.04 | G185: 11.42 | H185: 10.16 | I185: =(SUM(B174:B185))/12 -> 8.785833333 | L185: 6.68 | M185: 2005-12-15 | N185: 10.02 | R185: 11.22 | S185: 8.47 | T185: 7.98 | U185: 7.96 | W185: 8.49 | X185: 8.35
A186: 2006-01-31 | B186: 8.74 | C186: 7.34 | D186: 7.53 | E186: 7.55 | G186: 7.26 | H186: 7.42 | L186: 5.9 | M186: 2006-01-15 | N186: 8.66 | R186: 11.35 | S186: 9.03 | T186: 8.8 | U186: 8.66 | W186: 8.67 | X186: 8.71
A187: 2006-02-28 | B187: 7.68 | C187: 6.56 | D187: 6.53 | E187: 7.03 | G187: 6.48 | H187: 6.75 | L187: 5.81 | M187: 2006-02-15 | N187: 7.28 | R187: 8.44 | S187: 6.64 | T187: 7.26 | U187: 7.22 | W187: 6.68 | X187: 6.66
A188: 2006-03-31 | B188: 6.82 | C188: 5.7 | D188: 5.78 | E188: 6.34 | G188: 5.69 | H188: 5.95 | L188: 5.69 | M188: 2006-03-15 | N188: 6.52 | R188: 7.13 | S188: 6.24 | T188: 6.18 | U188: 6.61 | W188: 6.08 | X188: 6.17
A189: 2006-04-30 | B189: 7.09 | C189: 5.53 | D189: 5.78 | E189: 6.83 | G189: 5.73 | H189: 5.83 | L189: 5.76 | M189: 2006-04-15 | N189: 6.59 | R189: 7.25 | S189: 5.58 | T189: 5.35 | U189: 6.7 | W189: 5.54 | X189: 5.79
A190: 2006-05-31 | B190: 6.38 | C190: 4.91 | D190: 5.01 | E190: 5.86 | G190: 5.06 | H190: 5.25 | L190: 5.95 | M190: 2006-05-15 | N190: 6.19 | R190: 7.23 | S190: 5.47 | T190: 5.59 | U190: 6.99 | W190: 5.71 | X190: 5.76
A191: 2006-06-30 | B191: 6.3 | C191: 5.37 | D191: 5.3 | E191: 5.98 | G191: 5.43 | H191: 5.6 | L191: 5.94 | M191: 2006-06-15 | N191: 5.8 | R191: 5.95 | S191: 4.8 | T191: 4.8 | U191: 5.69 | W191: 4.76 | X191: 5.1
A192: 2006-07-31 | B192: 5.91 | C192: 5.35 | D192: 5.19 | E192: 5.86 | G192: 5.56 | H192: 5.54 | L192: 5.95 | M192: 2006-07-15 | N192: 5.82 | R192: 5.89 | S192: 4.99 | T192: 5 | U192: 5.68 | W192: 5.07 | X192: 5.26
A193: 2006-08-31 | B193: 7.26 | C193: 5.96 | D193: 5.86 | E193: 7.03 | G193: 6.54 | H193: 6.67 | L193: 6.17 | M193: 2006-08-15 | N193: 6.51 | R193: 7.04 | S193: 5.96 | T193: 5.73 | U193: 6.75 | W193: 5.93 | X193: 6.17
A194: 2006-09-30 | B194: 4.93 | C194: 3.79 | D194: 4.3 | E194: 5.17 | G194: 4.29 | H194: 4.31 | L194: 6.22 | M194: 2006-09-15 | N194: 5.51 | R194: 6.82 | S194: 5.31 | T194: 5.49 | U194: 6.23 | W194: 5.76 | X194: 6.06
A195: 2006-10-31 | B195: 5.6 | C195: 4.7 | D195: 5.1 | E195: 6.65 | L195: 6.28 | M195: 2006-10-15 | N195: 5.03 | R195: 4.21 | S195: 2.68 | T195: 3.59 | U195: 3.94 | W195: 3.43 | X195: 3.51
A196: 2006-11-30 | B196: 7.31 | C196: 4.64 | D196: 6.98 | E196: 6.66 | L196: 6.45 | M196: 2006-11-15 | N196: 6.43 | R196: 7.16 | S196: 6.05 | T196: 6.6 | U196: 6.56 | W196: 6.38 | X196: 6.71
A197: 2006-12-31 | B197: 7.15 | C197: 5.12 | D197: 6.64 | E197: 6.41 | G197: 6.51 | H197: 6.48 | I197: =(SUM(B186:B197))/12 -> 6.764166667 | L197: 6.44 | M197: 2006-12-15 | N197: 6.65 | R197: 8.33 | S197: 5.6 | T197: 7.38 | U197: 6.99 | W197: 6.47 | X197: 6.64
A198: 2007-01-31 | B198: 6.34 | C198: 5.88 | D198: 6.22 | E198: 6.65 | G198: 6.12 | H198: 5.9 | L198: 6.08 | M198: 2007-01-15 | N198: 5.92 | R198: 5.84 | S198: 4.15 | T198: 5.29 | U198: 5.73 | W198: 5.63 | X198: 5.5
A199: 2007-02-28 | B199: 8.11 | C199: 6.31 | D199: 7.23 | E199: 7.19 | G199: 6.92 | H199: 7 | L199: 5.91 | M199: 2007-02-15 | N199: 6.66 | R199: 7.04 | S199: 6.5 | T199: 6.42 | U199: 6.82 | W199: 6.49 | X199: 6.59
A200: 2007-03-31 | B200: 7.09 | C200: 4.85 | D200: 6.94 | E200: 6.56 | G200: 6.09 | H200: 5.97 | L200: 5.85 | M200: 2007-03-15 | N200: 6.56 | R200: 7.55 | S200: 6.16 | T200: 6.74 | U200: 6.97 | W200: 6.66 | X200: 6.63
... 227 more rows

Sheet Bidweek X-PLOTS

Sheet H Hub et al Dailies from NGI
C1: ** All Gas Price Data from Natural Gas Intelligence (NGI)
A2: Trans.Date | B2: Flow Date | C2: Henry Hub Price | E2: Colorado Interstate Gas | G2: AECO $ US / MMBTU | I2: Houston Ship Channel | K2: El Paso Permian | M2: El Paso San Juan (Blanco) _ Non Bondad | O2: NGPL - MC | Q2: Berkshire Hathaway Eastern Gas South (Formerly Dominion South) | S2: AECO prices from NGI - $Cdn / GJ | T2: TRANS DATE OANDA Ex Rates - $US/$Cdn | U2: AECO Prices - $US/MMBTU (assumes 1.054615GJ/MMBTU)
A3: 4/6/99 | B3: =A3+1 -> 1999-04-07 | C3: 1.984191176
A4: 4/7/99 | B4: =A4+1 -> 1999-04-08 | C4: 2.039537572
A5: 4/8/99 | B5: 1999-04-09 | C5: 2.075921788
A6: 4/9/99 | B6: 1999-04-10 | C6: 2.113121019
A7: 4/12/99 | B7: 1999-04-13 | C7: 2.06
A8: 4/13/99 | B8: 1999-04-14 | C8: 2.139947984
A9: 4/14/99 | B9: 1999-04-15 | C9: 2.12043956
A10: 4/15/99 | B10: 1999-04-16 | C10: 2.147513514
A11: 4/16/99 | B11: 1999-04-17 | C11: 2.159252336
A12: 4/19/99 | B12: 1999-04-20 | C12: 2.12
A13: 4/20/99 | B13: 1999-04-21 | C13: 2.186711409
A14: 4/21/99 | B14: 1999-04-22 | C14: 2.18
A15: 4/22/99 | B15: 1999-04-23 | C15: 2.253288591
A16: 4/23/99 | B16: 1999-04-24 | C16: 2.24
A17: 4/26/99 | B17: 1999-04-27 | C17: 2.23
A18: 4/27/99 | B18: 1999-04-28 | C18: 2.328387097
A19: 4/28/99 | B19: 1999-04-29 | C19: 2.316766917
A20: 4/29/99 | B20: 1999-04-30 | C20: 2.346451613
A21: 4/30/99 | B21: 1999-05-01 | C21: 2.26
A22: 5/3/99 | B22: 1999-05-04 | C22: 2.214585987
A23: 5/4/99 | B23: 1999-05-05 | C23: 2.313098592
A24: 5/5/99 | B24: 1999-05-06 | C24: 2.36
A25: 5/6/99 | B25: 1999-05-07 | C25: 2.330437956
A26: 5/7/99 | B26: 1999-05-08 | C26: 2.266444444
A27: 5/10/99 | B27: 1999-05-11 | C27: 2.250601504
A28: 5/11/99 | B28: 1999-05-12 | C28: 2.291291058
A29: 5/12/99 | B29: 1999-05-13 | C29: 2.191666667
A30: 5/13/99 | B30: 1999-05-14 | C30: 2.209259259
A31: 5/14/99 | B31: 1999-05-15 | C31: 2.26
A32: 5/17/99 | B32: 1999-05-18 | C32: 2.286
A33: 5/18/99 | B33: 1999-05-19 | C33: 2.290761905
A34: 5/19/99 | B34: 1999-05-20 | C34: 2.259809524
A35: 5/20/99 | B35: 1999-05-21 | C35: 2.262105263
A36: 5/21/99 | B36: 1999-05-22 | C36: 2.22137931
A37: 5/24/99 | B37: 1999-05-25 | C37: 2.193880837
A38: 5/25/99 | B38: 1999-05-26 | C38: 2.177647059
A39: 5/26/99 | B39: 1999-05-27 | C39: 2.218907563
A40: 5/27/99 | B40: 1999-05-28 | C40: 2.255022831
A41: 5/28/99 | B41: 1999-05-29 | C41: 2.2
A42: 6/1/99 | B42: 1999-06-02 | C42: 2.322305389
A43: 6/2/99 | B43: 1999-06-03 | C43: 2.358490566
A44: 6/3/99 | B44: 1999-06-04 | C44: 2.369
A45: 6/4/99 | B45: 1999-06-05 | C45: 2.32
A46: 6/7/99 | B46: 1999-06-08 | C46: 2.415555556
A47: 6/8/99 | B47: 1999-06-09 | C47: 2.379166667
A48: 6/9/99 | B48: 1999-06-10 | C48: 2.362702703
A49: 6/10/99 | B49: 1999-06-11 | C49: 2.376865672
A50: 6/11/99 | B50: 1999-06-12 | C50: 2.31
A51: 6/14/99 | B51: 1999-06-15 | C51: 2.294464286
A52: 6/15/99 | B52: 1999-06-16 | C52: 2.2825
A53: 6/16/99 | B53: 1999-06-17 | C53: 2.284292845
A54: 6/17/99 | B54: 1999-06-18 | C54: 2.239130435
A55: 6/18/99 | B55: 1999-06-19 | C55: 2.25
A56: 6/21/99 | B56: 1999-06-22 | C56: 2.215
A57: 6/22/99 | B57: 1999-06-23 | C57: 2.224152249
A58: 6/23/99 | B58: 1999-06-24 | C58: 2.239705882
A59: 6/24/99 | B59: 1999-06-25 | C59: 2.2516
A60: 6/25/99 | B60: 1999-06-26 | C60: 2.287241379
A61: 6/28/99 | B61: 1999-06-29 | C61: 2.247037037
A62: 6/29/99 | B62: 1999-06-30 | C62: 2.327417219
A63: 6/30/99 | B63: 1999-07-01 | C63: 2.31246988
A64: 7/1/99 | B64: 1999-07-02 | C64: 2.272051282
A65: 7/2/99 | B65: 1999-07-03 | C65: 2.266666667
A66: 7/6/99 | B66: 1999-07-07 | C66: 2.256153846
A67: 7/7/99 | B67: 1999-07-08 | C67: 2.190361446
A68: 7/8/99 | B68: =A68+1 -> 1999-07-09 | C68: 2.18421875
A69: 7/9/99 | B69: 1999-07-10 | C69: 2.152608696
A70: 7/12/99 | B70: 1999-07-13 | C70: 2.115577889
A71: 7/13/99 | B71: 1999-07-14 | C71: 2.130909091
A72: 7/14/99 | B72: 1999-07-15 | C72: 2.150522876
A73: 7/15/99 | B73: 1999-07-16 | C73: 2.120204082
A74: 7/16/99 | B74: 1999-07-17 | C74: 2.175
A75: 7/19/99 | B75: 1999-07-20 | C75: 2.182307692
A76: 7/20/99 | B76: 1999-07-21 | C76: 2.227286822
A77: 7/21/99 | B77: 1999-07-22 | C77: 2.25
A78: 7/22/99 | B78: 1999-07-23 | C78: 2.308333333
A79: 7/23/99 | B79: 1999-07-24 | C79: 2.429354839
A80: 7/26/99 | B80: 1999-07-27 | C80: 2.537941176
A81: 7/27/99 | B81: 1999-07-28 | C81: 2.53923913
A82: 7/28/99 | B82: 1999-07-29 | C82: 2.575507246
A83: 7/29/99 | B83: 1999-07-30 | C83: 2.668989899
A84: 7/30/99 | B84: 1999-07-31 | C84: 2.56
A85: 8/2/99 | B85: 1999-08-03 | C85: 2.508549618
A86: 8/3/99 | B86: 1999-08-04 | C86: 2.59
A87: 8/4/99 | B87: 1999-08-05 | C87: 2.63001996
A88: 8/5/99 | B88: 1999-08-06 | C88: 2.661
A89: 8/6/99 | B89: 1999-08-07 | C89: 2.680645161
A90: 8/9/99 | B90: 1999-08-10 | C90: 2.721212121
A91: 8/10/99 | B91: 1999-08-11 | C91: 2.76293578
A92: 8/11/99 | B92: 1999-08-12 | C92: 2.779054054
A93: 8/12/99 | B93: 1999-08-13 | C93: 2.749722222
A94: 8/13/99 | B94: 1999-08-14 | C94: 2.702916667
A95: 8/16/99 | B95: 1999-08-17 | C95: 2.730231214
A96: 8/17/99 | B96: 1999-08-18 | C96: 2.698415418
A97: 8/18/99 | B97: 1999-08-19 | C97: 2.749338843
A98: 8/19/99 | B98: 1999-08-20 | C98: 2.87
A99: 8/20/99 | B99: 1999-08-21 | C99: 2.955955056
A100: 8/23/99 | B100: 1999-08-24 | C100: 2.938239437
A101: 8/24/99 | B101: 1999-08-25 | C101: 3.006728972
A102: 8/25/99 | B102: 1999-08-26 | C102: 3.079313725
A103: 8/26/99 | B103: 1999-08-27 | C103: 2.973802817
A104: 8/27/99 | B104: 1999-08-28 | C104: 2.86
A105: 8/30/99 | B105: 1999-08-31 | C105: 2.849
A106: 8/31/99 | B106: 1999-09-01 | C106: 2.886220472
A107: 9/1/99 | B107: 1999-09-02 | C107: 2.725929204
A108: 9/2/99 | B108: 1999-09-03 | C108: 2.571751825
A109: 9/3/99 | B109: 1999-09-04 | C109: 2.47
A110: 9/7/99 | B110: 1999-09-08 | C110: 2.564690265
A111: 9/8/99 | B111: 1999-09-09 | C111: 2.666153846
A112: 9/9/99 | B112: 1999-09-10 | C112: 2.755364583
A113: 9/10/99 | B113: 1999-09-11 | C113: 2.841304348
A114: 9/13/99 | B114: 1999-09-14 | C114: 2.832051282
A115: 9/14/99 | B115: 1999-09-15 | C115: 2.664146341
A116: 9/15/99 | B116: 1999-09-16 | C116: 2.52557377
A117: 9/16/99 | B117: 1999-09-17 | C117: 2.488194444
A118: 9/17/99 | B118: 1999-09-18 | C118: 2.4709375
A119: 9/20/99 | B119: 1999-09-21 | C119: 2.494827586
A120: 9/21/99 | B120: 1999-09-22 | C120: 2.3135
A121: 9/22/99 | B121: 1999-09-23 | C121: 2.300900901
A122: 9/23/99 | B122: 1999-09-24 | C122: 2.493535354
A123: 9/24/99 | B123: 1999-09-25 | C123: 2.577619048
A124: 9/27/99 | B124: 1999-09-28 | C124: 2.510661157
A125: 9/28/99 | B125: 1999-09-29 | C125: 2.532992701
A126: 9/29/99 | B126: 1999-09-30 | C126: 2.570393701
A127: 9/30/99 | B127: 1999-10-01 | C127: 2.333090909
A128: 10/1/99 | B128: 1999-10-02 | C128: 2.348656716
A129: 10/4/99 | B129: 1999-10-05 | C129: 2.468378378
A130: 10/5/99 | B130: 1999-10-06 | C130: 2.440957447
A131: 10/6/99 | B131: 1999-10-07 | C131: 2.471690141
A132: 10/7/99 | B132: =A132+1 -> 1999-10-08 | C132: 2.496833333
A133: 10/8/99 | B133: 1999-10-09 | C133: 2.349166667
A134: 10/11/99 | B134: 1999-10-12 | C134: 2.52
A135: 10/12/99 | B135: 1999-10-13 | C135: 2.651731928
A136: 10/13/99 | B136: 1999-10-14 | C136: 2.802461538
A137: 10/14/99 | B137: 1999-10-15 | C137: 2.708728324
A138: 10/15/99 | B138: 1999-10-16 | C138: 2.656666667
A139: 10/18/99 | B139: 1999-10-19 | C139: 2.817478992
A140: 10/19/99 | B140: 1999-10-20 | C140: 2.888493151
A141: 10/20/99 | B141: 1999-10-21 | C141: 2.900851064
A142: 10/21/99 | B142: 1999-10-22 | C142: 2.990457516
A143: 10/22/99 | B143: 1999-10-23 | C143: 3.004
A144: 10/25/99 | B144: 1999-10-26 | C144: 2.976610169
A145: 10/26/99 | B145: 1999-10-27 | C145: 2.971805556
A146: 10/27/99 | B146: 1999-10-28 | C146: 3.02
A147: 10/28/99 | B147: 1999-10-29 | C147: 2.996115702
A148: 10/29/99 | B148: 1999-10-30 | C148: 2.79755102
A149: 11/1/99 | B149: 1999-11-02 | C149: 2.744666667
A150: 11/2/99 | B150: 1999-11-03 | C150: 2.814461538
A151: 11/3/99 | B151: 1999-11-04 | C151: 2.852241379
A152: 11/4/99 | B152: 1999-11-05 | C152: 2.745495495
A153: 11/5/99 | B153: 1999-11-06 | C153: 2.638809524
A154: 11/8/99 | B154: 1999-11-09 | C154: 2.601666667
A155: 11/9/99 | B155: 1999-11-10 | C155: 2.453493516
A156: 11/10/99 | B156: 1999-11-11 | C156: 2.397496229
A157: 11/11/99 | B157: 1999-11-12 | C157: 2.393021393
A158: 11/12/99 | B158: 1999-11-13 | C158: 2.150242131
A159: 11/15/99 | B159: 1999-11-16 | C159: 2.316444444
A160: 11/16/99 | B160: 1999-11-17 | C160: 2.229685718
A161: 11/17/99 | B161: 1999-11-18 | C161: 2.247429795
A162: 11/18/99 | B162: 1999-11-19 | C162: 2.223592737
A163: 11/19/99 | B163: 1999-11-20 | C163: 2.155918367
A164: 11/22/99 | B164: 1999-11-23 | C164: 2.041810345
A165: 11/23/99 | B165: 1999-11-24 | C165: 1.99
A166: 11/24/99 | B166: 1999-11-25 | C166: 1.936495726
A167: 11/29/99 | B167: 1999-11-30 | C167: 2.217802198
A168: 11/30/99 | B168: 1999-12-01 | C168: 2.20308642
A169: 12/1/99 | B169: 1999-12-02 | C169: 2.182666244
A170: 12/2/99 | B170: 1999-12-03 | C170: 2.1855
A171: 12/3/99 | B171: 1999-12-04 | C171: 2.177241379
A172: 12/6/99 | B172: 1999-12-07 | C172: 2.178409091
A173: 12/7/99 | B173: 1999-12-08 | C173: 2.165660377
A174: 12/8/99 | B174: 1999-12-09 | C174: 2.235504587
A175: 12/9/99 | B175: 1999-12-10 | C175: 2.208461538
A176: 12/10/99 | B176: 1999-12-11 | C176: 2.269672131
A177: 12/13/99 | B177: 1999-12-14 | C177: 2.336533333
A178: 12/14/99 | B178: 1999-12-15 | C178: 2.492104283
A179: 12/15/99 | B179: 1999-12-16 | C179: 2.571160714
A180: 12/16/99 | B180: 1999-12-17 | C180: 2.52407767
A181: 12/17/99 | B181: 1999-12-18 | C181: 2.56045208
A182: 12/20/99 | B182: 1999-12-21 | C182: 2.673326001
A183: 12/21/99 | B183: 1999-12-22 | C183: 2.61
A184: 12/22/99 | B184: 1999-12-23 | C184: 2.437027027
A185: 12/23/99 | B185: 1999-12-24 | C185: 2.44
A186: 12/27/99 | B186: 1999-12-28 | C186: 2.360315789
A187: 12/28/99 | B187: 1999-12-29 | C187: 2.32047619
A188: 12/29/99 | B188: 1999-12-30 | C188: 2.342790698
A189: 12/30/99 | B189: 1999-12-31 | C189: 2.307207703
A190: 1/3/00 | B190: 2000-01-04 | C190: 2.171818182
A191: 1/4/00 | B191: 2000-01-05 | C191: 2.146122449
A192: 1/5/00 | B192: 2000-01-06 | C192: 2.165054945
A193: 1/6/00 | B193: 2000-01-07 | C193: 2.174561404
A194: 1/7/00 | B194: 2000-01-08 | C194: 2.19
A195: 1/10/00 | B195: 2000-01-11 | C195: 2.189236641
A196: 1/11/00 | B196: =A196+1 -> 2000-01-12 | C196: 2.233075995
A197: 1/12/00 | B197: 2000-01-13 | C197: 2.25344086
A198: 1/13/00 | B198: 2000-01-14 | C198: 2.277216495
A199: 1/14/00 | B199: 2000-01-15 | C199: 2.278095238
A200: 1/18/00 | B200: 2000-01-19 | C200: 2.339722222
... 4300 more rows

Sheet H Hub Daily Input
A1: Trans.Date | B1: Flow Date
C2: Henry Hub Dailies during Bidweek (Yr-end price is "blue" diamond) | D2: Henry Hub Monthly Avg.
A3: 4/6/99 | B3: =A3+1 -> 1999-04-07 | D3: 2.07
A4: 4/15/99 | B4: =A4+1 -> 1999-04-16 | D4: 2.07
A5: 4/22/99 | B5: 1999-04-23 | C5: 2.253288591
A6: 4/23/99 | B6: 1999-04-24 | C6: 2.24
A7: 4/26/99 | B7: 1999-04-27 | C7: 2.23
A8: 4/27/99 | B8: 1999-04-28 | C8: 2.328387097
A9: 4/28/99 | B9: 1999-04-29 | C9: 2.316766917
A10: 4/29/99 | B10: 1999-04-30 | C10: 2.346451613 | D10: 2.07
A11: 4/30/99 | B11: 1999-05-01 | D11: 2.27
A12: 5/14/99 | B12: 1999-05-15 | D12: 2.27
A13: 5/21/99 | B13: 1999-05-22 | C13: 2.22137931
A14: 5/24/99 | B14: 1999-05-25 | C14: 2.193880837
A15: 5/25/99 | B15: 1999-05-26 | C15: 2.177647059
A16: 5/26/99 | B16: 1999-05-27 | C16: 2.218907563
A17: 5/27/99 | B17: 1999-05-28 | C17: 2.255022831
A18: 5/28/99 | B18: 1999-05-29 | C18: 2.2 | D18: 2.27
A19: 6/1/99 | B19: 1999-06-02 | D19: 2.3
A20: 6/14/99 | B20: 1999-06-15 | D20: 2.3
A21: 6/22/99 | B21: 1999-06-23 | C21: 2.224152249
A22: 6/23/99 | B22: 1999-06-24 | C22: 2.239705882
A23: 6/24/99 | B23: 1999-06-25 | C23: 2.2516
A24: 6/25/99 | B24: 1999-06-26 | C24: 2.287241379
A25: 6/28/99 | B25: 1999-06-29 | C25: 2.247037037
A26: 6/29/99 | B26: 1999-06-30 | C26: 2.327417219 | D26: 2.3
A27: 6/30/99 | B27: 1999-07-01 | D27: 2.23
A28: 7/14/99 | B28: =A28+1 -> 1999-07-15 | D28: 2.23
A29: 7/23/99 | B29: 1999-07-24 | C29: 2.429354839
A30: 7/26/99 | B30: 1999-07-27 | C30: 2.537941176
A31: 7/27/99 | B31: 1999-07-28 | C31: 2.53923913
A32: 7/28/99 | B32: 1999-07-29 | C32: 2.575507246
A33: 7/29/99 | B33: 1999-07-30 | C33: 2.668989899
A34: 7/30/99 | B34: 1999-07-31 | C34: 2.56 | D34: 2.23
A35: 8/2/99 | B35: 1999-08-03 | D35: 2.74
A36: 8/16/99 | B36: 1999-08-17 | D36: 2.74
A37: 8/23/99 | B37: 1999-08-24 | C37: 2.938239437
A38: 8/24/99 | B38: 1999-08-25 | C38: 3.006728972
A39: 8/25/99 | B39: 1999-08-26 | C39: 3.079313725
A40: 8/26/99 | B40: 1999-08-27 | C40: 2.973802817
A41: 8/27/99 | B41: 1999-08-28 | C41: 2.86
A42: 8/30/99 | B42: 1999-08-31 | C42: 2.849 | D42: 2.74
A43: 8/31/99 | B43: 1999-09-01 | D43: 2.63
A44: 9/14/99 | B44: 1999-09-15 | D44: 2.63
A45: 9/22/99 | B45: 1999-09-23 | C45: 2.300900901
A46: 9/23/99 | B46: 1999-09-24 | C46: 2.493535354
A47: 9/24/99 | B47: 1999-09-25 | C47: 2.577619048
A48: 9/27/99 | B48: 1999-09-28 | C48: 2.510661157
A49: 9/28/99 | B49: 1999-09-29 | C49: 2.532992701
A50: 9/29/99 | B50: 1999-09-30 | C50: 2.570393701 | D50: 2.63
A51: 9/30/99 | B51: 1999-10-01 | D51: 2.63
A52: 10/14/99 | B52: =A52+1 -> 1999-10-15 | D52: 2.63
A53: 10/22/99 | B53: 1999-10-23 | C53: 3.004
A54: 10/25/99 | B54: 1999-10-26 | C54: 2.976610169
A55: 10/26/99 | B55: 1999-10-27 | C55: 2.971805556
A56: 10/27/99 | B56: 1999-10-28 | C56: 3.02
A57: 10/28/99 | B57: 1999-10-29 | C57: 2.996115702
A58: 10/29/99 | B58: 1999-10-30 | C58: 2.79755102 | D58: 2.63
A59: 11/1/99 | B59: 1999-11-02 | D59: 2.54
A60: 11/12/99 | B60: 1999-11-13 | D60: 2.54
A61: 11/19/99 | B61: 1999-11-20 | C61: 2.155918367
A62: 11/22/99 | B62: 1999-11-23 | C62: 2.041810345
A63: 11/23/99 | B63: 1999-11-24 | C63: 1.99
A64: 11/24/99 | B64: 1999-11-25 | C64: 1.936495726
A65: 11/29/99 | B65: 1999-11-30 | C65: 2.217802198 | D65: 2.54
A66: 11/30/99 | B66: 1999-12-01 | D66: 2.35
A67: 12/14/99 | B67: 1999-12-15 | D67: 2.35
A68: 12/22/99 | B68: 1999-12-23 | C68: 2.437027027
A69: 12/23/99 | B69: 1999-12-24 | C69: 2.44
A70: 12/27/99 | B70: 1999-12-28 | C70: 2.360315789
A71: 12/28/99 | B71: 1999-12-29 | C71: 2.32047619
A72: 12/29/99 | B72: 1999-12-30 | C72: 2.342790698
A73: 12/30/99 | B73: 1999-12-31 | C73: 2.307207703 | D73: 2.35 | F73: Friday
A74: 1/3/00 | B74: 2000-01-04 | D74: 2.37
A75: 1/14/00 | B75: =A75+1 -> 2000-01-15 | D75: 2.37
A76: 1/21/00 | B76: 2000-01-22 | C76: 2.541710526
A77: 1/24/00 | B77: 2000-01-25 | C77: 2.545164189
A78: 1/25/00 | B78: 2000-01-26 | C78: 2.647241379
A79: 1/26/00 | B79: 2000-01-27 | C79: 2.741246334
A80: 1/27/00 | B80: 2000-01-28 | C80: 2.736456693
A81: 1/28/00 | B81: 2000-01-29 | C81: 2.83 | D81: 2.37
A82: 1/31/00 | B82: 2000-02-01 | D82: 2.66
A83: 2/10/00 | B83: 2000-02-11 | D83: 2.66
A84: 3/7/00 | B84: 2000-03-08 | D84: 2.75
A85: 3/11/00 | B85: 2000-03-12 | D85: 2.75
A86: 4/10/00 | B86: 2000-04-11 | D86: 2.99
A87: 4/14/00 | B87: 2000-04-15 | D87: 2.99
A88: 4/20/00 | B88: 2000-04-21 | C88: 3.085
A89: 4/24/00 | B89: 2000-04-25 | C89: 3.126648045
A90: 4/25/00 | B90: 2000-04-26 | C90: 3.156039604
A91: 4/26/00 | B91: 2000-04-27 | C91: 3.126190476
A92: 4/27/00 | B92: 2000-04-28 | C92: 3.048478261
A93: 4/28/00 | B93: 2000-04-29 | C93: 3.093529412 | D93: 2.99
A94: 5/1/00 | B94: 2000-05-02 | D94: 3.47
A95: 5/15/00 | B95: 2000-05-16 | D95: 3.47
A96: 5/23/00 | B96: 2000-05-24 | C96: 3.852666667
A97: 5/24/00 | B97: 2000-05-25 | C97: 3.938057644
A98: 5/25/00 | B98: 2000-05-26 | C98: 4.170759076
A99: 5/26/00 | B99: 2000-05-27 | C99: 4.266973684
A100: 5/30/00 | B100: 2000-05-31 | C100: 4.358461538 | D100: 3.47
A101: 5/31/00 | B101: 2000-06-01 | D101: 4.3
A102: 6/14/00 | B102: =A102+1 -> 2000-06-15 | D102: 4.3
A103: 6/22/00 | B103: 2000-06-23 | C103: 4.417111111
A104: 6/23/00 | B104: 2000-06-24 | C104: 4.415
A105: 6/26/00 | B105: 2000-06-27 | C105: 4.371176471
A106: 6/27/00 | B106: 2000-06-28 | C106: 4.532592593
A107: 6/28/00 | B107: 2000-06-29 | C107: 4.470845588
A108: 6/29/00 | B108: 2000-06-30 | C108: 4.26 | D108: 4.3
A109: 6/30/00 | B109: 2000-07-01 | D109: 4.1
A110: 7/14/00 | B110: 2000-07-15 | D110: 4.1
A111: 7/21/00 | B111: 2000-07-22 | C111: 3.897975376
A112: 7/24/00 | B112: 2000-07-25 | C112: 3.747926829
A113: 7/25/00 | B113: 2000-07-26 | C113: 3.642151899
A114: 7/26/00 | B114: 2000-07-27 | C114: 3.588914729
A115: 7/27/00 | B115: 2000-07-28 | C115: 3.76
A116: 7/28/00 | B116: 2000-07-29 | C116: 3.906923077 | D116: 4.1
A117: 7/31/00 | B117: 2000-08-01 | D117: 4.35
A118: 8/14/00 | B118: 2000-08-15 | D118: 4.35
A119: 8/22/00 | B119: 2000-08-23 | C119: 4.790452941
A120: 8/23/00 | B120: 2000-08-24 | C120: 4.707333333
A121: 8/24/00 | B121: 2000-08-25 | C121: 4.502961276
A122: 8/25/00 | B122: 2000-08-26 | C122: 4.538734322
A123: 8/28/00 | B123: 2000-08-29 | C123: 4.641586402
A124: 8/29/00 | B124: 2000-08-30 | C124: 4.612924411
A125: 8/30/00 | B125: 2000-08-31 | C125: 4.607619048 | D125: 4.35
A126: 8/31/00 | B126: 2000-09-01 | D126: 5.01
A127: 9/14/00 | B127: =A127+1 -> 2000-09-15 | D127: 5.01
A128: 9/22/00 | B128: =A128+1 -> 2000-09-23 | C128: 5.164588408
A129: 9/25/00 | B129: 2000-09-26 | C129: 5.102416763
A130: 9/26/00 | B130: 2000-09-27 | C130: 5.290026935
A131: 9/27/00 | B131: 2000-09-28 | C131: 5.33855317
A132: 9/28/00 | B132: 2000-09-29 | C132: 5.195109193
A133: 9/29/00 | B133: 2000-09-30 | C133: 5.127608696 | D133: 5.01
A134: 10/2/00 | B134: 2000-10-03 | D134: 5.11
A135: 10/13/00 | B135: 2000-10-14 | D135: 5.11
A136: 10/23/00 | B136: 2000-10-24 | C136: 4.803213457
A137: 10/24/00 | B137: 2000-10-25 | C137: 4.841254369
A138: 10/25/00 | B138: 2000-10-26 | C138: 4.652109884
A139: 10/26/00 | B139: 2000-10-27 | C139: 4.606892871
A140: 10/27/00 | B140: 2000-10-28 | C140: 4.47
A141: 10/30/00 | B141: 2000-10-31 | C141: 4.548061097 | D141: 5.11
A142: 10/31/00 | B142: 2000-11-01 | D142: 5.52
A143: 11/14/00 | B143: 2000-11-15 | D143: 5.52
A144: 11/21/00 | B144: 2000-11-22 | C144: 6.348571429
A145: 11/22/00 | B145: 2000-11-23 | C145: 6.304973653
A146: 11/27/00 | B146: 2000-11-28 | C146: 6.226948424
A147: 11/28/00 | B147: 2000-11-29 | C147: 5.907019861
A148: 11/29/00 | B148: 2000-11-30 | C148: 5.926087237 | D148: 5.52
A149: 11/30/00 | B149: 2000-12-01 | D149: 8.08
A150: 12/14/00 | B150: =A150+1 -> 2000-12-15 | D150: 8.08
A151: 12/20/00 | B151: =A151+1 -> 2000-12-21 | C151: 9.936059603
A152: 12/21/00 | B152: 2000-12-22 | C152: 10.47583333
A153: 12/22/00 | B153: 2000-12-23 | C153: 10.40186916
A154: 12/26/00 | B154: 2000-12-27 | C154: 10.15493518
A155: 12/27/00 | B155: 2000-12-28 | C155: 9.56183642
A156: 12/28/00 | B156: 2000-12-29 | C156: 9.213671745 | F156: Friday
A157: 12/29/00 | B157: 2000-12-30 | C157: 9.954576623 | D157: 8.08
A158: 1/2/01 | B158: 2001-01-03 | D158: 9.13
A159: 2001-01-14 | B159: 2001-01-15 | D159: 9.13
A160: 1/22/01 | B160: 2001-01-23 | C160: 7.702564103
A161: 1/23/01 | B161: 2001-01-24 | C161: 7.047428571
A162: 1/24/01 | B162: 2001-01-25 | C162: 6.924259259
A163: 1/25/01 | B163: 2001-01-26 | C163: 7.295555556
A164: 1/26/01 | B164: 2001-01-27 | C164: 7.03
A165: 1/29/01 | B165: 2001-01-30 | C165: 6.556363636
A166: 1/30/01 | B166: 2001-01-31 | C166: 5.925365854 | D166: 9.13
A167: 1/31/01 | B167: 2001-02-01 | D167: 5.73
A168: 2/14/01 | B168: 2001-02-15 | D168: 5.73
A169: 2/20/01 | B169: 2001-02-21 | C169: 5.184924586
A170: 2/21/01 | B170: 2001-02-22 | C170: 5.191509769
A171: 2/22/01 | B171: 2001-02-23 | C171: 5.111509233
A172: 2/23/01 | B172: 2001-02-24 | C172: 5.036974426
A173: 2/26/01 | B173: 2001-02-27 | C173: 5.044174936
A174: 2/27/01 | B174: 2001-02-28 | C174: 5.065154194 | D174: 5.73
A175: 2/28/01 | B175: 2001-03-01 | D175: 5.12
A176: 3/14/01 | B176: 2001-03-15 | D176: 5.12
A177: 3/23/01 | B177: 2001-03-24 | C177: 5.203892379
A178: 3/26/01 | B178: 2001-03-27 | C178: 5.226923077
A179: 3/27/01 | B179: 2001-03-28 | C179: 5.408002068
A180: 3/28/01 | B180: 2001-03-29 | C180: 5.587272727
A181: 3/29/01 | B181: 2001-03-30 | C181: 5.329892239
A182: 3/30/01 | B182: 2001-03-31 | C182: 5.288786589 | D182: 5.12
A183: 2001-03-31 | B183: 2001-04-01 | D183: 5.23
A184: 2001-04-14 | B184: 2001-04-15 | D184: 5.23
A185: 4/20/01 | B185: =A185+1 -> 2001-04-21 | C185: 4.995090016
A186: 4/23/01 | B186: 2001-04-24 | C186: 5.073938095
A187: 4/24/01 | B187: 2001-04-25 | C187: 5.12
A188: 4/25/01 | B188: 2001-04-26 | C188: 4.990569801
A189: 4/26/01 | B189: 2001-04-27 | C189: 4.922727103
A190: 4/27/01 | B190: 2001-04-28 | C190: 4.8270767 | D190: 5.23
A191: 2001-04-30 | B191: 2001-05-01 | D191: 4.18
A192: 2001-05-14 | B192: 2001-05-15 | D192: 4.18
A193: 5/22/01 | B193: 2001-05-23 | C193: 4.034423077
A194: 5/23/01 | B194: 2001-05-24 | C194: 4.070576923
A195: 5/24/01 | B195: 2001-05-25 | C195: 4.122036649
A196: 5/25/01 | B196: 2001-05-26 | C196: 3.834180328
A197: 5/29/01 | B197: 2001-05-30 | C197: 3.843329114
A198: 5/30/01 | B198: 2001-05-31 | C198: 3.667016129 | D198: 4.18
A199: 2001-05-31 | B199: 2001-06-01 | D199: 3.78
A200: 2001-06-14 | B200: 2001-06-15 | D200: 3.78
... 2880 more rows

Sheet Newsletter Input
A6: ='Monthly AVG OIL'!A1 -> Date | B6: ='Monthly AVG OIL'!D1 -> MONTHLY AVERAGE SPOT
B7: WTI @ Cushing Spot | C7: Europe Brent Crude F.O.B. | D7: Henry Hub SPOT | E7: AECO - $US | F7: WTI Cushing Spot Forecast | G7: Henry Hub Forecast
A8: ='Monthly AVG OIL'!A3 -> 1994-04-30 | B8: ='Monthly AVG OIL'!E3 -> 0 | C8: ='Monthly AVG OIL'!D3 -> 0 | D8: ='Gas Monthly Avg& Bidweek Prices'!B45 -> 2.04
A9: ='Monthly AVG OIL'!A4 -> 1994-05-31 | B9: ='Monthly AVG OIL'!E4 -> 0 | C9: ='Monthly AVG OIL'!D4 -> 0 | D9: ='Gas Monthly Avg& Bidweek Prices'!B46 -> 1.92
A10: ='Monthly AVG OIL'!A5 -> 1994-06-30 | B10: ='Monthly AVG OIL'!E5 -> 0 | C10: ='Monthly AVG OIL'!D5 -> 0 | D10: ='Gas Monthly Avg& Bidweek Prices'!B47 -> 1.9
A11: ='Monthly AVG OIL'!A6 -> 1994-07-31 | B11: ='Monthly AVG OIL'!E6 -> 0 | C11: ='Monthly AVG OIL'!D6 -> 0 | D11: ='Gas Monthly Avg& Bidweek Prices'!B48 -> 1.96
A12: ='Monthly AVG OIL'!A7 -> 1994-08-31 | B12: ='Monthly AVG OIL'!E7 -> 0 | C12: ='Monthly AVG OIL'!D7 -> 0 | D12: ='Gas Monthly Avg& Bidweek Prices'!B49 -> 1.66
A13: ='Monthly AVG OIL'!A8 -> 1994-09-30 | B13: ='Monthly AVG OIL'!E8 -> 0 | C13: ='Monthly AVG OIL'!D8 -> 0 | D13: ='Gas Monthly Avg& Bidweek Prices'!B50 -> 1.49
A14: ='Monthly AVG OIL'!A9 -> 1994-10-31 | D14: ='Gas Monthly Avg& Bidweek Prices'!B51 -> 1.51
A15: ='Monthly AVG OIL'!A10 -> 1994-11-30 | D15: ='Gas Monthly Avg& Bidweek Prices'!B52 -> 1.58
A16: ='Monthly AVG OIL'!A11 -> 1994-12-31 | D16: ='Gas Monthly Avg& Bidweek Prices'!B53 -> 1.72
A17: ='Monthly AVG OIL'!A12 -> 1995-01-31 | B17: ='Monthly AVG OIL'!E12 -> 17.97 | C17: ='Monthly AVG OIL'!D12 -> 16.59 | D17: ='Gas Monthly Avg& Bidweek Prices'!B54 -> 1.48
A18: ='Monthly AVG OIL'!A13 -> 1995-02-28 | B18: ='Monthly AVG OIL'!E13 -> 18.6 | C18: ='Monthly AVG OIL'!D13 -> 17.15 | D18: ='Gas Monthly Avg& Bidweek Prices'!B55 -> 1.54
A19: ='Monthly AVG OIL'!A14 -> 1995-03-31 | B19: ='Monthly AVG OIL'!E14 -> 18.51 | C19: ='Monthly AVG OIL'!D14 -> 16.98 | D19: ='Gas Monthly Avg& Bidweek Prices'!B56 -> 1.52
A20: ='Monthly AVG OIL'!A15 -> 1995-04-30 | B20: ='Monthly AVG OIL'!E15 -> 19.82 | C20: ='Monthly AVG OIL'!D15 -> 18.61 | D20: ='Gas Monthly Avg& Bidweek Prices'!B57 -> 1.59
A21: ='Monthly AVG OIL'!A16 -> 1995-05-31 | B21: ='Monthly AVG OIL'!E16 -> 19.68 | C21: ='Monthly AVG OIL'!D16 -> 18.34 | D21: ='Gas Monthly Avg& Bidweek Prices'!B58 -> 1.64
A22: ='Monthly AVG OIL'!A17 -> 1995-06-30 | B22: ='Monthly AVG OIL'!E17 -> 18.45 | C22: ='Monthly AVG OIL'!D17 -> 17.34 | D22: ='Gas Monthly Avg& Bidweek Prices'!B59 -> 1.65
A23: ='Monthly AVG OIL'!A18 -> 1995-07-31 | B23: ='Monthly AVG OIL'!E18 -> 17.25 | C23: ='Monthly AVG OIL'!D18 -> 15.8 | D23: ='Gas Monthly Avg& Bidweek Prices'!B60 -> 1.44
A24: ='Monthly AVG OIL'!A19 -> 1995-08-31 | B24: ='Monthly AVG OIL'!E19 -> 17.82 | C24: ='Monthly AVG OIL'!D19 -> 16.05 | D24: ='Gas Monthly Avg& Bidweek Prices'!B61 -> 1.56
A25: ='Monthly AVG OIL'!A20 -> 1995-09-30 | B25: ='Monthly AVG OIL'!E20 -> 18.17 | C25: ='Monthly AVG OIL'!D20 -> 16.7 | D25: ='Gas Monthly Avg& Bidweek Prices'!B62 -> 1.63
A26: ='Monthly AVG OIL'!A21 -> 1995-10-31 | B26: ='Monthly AVG OIL'!E21 -> 17.39 | C26: ='Monthly AVG OIL'!D21 -> 16.1 | D26: ='Gas Monthly Avg& Bidweek Prices'!B63 -> 1.76
A27: ='Monthly AVG OIL'!A22 -> 1995-11-30 | B27: ='Monthly AVG OIL'!E22 -> 18.02 | C27: ='Monthly AVG OIL'!D22 -> 16.82 | D27: ='Gas Monthly Avg& Bidweek Prices'!B64 -> 1.98
A28: ='Monthly AVG OIL'!A23 -> 1995-12-31 | B28: ='Monthly AVG OIL'!E23 -> 19.07 | C28: ='Monthly AVG OIL'!D23 -> 18 | D28: ='Gas Monthly Avg& Bidweek Prices'!B65 -> 2.45
A29: ='Monthly AVG OIL'!A24 -> 1996-01-31 | B29: ='Monthly AVG OIL'!E24 -> 18.8 | C29: ='Monthly AVG OIL'!D24 -> 17.93 | D29: ='Gas Monthly Avg& Bidweek Prices'!B66 -> 2.92
A30: ='Monthly AVG OIL'!A25 -> 1996-02-29 | B30: ='Monthly AVG OIL'!E25 -> 18.7 | C30: ='Monthly AVG OIL'!D25 -> 17.98 | D30: ='Gas Monthly Avg& Bidweek Prices'!B67 -> 4.41
A31: ='Monthly AVG OIL'!A26 -> 1996-03-31 | B31: ='Monthly AVG OIL'!E26 -> 21.09 | C31: ='Monthly AVG OIL'!D26 -> 19.95 | D31: ='Gas Monthly Avg& Bidweek Prices'!B68 -> 3
A32: ='Monthly AVG OIL'!A27 -> 1996-04-30 | B32: ='Monthly AVG OIL'!E27 -> 23.29 | C32: ='Monthly AVG OIL'!D27 -> 20.93 | D32: ='Gas Monthly Avg& Bidweek Prices'!B69 -> 2.71
A33: ='Monthly AVG OIL'!A28 -> 1996-05-31 | B33: ='Monthly AVG OIL'!E28 -> 21.09 | C33: ='Monthly AVG OIL'!D28 -> 19.11 | D33: ='Gas Monthly Avg& Bidweek Prices'!B70 -> 2.21
A34: ='Monthly AVG OIL'!A29 -> 1996-06-30 | B34: ='Monthly AVG OIL'!E29 -> 20.37 | C34: ='Monthly AVG OIL'!D29 -> 18.38 | D34: ='Gas Monthly Avg& Bidweek Prices'!B71 -> 2.43
A35: ='Monthly AVG OIL'!A30 -> 1996-07-31 | B35: ='Monthly AVG OIL'!E30 -> 21.2 | C35: ='Monthly AVG OIL'!D30 -> 19.6 | D35: ='Gas Monthly Avg& Bidweek Prices'!B72 -> 2.57
A36: ='Monthly AVG OIL'!A31 -> 1996-08-31 | B36: ='Monthly AVG OIL'!E31 -> 21.91 | C36: ='Monthly AVG OIL'!D31 -> 20.56 | D36: ='Gas Monthly Avg& Bidweek Prices'!B73 -> 2.12
A37: ='Monthly AVG OIL'!A32 -> 1996-09-30 | B37: ='Monthly AVG OIL'!E32 -> 23.88 | C37: ='Monthly AVG OIL'!D32 -> 22.64 | D37: ='Gas Monthly Avg& Bidweek Prices'!B74 -> 1.84
A38: ='Monthly AVG OIL'!A33 -> 1996-10-31 | B38: ='Monthly AVG OIL'!E33 -> 24.93 | C38: ='Monthly AVG OIL'!D33 -> 24.17 | D38: ='Gas Monthly Avg& Bidweek Prices'!B75 -> 2.27
A39: ='Monthly AVG OIL'!A34 -> 1996-11-30 | B39: ='Monthly AVG OIL'!E34 -> 23.59 | C39: ='Monthly AVG OIL'!D34 -> 22.7 | D39: ='Gas Monthly Avg& Bidweek Prices'!B76 -> 2.82
A40: ='Monthly AVG OIL'!A35 -> 1996-12-31 | B40: ='Monthly AVG OIL'!E35 -> 25.07 | C40: ='Monthly AVG OIL'!D35 -> 23.4 | D40: ='Gas Monthly Avg& Bidweek Prices'!B77 -> 3.78
A41: ='Monthly AVG OIL'!A36 -> 1997-01-31 | B41: ='Monthly AVG OIL'!E36 -> 25.23 | C41: ='Monthly AVG OIL'!D36 -> 23.45 | D41: ='Gas Monthly Avg& Bidweek Prices'!B78 -> 3.47
A42: ='Monthly AVG OIL'!A37 -> 1997-02-28 | B42: ='Monthly AVG OIL'!E37 -> 22.29 | C42: ='Monthly AVG OIL'!D37 -> 20.83 | D42: ='Gas Monthly Avg& Bidweek Prices'!B79 -> 2.55
A43: ='Monthly AVG OIL'!A38 -> 1997-03-31 | B43: ='Monthly AVG OIL'!E38 -> 20.98 | C43: ='Monthly AVG OIL'!D38 -> 19.06 | D43: ='Gas Monthly Avg& Bidweek Prices'!B80 -> 1.88
A44: ='Monthly AVG OIL'!A39 -> 1997-04-30 | B44: ='Monthly AVG OIL'!E39 -> 19.7 | C44: ='Monthly AVG OIL'!D39 -> 17.46 | D44: ='Gas Monthly Avg& Bidweek Prices'!B81 -> 2
A45: ='Monthly AVG OIL'!A40 -> 1997-05-31 | B45: ='Monthly AVG OIL'!E40 -> 20.92 | C45: ='Monthly AVG OIL'!D40 -> 19.07 | D45: ='Gas Monthly Avg& Bidweek Prices'!B82 -> 2.19
A46: ='Monthly AVG OIL'!A41 -> 1997-06-30 | B46: ='Monthly AVG OIL'!E41 -> 19.19 | C46: ='Monthly AVG OIL'!D41 -> 17.58 | D46: ='Gas Monthly Avg& Bidweek Prices'!B83 -> 2.21
A47: ='Monthly AVG OIL'!A42 -> 1997-07-31 | B47: ='Monthly AVG OIL'!E42 -> 19.62 | C47: ='Monthly AVG OIL'!D42 -> 18.37 | D47: ='Gas Monthly Avg& Bidweek Prices'!B84 -> 2.17
A48: ='Monthly AVG OIL'!A43 -> 1997-08-31 | B48: ='Monthly AVG OIL'!E43 -> 19.91 | C48: ='Monthly AVG OIL'!D43 -> 18.81 | D48: ='Gas Monthly Avg& Bidweek Prices'!B85 -> 2.4
A49: ='Monthly AVG OIL'!A44 -> 1997-09-30 | B49: ='Monthly AVG OIL'!E44 -> 19.78 | C49: ='Monthly AVG OIL'!D44 -> 18.45 | D49: ='Gas Monthly Avg& Bidweek Prices'!B86 -> 2.8
A50: ='Monthly AVG OIL'!A45 -> 1997-10-31 | B50: ='Monthly AVG OIL'!E45 -> 21.36 | C50: ='Monthly AVG OIL'!D45 -> 19.89 | D50: ='Gas Monthly Avg& Bidweek Prices'!B87 -> 3.03
A51: ='Monthly AVG OIL'!A46 -> 1997-11-30 | B51: ='Monthly AVG OIL'!E46 -> 20.19 | C51: ='Monthly AVG OIL'!D46 -> 19.21 | D51: ='Gas Monthly Avg& Bidweek Prices'!B88 -> 3.23
A52: ='Monthly AVG OIL'!A47 -> 1997-12-31 | B52: ='Monthly AVG OIL'!E47 -> 18.34 | C52: ='Monthly AVG OIL'!D47 -> 17.11 | D52: ='Gas Monthly Avg& Bidweek Prices'!B89 -> 2.37 | F52: Oil data prior to 1/1/98 is from a MAJOR INDEPENDENT
A53: ='Monthly AVG OIL'!A48 -> 1998-01-30 | B53: ='Monthly AVG OIL'!E48 -> 16.7135 | C53: ='Monthly AVG OIL'!D48 -> 15.204 | D53: ='Gas Monthly Avg& Bidweek Prices'!B90 -> 2.1
A54: ='Monthly AVG OIL'!A49 -> 1998-02-27 | B54: ='Monthly AVG OIL'!E49 -> 16.06263158 | C54: ='Monthly AVG OIL'!D49 -> 14.15947368 | D54: ='Gas Monthly Avg& Bidweek Prices'!B91 -> 2.17
A55: ='Monthly AVG OIL'!A50 -> 1998-03-31 | B55: ='Monthly AVG OIL'!E50 -> 15.02045455 | C55: ='Monthly AVG OIL'!D50 -> 13.11863636 | D55: ='Gas Monthly Avg& Bidweek Prices'!B92 -> 2.23
A56: ='Monthly AVG OIL'!A51 -> 1998-04-30 | B56: ='Monthly AVG OIL'!E51 -> 15.44363636 | C56: ='Monthly AVG OIL'!D51 -> 13.44590909 | D56: ='Gas Monthly Avg& Bidweek Prices'!B93 -> 2.45
A57: ='Monthly AVG OIL'!A52 -> 1998-05-29 | B57: ='Monthly AVG OIL'!E52 -> 14.84714286 | C57: ='Monthly AVG OIL'!D52 -> 14.38952381 | D57: ='Gas Monthly Avg& Bidweek Prices'!B94 -> 2.18
A58: ='Monthly AVG OIL'!A53 -> 1998-06-30 | B58: ='Monthly AVG OIL'!E53 -> 13.65954545 | C58: ='Monthly AVG OIL'!D53 -> 12.23409091 | D58: ='Gas Monthly Avg& Bidweek Prices'!B95 -> 2.14
A59: ='Monthly AVG OIL'!A54 -> 1998-07-31 | B59: ='Monthly AVG OIL'!E54 -> 14.07954545 | C59: ='Monthly AVG OIL'!D54 -> 12.18772727 | D59: ='Gas Monthly Avg& Bidweek Prices'!B96 -> 2.25
A60: ='Monthly AVG OIL'!A55 -> 1998-08-31 | B60: ='Monthly AVG OIL'!E55 -> 13.36285714 | C60: ='Monthly AVG OIL'!D55 -> 11.97095238 | D60: ='Gas Monthly Avg& Bidweek Prices'!B97 -> 1.9
A61: ='Monthly AVG OIL'!A56 -> 1998-09-30 | B61: ='Monthly AVG OIL'!E56 -> 14.94761905 | C61: ='Monthly AVG OIL'!D56 -> 13.36380952 | D61: ='Gas Monthly Avg& Bidweek Prices'!B98 -> 1.91
A62: ='Monthly AVG OIL'!A57 -> 1998-10-30 | B62: ='Monthly AVG OIL'!E57 -> 14.38772727 | C62: ='Monthly AVG OIL'!D57 -> 12.73090909 | D62: ='Gas Monthly Avg& Bidweek Prices'!B99 -> 1.93
A63: ='Monthly AVG OIL'!A58 -> 1998-11-30 | B63: ='Monthly AVG OIL'!E58 -> 12.8515 | C63: ='Monthly AVG OIL'!D58 -> 11.088 | D63: ='Gas Monthly Avg& Bidweek Prices'!B100 -> 2.06
A64: ='Monthly AVG OIL'!A59 -> 1998-12-31 | B64: ='Monthly AVG OIL'!E59 -> 11.28 | C64: ='Monthly AVG OIL'!D59 -> 9.848181818 | D64: ='Gas Monthly Avg& Bidweek Prices'!B101 -> 1.69
A65: ='Monthly AVG OIL'!A60 -> 1999-01-29 | B65: ='Monthly AVG OIL'!E60 -> 12.47210526 | C65: ='Monthly AVG OIL'!D60 -> 11.06473684 | D65: ='Gas Monthly Avg& Bidweek Prices'!B102 -> 1.87
A66: ='Monthly AVG OIL'!A61 -> 1999-02-26 | B66: ='Monthly AVG OIL'!E61 -> 12.01052632 | C66: ='Monthly AVG OIL'!D61 -> 10.27842105 | D66: ='Gas Monthly Avg& Bidweek Prices'!B103 -> 1.78
A67: ='Monthly AVG OIL'!A62 -> 1999-03-31 | B67: ='Monthly AVG OIL'!E62 -> 14.66086957 | C67: ='Monthly AVG OIL'!D62 -> 12.39434783 | D67: ='Gas Monthly Avg& Bidweek Prices'!B104 -> 1.78
A68: ='Monthly AVG OIL'!A63 -> 1999-04-30 | B68: ='Monthly AVG OIL'!E63 -> 17.34333333 | C68: ='Monthly AVG OIL'!D63 -> 15.24761905 | D68: ='Gas Monthly Avg& Bidweek Prices'!B105 -> 2.07
A69: ='Monthly AVG OIL'!A64 -> 1999-05-28 | B69: ='Monthly AVG OIL'!E64 -> 16.90380952 | C69: ='Monthly AVG OIL'!D64 -> 14.50047619 | D69: ='Gas Monthly Avg& Bidweek Prices'!B106 -> 2.27
A70: ='Monthly AVG OIL'!A65 -> 1999-06-30 | B70: ='Monthly AVG OIL'!E65 -> 17.88909091 | C70: ='Monthly AVG OIL'!D65 -> 15.72272727 | D70: ='Gas Monthly Avg& Bidweek Prices'!B107 -> 2.3
A71: ='Monthly AVG OIL'!A66 -> 1999-07-30 | B71: ='Monthly AVG OIL'!E66 -> 20.07238095 | C71: ='Monthly AVG OIL'!D66 -> 18.97 | D71: ='Gas Monthly Avg& Bidweek Prices'!B108 -> 2.23
A72: ='Monthly AVG OIL'!A67 -> 1999-08-31 | B72: ='Monthly AVG OIL'!E67 -> 21.25727273 | C72: ='Monthly AVG OIL'!D67 -> 20.24863636 | D72: ='Gas Monthly Avg& Bidweek Prices'!B109 -> 2.74
A73: ='Monthly AVG OIL'!A68 -> 1999-09-30 | B73: ='Monthly AVG OIL'!E68 -> 23.88285714 | C73: ='Monthly AVG OIL'!D68 -> 22.48619048 | D73: ='Gas Monthly Avg& Bidweek Prices'!B110 -> 2.63
A74: ='Monthly AVG OIL'!A69 -> 1999-10-29 | B74: ='Monthly AVG OIL'!E69 -> 22.64285714 | C74: ='Monthly AVG OIL'!D69 -> 21.97619048 | D74: ='Gas Monthly Avg& Bidweek Prices'!B111 -> 2.63
A75: ='Monthly AVG OIL'!A70 -> 1999-11-30 | B75: ='Monthly AVG OIL'!E70 -> 24.97190476 | C75: ='Monthly AVG OIL'!D70 -> 24.41857143 | D75: ='Gas Monthly Avg& Bidweek Prices'!B112 -> 2.54
A76: ='Monthly AVG OIL'!A71 -> 1999-12-30 | B76: ='Monthly AVG OIL'!E71 -> 26.08333333 | C76: ='Monthly AVG OIL'!D71 -> 25.43238095 | D76: ='Gas Monthly Avg& Bidweek Prices'!B113 -> 2.35
A77: ='Monthly AVG OIL'!A72 -> 2000-01-31 | B77: ='Monthly AVG OIL'!E72 -> 27.184 | C77: ='Monthly AVG OIL'!D72 -> 25.307 | D77: ='Gas Monthly Avg& Bidweek Prices'!B114 -> 2.37
A78: ='Monthly AVG OIL'!A73 -> 2000-02-29 | B78: ='Monthly AVG OIL'!E73 -> 29.354 | C78: ='Monthly AVG OIL'!D73 -> 27.7535 | D78: ='Gas Monthly Avg& Bidweek Prices'!B115 -> 2.66
A79: ='Monthly AVG OIL'!A74 -> 2000-03-31 | B79: ='Monthly AVG OIL'!E74 -> 29.89217391 | C79: ='Monthly AVG OIL'!D74 -> 27.55956522 | D79: ='Gas Monthly Avg& Bidweek Prices'!B116 -> 2.75
A80: ='Monthly AVG OIL'!A75 -> 2000-04-28 | B80: ='Monthly AVG OIL'!E75 -> 25.73578947 | C80: ='Monthly AVG OIL'!D75 -> 22.80421053 | D80: ='Gas Monthly Avg& Bidweek Prices'!B117 -> 2.99
A81: ='Monthly AVG OIL'!A76 -> 2000-05-31 | B81: ='Monthly AVG OIL'!E76 -> 28.78 | C81: ='Monthly AVG OIL'!D76 -> 27.51636364 | D81: ='Gas Monthly Avg& Bidweek Prices'!B118 -> 3.47
A82: ='Monthly AVG OIL'!A77 -> 2000-06-30 | B82: ='Monthly AVG OIL'!E77 -> 31.82954545 | C82: ='Monthly AVG OIL'!D77 -> 29.60227273 | D82: ='Gas Monthly Avg& Bidweek Prices'!B119 -> 4.3
A83: ='Monthly AVG OIL'!A78 -> 2000-07-31 | B83: ='Monthly AVG OIL'!E78 -> 29.767 | C83: ='Monthly AVG OIL'!D78 -> 28.4825 | D83: ='Gas Monthly Avg& Bidweek Prices'!B120 -> 4.1
A84: ='Monthly AVG OIL'!A79 -> 2000-08-31 | B84: ='Monthly AVG OIL'!E79 -> 31.21869565 | C84: ='Monthly AVG OIL'!D79 -> 29.78782609 | D84: ='Gas Monthly Avg& Bidweek Prices'!B121 -> 4.35
A85: ='Monthly AVG OIL'!A80 -> 2000-09-29 | B85: ='Monthly AVG OIL'!E80 -> 33.884 | C85: ='Monthly AVG OIL'!D80 -> 32.931 | D85: ='Gas Monthly Avg& Bidweek Prices'!B122 -> 5.01
A86: ='Monthly AVG OIL'!A81 -> 2000-10-31 | B86: ='Monthly AVG OIL'!E81 -> 33.075 | C86: ='Monthly AVG OIL'!D81 -> 30.83727273 | D86: ='Gas Monthly Avg& Bidweek Prices'!B123 -> 5.11
A87: ='Monthly AVG OIL'!A82 -> 2000-11-30 | B87: ='Monthly AVG OIL'!E82 -> 34.48 | C87: ='Monthly AVG OIL'!D82 -> 32.4447619 | D87: ='Gas Monthly Avg& Bidweek Prices'!B124 -> 5.52
A88: ='Monthly AVG OIL'!A83 -> 2000-12-29 | B88: ='Monthly AVG OIL'!E83 -> 28.4585 | C88: ='Monthly AVG OIL'!D83 -> 25.5675 | D88: ='Gas Monthly Avg& Bidweek Prices'!B125 -> 8.08
A89: ='Monthly AVG OIL'!A84 -> 2001-01-31 | B89: ='Monthly AVG OIL'!E84 -> 29.58 | C89: ='Monthly AVG OIL'!D84 -> 25.44857143 | D89: ='Gas Monthly Avg& Bidweek Prices'!B126 -> 9.13
A90: ='Monthly AVG OIL'!A85 -> 2001-02-28 | B90: ='Monthly AVG OIL'!E85 -> 29.60736842 | C90: ='Monthly AVG OIL'!D85 -> 27.50631579 | D90: ='Gas Monthly Avg& Bidweek Prices'!B127 -> 5.73 | F90: Do "FILL DOWN" in order to update
A91: ='Monthly AVG OIL'!A86 -> 2001-03-31 | B91: ='Monthly AVG OIL'!E86 -> 27.24136364 | C91: ='Monthly AVG OIL'!D86 -> 24.57090909 | D91: ='Gas Monthly Avg& Bidweek Prices'!B128 -> 5.12
A92: ='Monthly AVG OIL'!A87 -> 2001-04-30 | B92: ='Monthly AVG OIL'!E87 -> 27.3125 | C92: ='Monthly AVG OIL'!D87 -> 25.645 | D92: ='Gas Monthly Avg& Bidweek Prices'!B129 -> 5.23
A93: ='Monthly AVG OIL'!A88 -> 2001-05-31 | B93: ='Monthly AVG OIL'!E88 -> 28.64 | C93: ='Monthly AVG OIL'!D88 -> 28.31636364 | D93: ='Gas Monthly Avg& Bidweek Prices'!B130 -> 4.18
A94: ='Monthly AVG OIL'!A89 -> 2001-06-29 | B94: ='Monthly AVG OIL'!E89 -> 27.60095238 | C94: ='Monthly AVG OIL'!D89 -> 27.75142857 | D94: ='Gas Monthly Avg& Bidweek Prices'!B131 -> 3.78
A95: ='Monthly AVG OIL'!A90 -> 2001-07-31 | B95: ='Monthly AVG OIL'!E90 -> 26.44571429 | C95: ='Monthly AVG OIL'!D90 -> 24.52571429 | D95: ='Gas Monthly Avg& Bidweek Prices'!B132 -> 3.18
A96: ='Monthly AVG OIL'!A91 -> 2001-08-31 | B96: ='Monthly AVG OIL'!E91 -> 27.46782609 | C96: ='Monthly AVG OIL'!D91 -> 25.75347826 | D96: ='Gas Monthly Avg& Bidweek Prices'!B133 -> 3.01
A97: ='Monthly AVG OIL'!A92 -> 2001-09-28 | B97: ='Monthly AVG OIL'!E92 -> 25.88125 | C97: ='Monthly AVG OIL'!D92 -> 25.22375 | D97: ='Gas Monthly Avg& Bidweek Prices'!B134 -> 2.24
A98: ='Monthly AVG OIL'!A93 -> 2001-10-31 | B98: ='Monthly AVG OIL'!E93 -> 22.21043478 | C98: ='Monthly AVG OIL'!D93 -> 20.55695652 | D98: ='Gas Monthly Avg& Bidweek Prices'!B135 -> 2.44
A99: ='Monthly AVG OIL'!A94 -> 2001-11-30 | B99: ='Monthly AVG OIL'!E94 -> 19.6695 | C99: ='Monthly AVG OIL'!D94 -> 18.84714286 | D99: ='Gas Monthly Avg& Bidweek Prices'!B136 -> 2.45
A100: ='Monthly AVG OIL'!A95 -> 2001-12-31 | B100: ='Monthly AVG OIL'!E95 -> 19.33210526 | C100: ='Monthly AVG OIL'!D95 -> 18.67263158 | D100: ='Gas Monthly Avg& Bidweek Prices'!B137 -> 2.33
A101: ='Monthly AVG OIL'!A96 -> 2002-01-31 | B101: ='Monthly AVG OIL'!E96 -> 19.67428571 | C101: ='Monthly AVG OIL'!D96 -> 19.45857143 | D101: ='Gas Monthly Avg& Bidweek Prices'!B138 -> 2.29
A102: ='Monthly AVG OIL'!A97 -> 2002-02-28 | B102: ='Monthly AVG OIL'!E97 -> 20.73578947 | C102: ='Monthly AVG OIL'!D97 -> 20.12157895 | D102: ='Gas Monthly Avg& Bidweek Prices'!B139 -> 2.26
A103: ='Monthly AVG OIL'!A98 -> 2002-03-28 | B103: ='Monthly AVG OIL'!E98 -> 24.417 | C103: ='Monthly AVG OIL'!D98 -> 23.542 | D103: ='Gas Monthly Avg& Bidweek Prices'!B140 -> 2.85
A104: ='Monthly AVG OIL'!A99 -> 2002-04-30 | B104: ='Monthly AVG OIL'!E99 -> 26.26636364 | C104: ='Monthly AVG OIL'!D99 -> 25.66318182 | D104: ='Gas Monthly Avg& Bidweek Prices'!B141 -> 3.44
A105: ='Monthly AVG OIL'!A100 -> 2002-05-31 | B105: ='Monthly AVG OIL'!E100 -> 27.02090909 | C105: ='Monthly AVG OIL'!D100 -> 25.39181818 | D105: ='Gas Monthly Avg& Bidweek Prices'!B142 -> 3.54
A106: ='Monthly AVG OIL'!A101 -> 2002-06-28 | B106: ='Monthly AVG OIL'!E101 -> 25.521 | C106: ='Monthly AVG OIL'!D101 -> 24.033 | D106: ='Gas Monthly Avg& Bidweek Prices'!B143 -> 3.23
A107: ='Monthly AVG OIL'!A102 -> 2002-07-31 | B107: ='Monthly AVG OIL'!E102 -> 26.91863636 | C107: ='Monthly AVG OIL'!D102 -> 25.69136364 | D107: ='Gas Monthly Avg& Bidweek Prices'!B144 -> 3.06
A108: ='Monthly AVG OIL'!A103 -> 2002-08-30 | B108: ='Monthly AVG OIL'!E103 -> 28.38136364 | C108: ='Monthly AVG OIL'!D103 -> 26.555 | D108: ='Gas Monthly Avg& Bidweek Prices'!B145 -> 3.05
A109: ='Monthly AVG OIL'!A104 -> 2002-09-30 | B109: ='Monthly AVG OIL'!E104 -> 29.6655 | C109: ='Monthly AVG OIL'!D104 -> 28.385 | D109: ='Gas Monthly Avg& Bidweek Prices'!B146 -> 3.45
A110: ='Monthly AVG OIL'!A105 -> 2002-10-30 | B110: ='Monthly AVG OIL'!E105 -> 28.85391304 | C110: ='Monthly AVG OIL'!D105 -> 27.4973913 | D110: ='Gas Monthly Avg& Bidweek Prices'!B147 -> 4.06
A111: ='Monthly AVG OIL'!A106 -> 2002-11-27 | B111: ='Monthly AVG OIL'!E106 -> 26.26631579 | C111: ='Monthly AVG OIL'!D106 -> 24.18421053 | D111: ='Gas Monthly Avg& Bidweek Prices'!B148 -> 4.09
A112: ='Monthly AVG OIL'!A107 -> 2002-12-31 | B112: ='Monthly AVG OIL'!E107 -> 29.42333333 | C112: ='Monthly AVG OIL'!D107 -> 28.46809524 | D112: ='Gas Monthly Avg& Bidweek Prices'!B149 -> 4.65
A113: ='Monthly AVG OIL'!A108 -> 2003-01-31 | B113: ='Monthly AVG OIL'!E108 -> 32.94333333 | C113: ='Monthly AVG OIL'!D108 -> 31.28952381 | D113: ='Gas Monthly Avg& Bidweek Prices'!B150 -> 5.3
A114: ='Monthly AVG OIL'!A109 -> 2003-02-28 | B114: ='Monthly AVG OIL'!E109 -> 35.86684211 | C114: ='Monthly AVG OIL'!D109 -> 32.71894737 | D114: ='Gas Monthly Avg& Bidweek Prices'!B151 -> 7.35
A115: ='Monthly AVG OIL'!A110 -> 2003-03-31 | B115: ='Monthly AVG OIL'!E110 -> 33.54761905 | C115: ='Monthly AVG OIL'!D110 -> 30.45857143 | D115: ='Gas Monthly Avg& Bidweek Prices'!B152 -> 8.06
A116: ='Monthly AVG OIL'!A111 -> 2003-04-30 | B116: ='Monthly AVG OIL'!E111 -> 28.25333333 | C116: ='Monthly AVG OIL'!D111 -> 24.88619048 | D116: ='Gas Monthly Avg& Bidweek Prices'!B153 -> 5.27
A117: ='Monthly AVG OIL'!A112 -> 2003-05-30 | B117: ='Monthly AVG OIL'!E112 -> 28.1447619 | C117: ='Monthly AVG OIL'!D112 -> 25.68333333 | D117: ='Gas Monthly Avg& Bidweek Prices'!B154 -> 5.78
A118: ='Monthly AVG OIL'!A113 -> 2003-06-30 | B118: ='Monthly AVG OIL'!E113 -> 30.7247619 | C118: ='Monthly AVG OIL'!D113 -> 27.51809524 | D118: ='Gas Monthly Avg& Bidweek Prices'!B155 -> 5.84
A119: ='Monthly AVG OIL'!A114 -> 2003-07-31 | B119: ='Monthly AVG OIL'!E114 -> 30.76181818 | C119: ='Monthly AVG OIL'!D114 -> 28.38727273 | D119: ='Gas Monthly Avg& Bidweek Prices'!B156 -> 5.04 | E119: ='Gas Monthly Avg& Bidweek Prices'!D156 -> 4.23
A120: ='Monthly AVG OIL'!A115 -> 2003-08-29 | B120: ='Monthly AVG OIL'!E115 -> 31.59190476 | C120: ='Monthly AVG OIL'!D115 -> 29.74857143 | D120: ='Gas Monthly Avg& Bidweek Prices'!B157 -> 5.01 | E120: ='Gas Monthly Avg& Bidweek Prices'!D157 -> 4.42
A121: ='Monthly AVG OIL'!A116 -> 2003-09-30 | B121: ='Monthly AVG OIL'!E116 -> 28.29761905 | C121: ='Monthly AVG OIL'!D116 -> 26.85142857 | D121: ='Gas Monthly Avg& Bidweek Prices'!B158 -> 4.62 | E121: ='Gas Monthly Avg& Bidweek Prices'!D158 -> 4.24
A122: ='Monthly AVG OIL'!A117 -> 2003-10-31 | B122: ='Monthly AVG OIL'!E117 -> 30.33304348 | C122: ='Monthly AVG OIL'!D117 -> 29.51434783 | D122: ='Gas Monthly Avg& Bidweek Prices'!B159 -> 4.63 | E122: ='Gas Monthly Avg& Bidweek Prices'!D159 -> 4.17
A123: ='Monthly AVG OIL'!A118 -> 2003-11-28 | B123: ='Monthly AVG OIL'!E118 -> 31.055 | C123: ='Monthly AVG OIL'!D118 -> 28.75222222 | D123: ='Gas Monthly Avg& Bidweek Prices'!B160 -> 4.46 | E123: ='Gas Monthly Avg& Bidweek Prices'!D160 -> 4.08
A124: ='Monthly AVG OIL'!A119 -> 2003-12-31 | B124: ='Monthly AVG OIL'!E119 -> 32.12333333 | C124: ='Monthly AVG OIL'!D119 -> 29.76047619 | D124: ='Gas Monthly Avg& Bidweek Prices'!B161 -> 6.14 | E124: ='Gas Monthly Avg& Bidweek Prices'!D161 -> 5.1
A125: ='Monthly AVG OIL'!A120 -> 2004-01-29 | B125: ='Monthly AVG OIL'!E120 -> 34.36684211 | C125: ='Monthly AVG OIL'!D120 -> 31.29684211 | D125: ='Gas Monthly Avg& Bidweek Prices'!B162 -> 6.09 | E125: ='Gas Monthly Avg& Bidweek Prices'!D162 -> 5.42
A126: ='Monthly AVG OIL'!A121 -> 2004-02-27 | B126: ='Monthly AVG OIL'!E121 -> 34.6965 | C126: ='Monthly AVG OIL'!D121 -> 30.7185 | D126: ='Gas Monthly Avg& Bidweek Prices'!B163 -> 5.37 | E126: ='Gas Monthly Avg& Bidweek Prices'!D163 -> 4.68
A127: ='Monthly AVG OIL'!A122 -> 2004-03-31 | B127: ='Monthly AVG OIL'!E122 -> 36.73695652 | C127: ='Monthly AVG OIL'!D122 -> 33.84304348 | D127: ='Gas Monthly Avg& Bidweek Prices'!B164 -> 5.36 | E127: ='Gas Monthly Avg& Bidweek Prices'!D164 -> 4.56
A128: ='Monthly AVG OIL'!A123 -> 2004-04-30 | B128: ='Monthly AVG OIL'!E123 -> 36.69952381 | C128: ='Monthly AVG OIL'!D123 -> 33.1652381 | D128: ='Gas Monthly Avg& Bidweek Prices'!B165 -> 5.7 | E128: ='Gas Monthly Avg& Bidweek Prices'!D165 -> 4.98
A129: ='Monthly AVG OIL'!A124 -> 2004-05-28 | B129: ='Monthly AVG OIL'!E124 -> 40.2915 | C129: ='Monthly AVG OIL'!D124 -> 37.759 | D129: ='Gas Monthly Avg& Bidweek Prices'!B166 -> 6.29 | E129: ='Gas Monthly Avg& Bidweek Prices'!D166 -> 5.37
A130: ='Monthly AVG OIL'!A125 -> 2004-06-30 | B130: ='Monthly AVG OIL'!E125 -> 38.05954545 | C130: ='Monthly AVG OIL'!D125 -> 35.235 | D130: ='Gas Monthly Avg& Bidweek Prices'!B167 -> 6.25 | E130: ='Gas Monthly Avg& Bidweek Prices'!D167 -> 5.25
A131: ='Monthly AVG OIL'!A126 -> 2004-07-30 | B131: ='Monthly AVG OIL'!E126 -> 40.79666667 | C131: ='Monthly AVG OIL'!D126 -> 38.23952381 | D131: ='Gas Monthly Avg& Bidweek Prices'!B168 -> 5.94 | E131: ='Gas Monthly Avg& Bidweek Prices'!D168 -> 5.2
A132: ='Monthly AVG OIL'!A127 -> 2004-08-31 | B132: ='Monthly AVG OIL'!E127 -> 44.93727273 | C132: ='Monthly AVG OIL'!D127 -> 43.02772727 | D132: ='Gas Monthly Avg& Bidweek Prices'!B169 -> 5.49 | E132: ='Gas Monthly Avg& Bidweek Prices'!D169 -> 4.78
A133: ='Monthly AVG OIL'!A128 -> 2004-09-30 | B133: ='Monthly AVG OIL'!E128 -> 45.94952381 | C133: ='Monthly AVG OIL'!D128 -> 43.56619048 | D133: ='Gas Monthly Avg& Bidweek Prices'!B170 -> 4.95 | E133: ='Gas Monthly Avg& Bidweek Prices'!D170 -> 4.4
A134: ='Monthly AVG OIL'!A129 -> 2004-10-31 | B134: ='Monthly AVG OIL'!E129 -> 53.13333333 | C134: ='Monthly AVG OIL'!D129 -> 49.7052381 | D134: ='Gas Monthly Avg& Bidweek Prices'!B171 -> 6.22 | E134: ='Gas Monthly Avg& Bidweek Prices'!D171 -> 5.24
A135: ='Monthly AVG OIL'!A130 -> 2004-11-30 | B135: ='Monthly AVG OIL'!E130 -> 48.52333333 | C135: ='Monthly AVG OIL'!D130 -> 43.0752381 | D135: ='Gas Monthly Avg& Bidweek Prices'!B172 -> 5.89 | E135: ='Gas Monthly Avg& Bidweek Prices'!D172 -> 5.3
A136: ='Monthly AVG OIL'!A131 -> 2004-12-30 | B136: ='Monthly AVG OIL'!E132 -> 43.33 | C136: ='Monthly AVG OIL'!D132 -> 39.54 | D136: ='Gas Monthly Avg& Bidweek Prices'!B173 -> 6.64 | E136: ='Gas Monthly Avg& Bidweek Prices'!D173 -> 5.63
A137: ='Monthly AVG OIL'!A133 -> 2005-01-31 | B137: ='Monthly AVG OIL'!E133 -> 46.839 | C137: ='Monthly AVG OIL'!D133 -> 44.154 | D137: ='Gas Monthly Avg& Bidweek Prices'!B174 -> 6.13 | E137: ='Gas Monthly Avg& Bidweek Prices'!D174 -> 5.4
A138: ='Monthly AVG OIL'!A134 -> 2005-02-28 | B138: ='Monthly AVG OIL'!E134 -> 47.97105263 | C138: ='Monthly AVG OIL'!D134 -> 45.35894737 | D138: ='Gas Monthly Avg& Bidweek Prices'!B175 -> 6.11 | E138: ='Gas Monthly Avg& Bidweek Prices'!D175 -> 5.33
A139: ='Monthly AVG OIL'!A135 -> 2005-03-31 | B139: ='Monthly AVG OIL'!E135 -> 54.21818182 | C139: ='Monthly AVG OIL'!D135 -> 52.79863636 | D139: ='Gas Monthly Avg& Bidweek Prices'!B176 -> 6.96 | E139: ='Gas Monthly Avg& Bidweek Prices'!D176 -> 6.13
A140: ='Monthly AVG OIL'!A136 -> 2005-04-29 | B140: ='Monthly AVG OIL'!E136 -> 53.03666667 | C140: ='Monthly AVG OIL'!D136 -> 51.96047619 | D140: ='Gas Monthly Avg& Bidweek Prices'!B177 -> 7.28 | E140: ='Gas Monthly Avg& Bidweek Prices'!D177 -> 6.38
A141: ='Monthly AVG OIL'!A137 -> 2005-05-31 | B141: ='Monthly AVG OIL'!E137 -> 49.83047619 | C141: ='Monthly AVG OIL'!D137 -> 48.66809524 | D141: ='Gas Monthly Avg& Bidweek Prices'!B178 -> 6.48 | E141: ='Gas Monthly Avg& Bidweek Prices'!D178 -> 5.57
A142: ='Monthly AVG OIL'!A138 -> 2005-06-30 | B142: ='Monthly AVG OIL'!E138 -> 56.39681818 | C142: ='Monthly AVG OIL'!D138 -> 54.83909091 | D142: ='Gas Monthly Avg& Bidweek Prices'!B179 -> 7.09 | E142: ='Gas Monthly Avg& Bidweek Prices'!D179 -> 5.84
A143: ='Monthly AVG OIL'!A139 -> 2005-07-29 | B143: ='Monthly AVG OIL'!E139 -> 58.703 | C143: ='Monthly AVG OIL'!D139 -> 57.566 | D143: ='Gas Monthly Avg& Bidweek Prices'!B180 -> 7.56 | E143: ='Gas Monthly Avg& Bidweek Prices'!D180 -> 6.13
A144: ='Monthly AVG OIL'!A140 -> 2005-08-31 | B144: ='Monthly AVG OIL'!E140 -> 64.96826087 | C144: ='Monthly AVG OIL'!D140 -> 64.19782609 | D144: ='Gas Monthly Avg& Bidweek Prices'!B181 -> 9.29 | E144: ='Gas Monthly Avg& Bidweek Prices'!D181 -> 7.73
A145: ='Monthly AVG OIL'!A141 -> 2005-09-30 | B145: ='Monthly AVG OIL'!E141 -> 65.6255 | C145: ='Monthly AVG OIL'!D141 -> 62.92 | D145: ='Gas Monthly Avg& Bidweek Prices'!B182 -> 11.73 | E145: ='Gas Monthly Avg& Bidweek Prices'!D182 -> 9.33
A146: ='Monthly AVG OIL'!A142 -> 2005-10-31 | B146: ='Monthly AVG OIL'!E142 -> 62.37047619 | C146: ='Monthly AVG OIL'!D142 -> 58.82190476 | D146: ='Gas Monthly Avg& Bidweek Prices'!B183 -> 13.36 | E146: ='Gas Monthly Avg& Bidweek Prices'!D183 -> 10.75
A147: ='Monthly AVG OIL'!A143 -> 2005-11-30 | B147: ='Monthly AVG OIL'!E143 -> 58.24095238 | C147: ='Monthly AVG OIL'!D143 -> 55.3347619 | D147: ='Gas Monthly Avg& Bidweek Prices'!B184 -> 10.36 | E147: ='Gas Monthly Avg& Bidweek Prices'!D184 -> 8.02
A148: ='Monthly AVG OIL'!A144 -> 2005-12-30 | B148: ='Monthly AVG OIL'!E144 -> 59.494 | C148: ='Monthly AVG OIL'!D144 -> 56.99 | D148: ='Gas Monthly Avg& Bidweek Prices'!B185 -> 13.08 | E148: ='Gas Monthly Avg& Bidweek Prices'!D185 -> 10.41
A149: ='Monthly AVG OIL'!A145 -> 2006-01-31 | B149: ='Monthly AVG OIL'!E145 -> 65.48952381 | C149: ='Monthly AVG OIL'!D145 -> 63.17714286 | D149: ='Gas Monthly Avg& Bidweek Prices'!B186 -> 8.74 | E149: ='Gas Monthly Avg& Bidweek Prices'!D186 -> 7.53
A150: ='Monthly AVG OIL'!A146 -> 2006-02-28 | B150: ='Monthly AVG OIL'!E146 -> 61.63105263 | C150: ='Monthly AVG OIL'!D146 -> 60.18894737 | D150: ='Gas Monthly Avg& Bidweek Prices'!B187 -> 7.68 | E150: ='Gas Monthly Avg& Bidweek Prices'!D187 -> 6.53
A151: ='Monthly AVG OIL'!A147 -> 2006-03-31 | B151: ='Monthly AVG OIL'!E147 -> 62.89956522 | C151: ='Monthly AVG OIL'!D147 -> 62.11956522 | D151: ='Gas Monthly Avg& Bidweek Prices'!B188 -> 6.82 | E151: ='Gas Monthly Avg& Bidweek Prices'!D188 -> 5.78
A152: ='Monthly AVG OIL'!A148 -> 2006-04-28 | B152: ='Monthly AVG OIL'!E148 -> 69.69157895 | C152: ='Monthly AVG OIL'!D148 -> 70.13052632 | D152: ='Gas Monthly Avg& Bidweek Prices'!B189 -> 7.09 | E152: ='Gas Monthly Avg& Bidweek Prices'!D189 -> 5.78
A153: ='Monthly AVG OIL'!A149 -> 2006-05-31 | B153: ='Monthly AVG OIL'!E149 -> 70.94045455 | C153: ='Monthly AVG OIL'!D149 -> 69.93318182 | D153: ='Gas Monthly Avg& Bidweek Prices'!B190 -> 6.38 | E153: ='Gas Monthly Avg& Bidweek Prices'!D190 -> 5.01
A154: ='Monthly AVG OIL'!A150 -> 2006-06-30 | B154: ='Monthly AVG OIL'!E150 -> 70.95772727 | C154: ='Monthly AVG OIL'!D150 -> 68.55909091 | D154: ='Gas Monthly Avg& Bidweek Prices'!B191 -> 6.3 | E154: ='Gas Monthly Avg& Bidweek Prices'!D191 -> 5.3
A155: ='Monthly AVG OIL'!A151 -> 2006-07-31 | B155: ='Monthly AVG OIL'!E151 -> 74.462 | C155: ='Monthly AVG OIL'!D151 -> 73.771 | D155: ='Gas Monthly Avg& Bidweek Prices'!B192 -> 5.91 | E155: ='Gas Monthly Avg& Bidweek Prices'!D192 -> 5.19
A156: ='Monthly AVG OIL'!A152 -> 2006-08-31 | B156: ='Monthly AVG OIL'!E152 -> 73.04869565 | C156: ='Monthly AVG OIL'!D152 -> 73.23043478 | D156: ='Gas Monthly Avg& Bidweek Prices'!B193 -> 7.26 | E156: ='Gas Monthly Avg& Bidweek Prices'!D193 -> 5.86
A157: ='Monthly AVG OIL'!A153 -> 2006-09-29 | B157: ='Monthly AVG OIL'!E153 -> 63.865 | C157: ='Monthly AVG OIL'!D153 -> 61.6255 | D157: ='Gas Monthly Avg& Bidweek Prices'!B194 -> 4.93 | E157: ='Gas Monthly Avg& Bidweek Prices'!D194 -> 4.3
A158: ='Monthly AVG OIL'!A154 -> 2006-10-31 | B158: ='Monthly AVG OIL'!E154 -> 58.87818182 | C158: ='Monthly AVG OIL'!D154 -> 57.80818182 | D158: ='Gas Monthly Avg& Bidweek Prices'!B195 -> 5.6 | E158: ='Gas Monthly Avg& Bidweek Prices'!D195 -> 5.1
A159: ='Monthly AVG OIL'!A155 -> 2006-11-30 | B159: ='Monthly AVG OIL'!E155 -> 59.41952381 | C159: ='Monthly AVG OIL'!D155 -> 58.71666667 | D159: ='Gas Monthly Avg& Bidweek Prices'!B196 -> 7.31 | E159: ='Gas Monthly Avg& Bidweek Prices'!D196 -> 6.98
A160: ='Monthly AVG OIL'!A156 -> 2006-12-29 | B160: ='Monthly AVG OIL'!E156 -> 62.034 | C160: ='Monthly AVG OIL'!D156 -> 62.47210526 | D160: ='Gas Monthly Avg& Bidweek Prices'!B197 -> 7.15 | E160: ='Gas Monthly Avg& Bidweek Prices'!D197 -> 6.64
A161: ='Monthly AVG OIL'!A157 -> 2007-01-31 | B161: ='Monthly AVG OIL'!E157 -> 54.56571429 | C161: ='Monthly AVG OIL'!D157 -> 53.68 | D161: ='Gas Monthly Avg& Bidweek Prices'!B198 -> 6.34 | E161: ='Gas Monthly Avg& Bidweek Prices'!D198 -> 6.22
A162: ='Monthly AVG OIL'!A158 -> 2007-02-28 | B162: ='Monthly AVG OIL'!E158 -> 59.26210526 | C162: ='Monthly AVG OIL'!D158 -> 57.55578947 | D162: ='Gas Monthly Avg& Bidweek Prices'!B199 -> 8.11 | E162: ='Gas Monthly Avg& Bidweek Prices'!D199 -> 7.23
A163: ='Monthly AVG OIL'!A159 -> 2007-03-30 | B163: ='Monthly AVG OIL'!E159 -> 60.56409091 | C163: ='Monthly AVG OIL'!D159 -> 62.05045455 | D163: ='Gas Monthly Avg& Bidweek Prices'!B200 -> 7.09 | E163: ='Gas Monthly Avg& Bidweek Prices'!D200 -> 6.94
A164: ='Monthly AVG OIL'!A160 -> 2007-04-30 | B164: ='Monthly AVG OIL'!E160 -> 63.959 | C164: ='Monthly AVG OIL'!D160 -> 67.48578947 | D164: ='Gas Monthly Avg& Bidweek Prices'!B201 -> 7.55 | E164: ='Gas Monthly Avg& Bidweek Prices'!D201 -> 6.97
A165: ='Monthly AVG OIL'!A161 -> 2007-05-31 | B165: ='Monthly AVG OIL'!E161 -> 63.46090909 | C165: ='Monthly AVG OIL'!D161 -> 67.21227273 | D165: ='Gas Monthly Avg& Bidweek Prices'!B202 -> 7.64 | E165: ='Gas Monthly Avg& Bidweek Prices'!D202 -> 6.71
A166: ='Monthly AVG OIL'!A162 -> 2007-06-30 | B166: ='Monthly AVG OIL'!E162 -> 67.47857143 | C166: ='Monthly AVG OIL'!D162 -> 71.04571429 | D166: ='Gas Monthly Avg& Bidweek Prices'!B203 -> 7.48 | E166: ='Gas Monthly Avg& Bidweek Prices'!D203 -> 6.13
A167: ='Monthly AVG OIL'!A163 -> 2007-07-31 | B167: ='Monthly AVG OIL'!E163 -> 74.18190476 | C167: ='Monthly AVG OIL'!D163 -> 76.93 | D167: ='Gas Monthly Avg& Bidweek Prices'!B204 -> 6.2 | E167: ='Gas Monthly Avg& Bidweek Prices'!D204 -> 5.19
A168: ='Monthly AVG OIL'!A164 -> 2007-08-31 | B168: ='Monthly AVG OIL'!E164 -> 72.39217391 | C168: ='Monthly AVG OIL'!D164 -> 70.76086957 | D168: ='Gas Monthly Avg& Bidweek Prices'!B205 -> 6.23 | E168: ='Gas Monthly Avg& Bidweek Prices'!D205 -> 4.89
A169: ='Monthly AVG OIL'!A165 -> 2007-09-28 | B169: ='Monthly AVG OIL'!E165 -> 79.92684211 | C169: ='Monthly AVG OIL'!D165 -> 77.17315789 | D169: ='Gas Monthly Avg& Bidweek Prices'!B206 -> 5.97 | E169: ='Gas Monthly Avg& Bidweek Prices'!D206 -> 4.87
A170: ='Monthly AVG OIL'!A166 -> 2007-10-31 | B170: ='Monthly AVG OIL'!E166 -> 85.92782609 | C170: ='Monthly AVG OIL'!D166 -> 82.34 | D170: ='Gas Monthly Avg& Bidweek Prices'!B207 -> 6.68 | E170: ='Gas Monthly Avg& Bidweek Prices'!D207 -> 6.28
A171: ='Monthly AVG OIL'!A167 -> 2007-11-30 | B171: ='Monthly AVG OIL'!E167 -> 94.62380952 | C171: ='Monthly AVG OIL'!D167 -> 92.41428571 | D171: ='Gas Monthly Avg& Bidweek Prices'!B208 -> 7.01 | E171: ='Gas Monthly Avg& Bidweek Prices'!D208 -> 6.16
A172: 2007-12-01 | B172: ='Monthly AVG OIL'!E168 -> 91.36777778 | C172: ='Monthly AVG OIL'!D168 -> 90.92684211 | D172: ='Gas Monthly Avg& Bidweek Prices'!B209 -> 7.1 | E172: ='Gas Monthly Avg& Bidweek Prices'!D209 -> 6.42
A173: ='Monthly AVG OIL'!A169 -> 2008-01-31 | B173: ='Monthly AVG OIL'!E169 -> 92.95285714 | C173: ='Monthly AVG OIL'!D169 -> 92.17809524 | D173: ='Gas Monthly Avg& Bidweek Prices'!B210 -> 7.87 | E173: ='Gas Monthly Avg& Bidweek Prices'!D210 -> 7.54
A174: ='Monthly AVG OIL'!A170 -> 2008-02-29 | B174: ='Monthly AVG OIL'!E170 -> 95.354 | C174: ='Monthly AVG OIL'!D170 -> 94.99 | D174: ='Gas Monthly Avg& Bidweek Prices'!B211 -> 8.37 | E174: ='Gas Monthly Avg& Bidweek Prices'!D211 -> 8.02
A175: ='Monthly AVG OIL'!A171 -> 2008-03-31 | B175: ='Monthly AVG OIL'!E171 -> 105.4635 | C175: ='Monthly AVG OIL'!D171 -> 103.6355 | D175: ='Gas Monthly Avg& Bidweek Prices'!B212 -> 9.39 | E175: ='Gas Monthly Avg& Bidweek Prices'!D212 -> 8.61
A176: ='Monthly AVG OIL'!A172 -> 2008-04-30 | B176: ='Monthly AVG OIL'!E172 -> 112.5663636 | C176: ='Monthly AVG OIL'!D172 -> 109.0713636 | D176: ='Gas Monthly Avg& Bidweek Prices'!B213 -> 10.25 | E176: ='Gas Monthly Avg& Bidweek Prices'!D213 -> 9.36
A177: ='Monthly AVG OIL'!A173 -> 2008-05-30 | B177: ='Monthly AVG OIL'!E173 -> 125.3890476 | C177: ='Monthly AVG OIL'!D173 -> 122.7971429 | D177: ='Gas Monthly Avg& Bidweek Prices'!B214 -> 11.24 | E177: ='Gas Monthly Avg& Bidweek Prices'!D214 -> 9.94
A178: ='Monthly AVG OIL'!A174 -> 2008-06-30 | B178: ='Monthly AVG OIL'!E174 -> 133.9280952 | C178: ='Monthly AVG OIL'!D174 -> 132.322381 | D178: ='Gas Monthly Avg& Bidweek Prices'!B215 -> 12.59 | E178: ='Gas Monthly Avg& Bidweek Prices'!D215 -> 11.08
A179: ='Monthly AVG OIL'!A175 -> 2008-07-31 | B179: ='Monthly AVG OIL'!E175 -> 133.4440909 | C179: ='Monthly AVG OIL'!D175 -> 132.7181818 | D179: ='Gas Monthly Avg& Bidweek Prices'!B216 -> 11.43 | E179: ='Gas Monthly Avg& Bidweek Prices'!D216 -> 9.77
A180: ='Monthly AVG OIL'!A176 -> 2008-08-29 | B180: ='Monthly AVG OIL'!E176 -> 116.6971429 | C180: ='Monthly AVG OIL'!D176 -> 113.2433333 | D180: ='Gas Monthly Avg& Bidweek Prices'!B217 -> 8.29 | E180: ='Gas Monthly Avg& Bidweek Prices'!D217 -> 7.19
A181: ='Monthly AVG OIL'!A177 -> 2008-09-30 | B181: ='Monthly AVG OIL'!E177 -> 103.8957143 | C181: ='Monthly AVG OIL'!D177 -> 97.23428571 | D181: ='Gas Monthly Avg& Bidweek Prices'!B218 -> 7.61 | E181: ='Gas Monthly Avg& Bidweek Prices'!D218 -> 5.89
A182: ='Monthly AVG OIL'!A178 -> 2008-10-31 | B182: ='Monthly AVG OIL'!E178 -> 76.64782609 | C182: ='Monthly AVG OIL'!D178 -> 71.58173913 | D182: ='Gas Monthly Avg& Bidweek Prices'!B219 -> 6.71 | E182: ='Gas Monthly Avg& Bidweek Prices'!D219 -> 6.1
A183: ='Monthly AVG OIL'!A179 -> 2008-11-30 | B183: ='Monthly AVG OIL'!E179 -> 57.44166667 | C183: ='Monthly AVG OIL'!D179 -> 52.45263158 | D183: ='Gas Monthly Avg& Bidweek Prices'!B220 -> 6.62 | E183: ='Gas Monthly Avg& Bidweek Prices'!D220 -> 6.26
A184: ='Monthly AVG OIL'!A180 -> 2008-12-31 | B184: ='Monthly AVG OIL'!E180 -> 41.43428571 | C184: ='Monthly AVG OIL'!D180 -> 39.94636364 | D184: ='Gas Monthly Avg& Bidweek Prices'!B221 -> 5.82 | E184: ='Gas Monthly Avg& Bidweek Prices'!D221 -> 6.12
A185: ='Monthly AVG OIL'!A181 -> 2009-01-31 | B185: ='Monthly AVG OIL'!E181 -> 41.7385 | C185: ='Monthly AVG OIL'!D181 -> 43.4395 | D185: ='Gas Monthly Avg& Bidweek Prices'!B222 -> 5.27 | E185: ='Gas Monthly Avg& Bidweek Prices'!D222 -> 4.9
A186: ='Monthly AVG OIL'!A182 -> 2009-02-27 | B186: ='Monthly AVG OIL'!E182 -> 39.16105263 | C186: ='Monthly AVG OIL'!D182 -> 43.32473684 | D186: ='Gas Monthly Avg& Bidweek Prices'!B223 -> 4.56 | E186: ='Gas Monthly Avg& Bidweek Prices'!D223 -> 4.1
A187: ='Monthly AVG OIL'!A183 -> 2009-03-31 | B187: ='Monthly AVG OIL'!E183 -> 47.98 | C187: ='Monthly AVG OIL'!D183 -> 46.54045455 | D187: ='Gas Monthly Avg& Bidweek Prices'!B224 -> 3.95 | E187: ='Gas Monthly Avg& Bidweek Prices'!D224 -> 3.28
A188: ='Monthly AVG OIL'!A184 -> 2009-04-30 | B188: ='Monthly AVG OIL'!E184 -> 49.7947619 | C188: ='Monthly AVG OIL'!D184 -> 50.18190476 | D188: ='Gas Monthly Avg& Bidweek Prices'!B225 -> 3.52 | E188: ='Gas Monthly Avg& Bidweek Prices'!D225 -> 2.77
A189: ='Monthly AVG OIL'!A185 -> 2009-05-31 | B189: ='Monthly AVG OIL'!E185 -> 59.1615 | C189: ='Monthly AVG OIL'!D185 -> 57.3025 | D189: ='Gas Monthly Avg& Bidweek Prices'!B226 -> 3.76 | E189: ='Gas Monthly Avg& Bidweek Prices'!D226 -> 3
A190: ='Monthly AVG OIL'!A186 -> 2009-06-30 | B190: ='Monthly AVG OIL'!E186 -> 69.675 | C190: ='Monthly AVG OIL'!D186 -> 68.60954545 | D190: ='Gas Monthly Avg& Bidweek Prices'!B227 -> 3.74 | E190: ='Gas Monthly Avg& Bidweek Prices'!D227 -> 2.7
A191: 2009-07-01 | B191: ='Monthly AVG OIL'!E187 -> 64.09409091 | C191: ='Monthly AVG OIL'!D187 -> 64.43545455 | D191: ='Gas Monthly Avg& Bidweek Prices'!B228 -> 3.39 | E191: ='Gas Monthly Avg& Bidweek Prices'!D228 -> 2.54
A192: 2009-08-01 | B192: ='Monthly AVG OIL'!E188 -> 71.0552381 | C192: ='Monthly AVG OIL'!D188 -> 72.50857143 | D192: ='Gas Monthly Avg& Bidweek Prices'!B229 -> 3.14 | E192: ='Gas Monthly Avg& Bidweek Prices'!D229 -> 2.45
A193: 2009-09-01 | B193: ='Monthly AVG OIL'!E189 -> 69.46333333 | C193: ='Monthly AVG OIL'!D189 -> 67.64619048 | D193: ='Gas Monthly Avg& Bidweek Prices'!B230 -> 2.88 | E193: ='Gas Monthly Avg& Bidweek Prices'!D230 -> 2.57
A194: 2009-10-01 | B194: ='Monthly AVG OIL'!E190 -> 75.82363636 | C194: ='Monthly AVG OIL'!D190 -> 72.76954545 | D194: ='Gas Monthly Avg& Bidweek Prices'!B231 -> 3.82 | E194: ='Gas Monthly Avg& Bidweek Prices'!D231 -> 3.92
A195: 2009-11-01 | B195: ='Monthly AVG OIL'!E191 -> 78.08421053 | C195: ='Monthly AVG OIL'!D191 -> 76.662 | D195: ='Gas Monthly Avg& Bidweek Prices'!B232 -> 3.5 | E195: ='Gas Monthly Avg& Bidweek Prices'!D232 -> 3.4
A196: 2009-12-01 | B196: ='Monthly AVG OIL'!E192 -> 74.3035 | C196: ='Monthly AVG OIL'!D192 -> 74.45636364 | D196: ='Gas Monthly Avg& Bidweek Prices'!B233 -> 5.19 | E196: ='Gas Monthly Avg& Bidweek Prices'!D233 -> 4.96
A197: 2010-01-01 | B197: ='Monthly AVG OIL'!E193 -> 78.21777778 | C197: ='Monthly AVG OIL'!D193 -> 76.16736842 | D197: ='Gas Monthly Avg& Bidweek Prices'!B234 -> 5.8 | E197: ='Gas Monthly Avg& Bidweek Prices'!D234 -> 5.11
A198: 2010-02-01 | B198: ='Monthly AVG OIL'!E194 -> 76.42263158 | C198: ='Monthly AVG OIL'!D194 -> 73.75210526 | D198: ='Gas Monthly Avg& Bidweek Prices'!B235 -> 5.34 | E198: ='Gas Monthly Avg& Bidweek Prices'!D235 -> 4.7
A199: 2010-03-01 | B199: ='Monthly AVG OIL'!E195 -> 81.24217391 | C199: ='Monthly AVG OIL'!D195 -> 78.8273913 | D199: ='Gas Monthly Avg& Bidweek Prices'!B236 -> 4.39 | E199: ='Gas Monthly Avg& Bidweek Prices'!D236 -> 3.78
A200: 2010-04-01 | B200: ='Monthly AVG OIL'!E196 -> 84.48 | C200: ='Monthly AVG OIL'!D196 -> 84.81761905 | D200: ='Gas Monthly Avg& Bidweek Prices'!B237 -> 3.99 | E200: ='Gas Monthly Avg& Bidweek Prices'!D237 -> 3.5
A201: 2010-05-01 | B201: ='Monthly AVG OIL'!E197 -> 74.06894737 | C201: ='Monthly AVG OIL'!D197 -> 75.9457 | D201: ='Gas Monthly Avg& Bidweek Prices'!B238 -> 4.14 | E201: ='Gas Monthly Avg& Bidweek Prices'!D238 -> 3.44
A202: 2010-06-01 | B202: ='Monthly AVG OIL'!E198 -> 75.34909091 | C202: ='Monthly AVG OIL'!D198 -> 74.76090909 | D202: ='Gas Monthly Avg& Bidweek Prices'!B239 -> 4.78 | E202: ='Gas Monthly Avg& Bidweek Prices'!D239 -> 3.78
A203: 2010-07-01 | B203: ='Monthly AVG OIL'!E199 -> 76.36952381 | C203: ='Monthly AVG OIL'!D199 -> 75.58 | D203: ='Gas Monthly Avg& Bidweek Prices'!B240 -> 4.61 | E203: ='Gas Monthly Avg& Bidweek Prices'!D240 -> 3.33
A204: 2010-08-01 | B204: ='Monthly AVG OIL'!E200 -> 76.82318182 | C204: ='Monthly AVG OIL'!D200 -> 77.03954545 | D204: ='Gas Monthly Avg& Bidweek Prices'!B241 -> 4.47 | E204: ='Gas Monthly Avg& Bidweek Prices'!D241 -> 3.1
A205: 2010-09-01 | B205: ='Monthly AVG OIL'!E201 -> 75.32 | C205: ='Monthly AVG OIL'!D201 -> 77.84047619 | D205: ='Gas Monthly Avg& Bidweek Prices'!B242 -> 3.85 | E205: ='Gas Monthly Avg& Bidweek Prices'!D242 -> 3.25
... 267 more rows

Sheet DO NOT USE

Sheet California-Input
D1: CALIFORNIA CRUDE OIL PRICES
D2: CHEVRON U.S.A. INC.POSTED PRICES
D3: AVERAGE MONTHLY PRICE - $/BBL
F6: SANTA MARIA
F7: VALLEY 12 API
B8: DATE | F8: $/BBL
C9: Carpinteria - 25 API | D9: Midway - 13 API | E9: Pt. Arguello - 19 API | H9: WTI @ Cushing Spot (Monthly Avg) | I9: Ratio of Midway to WTI Cushing Spot | J9: 12 Rolling Avg of Ratio of Midway to WTI (Cushing)
B10: 1987-01-01 | C10: 12.3 | F10: 10.05
B11: 1987-02-01 | C11: 13.3 | F11: 11.05
B12: 1987-03-01 | C12: 13.3 | F12: 11.05
B13: 1987-04-01 | C13: 14.15 | F13: 11.5
B14: 1987-05-01 | C14: 14.9 | F14: 12.25
B15: 1987-06-01 | C15: 15.4 | F15: 12.75
B16: 1987-07-01 | C16: 15.9 | F16: 13.65
B17: 1987-08-01 | C17: 16.03 | F17: 13.78
B18: 1987-09-01 | C18: 15.15 | F18: 12.25
B19: 1987-10-01 | C19: 14.7 | F19: 11.55
B20: 1987-11-01 | C20: 13.7 | F20: 10.55
B21: 1987-12-01 | C21: 12.7 | F21: 9.55
B22: 1988-01-01 | C22: 11.65 | F22: 7.9
B23: 1988-02-01 | C23: 11.15 | F23: 7.65
B24: 1988-03-01 | C24: 11.85 | F24: 8.1
B25: 1988-04-01 | C25: 12.85 | F25: 8.88
B26: 1988-05-01 | C26: 12.95 | F26: 9.15
B27: 1988-06-01 | C27: 12.95 | F27: 9.15
B28: 1988-07-01 | C28: 11.25 | F28: 8.4
B29: 1988-08-01 | C29: 11.65 | F29: 8.4
B30: 1988-09-01 | C30: 11.25 | F30: 8.7
B31: 1988-10-01 | C31: 9.45 | F31: 6.45
B32: 1988-11-01 | C32: 9.45 | F32: 6.45
B33: 1988-12-01 | C33: 10.98 | F33: 7.13
B34: 1989-01-01 | C34: 12.7 | F34: 8.1
B35: 1989-02-01 | C35: 13.45 | F35: 8.85
B36: 1989-03-01 | C36: 13.95 | F36: 9.6
B37: 1989-04-01 | C37: 16.35 | F37: 11.83
B38: 1989-05-01 | C38: 16.2 | F38: 12.35
B39: 1989-06-01 | C39: 15.3 | F39: 11.9
B40: 1989-07-01 | C40: 14.55 | F40: 11.45
B41: 1989-08-01 | C41: 13.55 | D41: 12.75 | F41: 11
B42: 1989-09-01 | C42: 14.05 | D42: 12.83 | F42: 11.5
B43: 1989-10-01 | C43: 14.8 | D43: 13.17 | F43: 11.65
B44: 1989-11-01 | C44: 15.05 | D44: 13.5 | F44: 11.9
B45: 1989-12-01 | C45: 16.3 | D45: 14 | F45: 12.6
B46: 1990-01-01 | C46: 17.55 | D46: 15.5 | F46: 14.22
B47: 1990-02-01 | C47: 17.08 | D47: 16.25 | F47: 15
B48: 1990-03-01 | C48: 15.85 | D48: 14.96 | F48: 13.72
B49: 1990-04-01 | C49: 12.95 | D49: 11.96 | F49: 10.54
B50: 1990-05-01 | C50: 12.18 | D50: 10.38 | F50: 9.25
B51: 1990-06-01 | C51: 10.4 | D51: 9.83 | F51: 8.8
B52: 1990-07-01 | C52: 11.76 | D52: 9.7 | F52: 8.63
B53: 1990-08-01 | C53: 20.1 | D53: 20.42 | F53: 16.3
B54: 1990-09-01 | C54: 28.06 | D54: 23.9 | F54: 23.51
B55: 1990-10-01 | C55: 26.58 | D55: 24.3 | F55: 22.28
B56: 1990-11-01 | C56: 24.6 | D56: 22.5 | F56: 20.8
B57: 1990-12-01 | C57: 21.55 | D57: 19 | F57: 16.75
B58: 1991-01-01 | C58: 19.44 | D58: 17 | F58: 16.04
B59: 1991-02-01 | C59: 13.6 | D59: 11.5 | F59: 9.8
B60: 1991-03-01 | C60: 13.1 | D60: 10.5 | F60: 9.3
B61: 1991-04-01 | C61: 14.1 | D61: 11.5 | F61: 10.3
B62: 1991-05-01 | C62: 14.6 | D62: 12 | F62: 10.8
B63: 1991-06-01 | C63: 14.23 | D63: 12 | E63: 7.75 | F63: 10.85
B64: 1991-07-01 | C64: 14.27 | D64: 12.17 | E64: 8.17 | F64: 11.05
B65: 1991-08-01 | C65: 14.4 | D65: 12 | E65: 8 | F65: 10.85
B66: 1991-09-01 | C66: 14.4 | D66: 12 | E66: 8 | F66: 10.85
B67: 1991-10-01 | C67: 14.88 | D67: 12.33 | E67: 8.17 | F67: 11.17
B68: 1991-11-01 | C68: 14.7 | D68: 12.5 | E68: 7.88 | F68: 11.34
B69: 1991-12-01 | C69: 12.93 | D69: 11.5 | E69: 7.2 | F69: 10.46
B70: 1992-01-01 | C70: 11.4 | D70: 10.25 | E70: 6.38 | F70: 9.25
B71: 1992-02-01 | C71: 11.32 | D71: 10.17 | E71: 6.33 | F71: 9.17
B72: 1992-03-01 | C72: 11.4 | D72: 10.25 | E72: 6.5 | F72: 9.25
B73: 1992-04-01 | C73: 12.4 | D73: 11.25 | E73: 7.5 | F73: 10.25
B74: 1992-05-01 | C74: 14.65 | D74: 13.5 | E74: 9.75 | F74: 12.5
B75: 1992-06-01 | C75: 16.9 | D75: 15.75 | E75: 12 | F75: 14.75
B76: 1992-07-01 | C76: 17.15 | D76: 16 | E76: 12.25 | F76: 15
B77: 1992-08-01 | C77: 16.15 | D77: 15 | E77: 11.25 | F77: 14
B78: 1992-09-01 | C78: 15.4 | D78: 14.25 | E78: 10.5 | F78: 13.25
B79: 1992-10-01 | C79: 15.36 | D79: 13.88 | E79: 10.13 | F79: 12.84
B80: 1992-11-01 | C80: 14.37 | D80: 12.92 | E80: 9.17 | F80: 11.88
B81: 1992-12-01 | C81: 13.4 | D81: 12.25 | E81: 8.5 | F81: 11.25
B82: 1993-01-01 | C82: 12.65 | D82: 11.5 | E82: 7.75 | F82: 10.5
B83: 1993-02-01 | C83: 13.15 | D83: 12 | E83: 8.25 | F83: 11
B84: 1993-03-01 | C84: 13.97 | D84: 12.67 | E84: 8.92 | F84: 11.65
B85: 1993-04-01 | C85: 14.81 | D85: 13.06 | E85: 9.13 | F85: 11.98
B86: 1993-05-01 | C86: 15.3 | D86: 13.5 | E86: 9.5 | F86: 12.4
B87: 1993-06-01 | C87: 14.34 | D87: 12.81 | E87: 8.81 | F87: 11.75
B88: 1993-07-01 | C88: 12.7 | D88: 11.35 | E88: 7.43 | F88: 10.3
B89: 1993-08-01 | C89: 12.35 | D89: 11 | E89: 7.4 | F89: 9.95
B90: 1993-09-01 | C90: 12.2 | D90: 10.85 | E90: 7.35 | F90: 9.8
B91: 1993-10-01 | C91: 12.35 | D91: 11 | E91: 7.78 | F91: 9.95
B92: 1993-11-01 | C92: 11.11 | D92: 9.88 | E92: 6.9 | F92: 8.84
B93: 1993-12-01 | C93: 9.15 | D93: 8.42 | E93: 5.65 | F93: 7.42
B94: 1994-01-01 | C94: 9.15 | D94: 8.42 | E94: 5.65 | F94: 7.42
B95: 1994-02-01 | C95: 10.15 | D95: 9.25 | E95: 6.4 | F95: 8.25
B96: 1994-03-01 | C96: 10.3 | D96: 9.5 | E96: 6.65 | F96: NR
B97: 1994-04-01 | C97: 11.61 | D97: 10.5 | E97: 7.76 | F97: NR
B98: 1994-05-01 | C98: 13.17 | D98: 11.75 | E98: 8.97 | F98: NR
B99: 1994-06-01 | C99: 13.72 | D99: 12.67 | E99: 9.55 | F99: NR
B100: 1994-07-01 | C100: 13.78 | D100: 13.08 | E100: 9.88 | F100: NR
B101: 1994-08-01 | C101: 13.95 | D101: 13.25 | E101: 10.05 | F101: NR
B102: 1994-09-01 | C102: 13.53 | D102: 13 | E102: 9.63 | F102: NR
B103: 1994-10-01 | C103: 13.45 | D103: 13 | E103: 9.55 | F103: NR
B104: 1994-11-01 | C104: 13.45 | D104: 13 | E104: 9.55 | F104: NR
B105: 1994-12-01 | C105: 13.2 | D105: 12.75 | E105: 9.3 | F105: NR
B106: 1995-01-01 | C106: 13.2 | D106: 12.75 | E106: 9.3 | F106: NR | H106: ='Monthly AVG OIL'!E12 -> 17.97 | I106: =D106/H106 -> 0.7095158598
B107: 1995-02-01 | C107: 13.7 | D107: 13.25 | E107: 9.8 | F107: NR | H107: ='Monthly AVG OIL'!E13 -> 18.6 | I107: =D107/H107 -> 0.7123655914
B108: 1995-03-01 | C108: 14.2 | D108: 13.75 | E108: 10.3 | F108: NR | H108: ='Monthly AVG OIL'!E14 -> 18.51 | I108: 0.7428417072
B109: 1995-04-01 | C109: 14.95 | D109: 14.5 | E109: 11.05 | F109: NR | H109: ='Monthly AVG OIL'!E15 -> 19.82 | I109: 0.7315842583
B110: 1995-05-01 | C110: 15.2 | D110: 14.75 | E110: 11.3 | F110: NR | H110: ='Monthly AVG OIL'!E16 -> 19.68 | I110: 0.7494918699
B111: 1995-06-01 | C111: 14.81 | D111: 14.56 | E111: 11.11 | F111: NR | H111: ='Monthly AVG OIL'!E17 -> 18.45 | I111: 0.7891598916
B112: 1995-07-01 | C112: 13.88 | D112: 13.83 | E112: 10.38 | F112: NR | H112: ='Monthly AVG OIL'!E18 -> 17.25 | I112: 0.8017391304
B113: 1995-08-01 | C113: 13.8 | D113: 13.75 | E113: 10.3 | F113: NR | H113: ='Monthly AVG OIL'!E19 -> 17.82 | I113: 0.7716049383
B114: 1995-09-01 | C114: 13.78 | D114: 13.63 | E114: 9.93 | F114: NR | H114: ='Monthly AVG OIL'!E20 -> 18.17 | I114: 0.7501375894
B115: 1995-10-01 | C115: 13.35 | D115: 13 | E115: 9.35 | F115: NR | H115: ='Monthly AVG OIL'!E21 -> 17.39 | I115: 0.7475560667
B116: 1995-11-01 | C116: 13.2 | D116: 12.5 | E116: 9.1 | F116: NR | H116: ='Monthly AVG OIL'!E22 -> 18.02 | I116: 0.6936736959
B117: 1995-12-01 | C117: 13.67 | D117: 12.75 | E117: 9.53 | F117: NR | H117: ='Monthly AVG OIL'!E23 -> 19.07 | I117: 0.6685894074
B118: 1996-01-01 | C118: 14.57 | D118: 13.85 | E118: 10.5 | F118: NR | H118: ='Monthly AVG OIL'!E24 -> 18.8 | I118: 0.7367021277
B119: 1996-02-01 | C119: 14.95 | D119: 14.5 | E119: 11 | F119: NR | H119: ='Monthly AVG OIL'!E25 -> 18.7 | I119: 0.7754010695
B120: 1996-03-01 | C120: 16.95 | D120: 16.5 | E120: 13 | F120: NR | H120: ='Monthly AVG OIL'!E26 -> 21.09 | I120: 0.7823613087
B121: 1996-04-01 | C121: 18.98 | D121: 17.75 | E121: 14.53 | F121: NR | H121: ='Monthly AVG OIL'!E27 -> 23.29 | I121: 0.7621296694
B122: 1996-05-01 | C122: 16.85 | D122: 15 | E122: 12.25 | F122: NR | H122: ='Monthly AVG OIL'!E28 -> 21.09 | I122: 0.7112375533
B123: 1996-06-01 | C123: 16.16 | D123: 14.31 | E123: 11.56 | F123: NR | H123: ='Monthly AVG OIL'!E29 -> 20.37 | I123: 0.7025036819
B124: 1996-07-01 | C124: 16.65 | D124: 14.5 | E124: 11.92 | F124: NR | H124: ='Monthly AVG OIL'!E30 -> 21.2 | I124: 0.6839622642
B125: 1996-08-01 | C125: 16.8 | D125: 14.5 | E125: 12 | F125: NR | H125: ='Monthly AVG OIL'!E31 -> 21.91 | I125: 0.6617982656
B126: 1996-09-01 | C126: 17.8 | D126: 15.5 | E126: 13 | F126: NR | H126: ='Monthly AVG OIL'!E32 -> 23.88 | I126: 0.649078727
B127: 1996-10-01 | C127: 18.98 | D127: 16.88 | E127: 14.38 | F127: NR | H127: ='Monthly AVG OIL'!E33 -> 24.93 | I127: 0.6770958684
B128: 1996-11-01 | C128: 18.43 | D128: 16.67 | E128: 14.17 | F128: NR | H128: ='Monthly AVG OIL'!E34 -> 23.59 | I128: 0.7066553624
B129: 1996-12-01 | C129: 19.62 | D129: 17.92 | E129: 15.42 | F129: NR | H129: ='Monthly AVG OIL'!E35 -> 25.07 | I129: 0.714798564
B130: 1997-01-01 | C130: 20.49 | D130: 18.55 | E130: 16.05 | F130: NR | H130: ='Monthly AVG OIL'!E36 -> 25.23 | I130: 0.7352358304
B131: 1997-02-01 | C131: 18.41 | D131: 16.25 | E131: 13.75 | F131: NR | H131: ='Monthly AVG OIL'!E37 -> 22.29 | I131: 0.7290264693
B132: 1997-03-01 | C132: 16.97 | D132: 15 | E132: 12.5 | F132: NR | H132: ='Monthly AVG OIL'!E38 -> 20.98 | I132: 0.7149666349
B133: 1997-04-01 | C133: 16.01 | D133: 14.44 | E133: 11.63 | F133: NR | H133: ='Monthly AVG OIL'!E39 -> 19.7 | I133: 0.7329949239
B134: 1997-05-01 | C134: 15.82 | D134: 15.05 | E134: 11.55 | F134: NR | H134: ='Monthly AVG OIL'!E40 -> 20.92 | I134: 0.7194072658
B135: 1997-06-01 | C135: 14.85 | D135: 14 | E135: 10.5 | F135: NR | H135: ='Monthly AVG OIL'!E41 -> 19.19 | I135: 0.7295466389
B136: 1997-07-01 | C136: 14.36 | D136: 13.56 | E136: 10.06 | F136: NR | H136: ='Monthly AVG OIL'!E42 -> 19.62 | I136: 0.6911314985
B137: 1997-08-01 | C137: 15.08 | D137: 14.5 | E137: 11 | F137: NR | H137: ='Monthly AVG OIL'!E43 -> 19.91 | I137: 0.7282772476
B138: 1997-09-01 | C138: 15.53 | D138: 15.08 | E138: 11.58 | F138: NR | H138: ='Monthly AVG OIL'!E44 -> 19.78 | I138: 0.7623862487
B139: 1997-10-01 | C139: 16.62 | D139: 16.17 | E139: 12.67 | F139: NR | H139: ='Monthly AVG OIL'!E45 -> 21.36 | I139: 0.7570224719
B140: 1997-11-01 | C140: 15.2 | D140: 14.75 | E140: 11.25 | F140: NR | H140: ='Monthly AVG OIL'!E46 -> 20.19 | I140: 0.730559683
B141: 1997-12-01 | C141: 13.45 | D141: 12.83 | E141: 9.5 | F141: NR | H141: ='Monthly AVG OIL'!E47 -> 18.34 | I141: 0.699563795
B142: 1998-01-01 | C142: 11.66 | D142: 10.61 | E142: 8.04 | F142: NR | H142: ='Monthly AVG OIL'!E48 -> 16.7135 | I142: 0.6348161666
B143: 1998-02-01 | C143: 10.74 | D143: 9.45 | E143: 7.4 | F143: NR | H143: ='Monthly AVG OIL'!E49 -> 16.06263158 | I143: 0.5883220289
B144: 1998-03-01 | C144: 9.49 | D144: 7.97 | E144: 5.99 | F144: NR | H144: ='Monthly AVG OIL'!E50 -> 15.02045455 | I144: 0.5306097745
B145: 1998-04-01 | C145: 9.65 | D145: 8.33 | E145: 6.2 | F145: NR | H145: ='Monthly AVG OIL'!E51 -> 15.44363636 | I145: 0.5393807393
B146: 1998-05-01 | C146: 9.35 | D146: 8.2 | E146: 6 | F146: NR | H146: ='Monthly AVG OIL'!E52 -> 14.84714286 | I146: 0.5522948138
B147: 1998-06-01 | C147: 8.73 | D147: 7.58 | E147: 5.38 | F147: NR | H147: ='Monthly AVG OIL'!E53 -> 13.65954545 | I147: 0.5549232971
B148: 1998-07-01 | C148: 9.65 | D148: 8.5 | E148: 6.3 | F148: NR | H148: ='Monthly AVG OIL'!E54 -> 14.07954545 | I148: 0.6037126715
B149: 1998-08-01 | C149: 9.65 | D149: 8.5 | E149: 6.3 | H149: ='Monthly AVG OIL'!E55 -> 13.36285714 | I149: 0.6360915117
B150: 1998-09-01 | C150: 10.6 | D150: 9.5 | E150: 7.25 | H150: ='Monthly AVG OIL'!E56 -> 14.94761905 | I150: 0.6355527238
B151: 1998-10-01 | C151: NR | D151: 9.94 | E151: 7.49 | H151: ='Monthly AVG OIL'!E57 -> 14.38772727 | I151: 0.6908665845
B152: 1998-11-01 | C152: NR | D152: 7.79 | E152: 5.34 | H152: ='Monthly AVG OIL'!E58 -> 12.8515 | I152: 0.6061549235
B153: 1998-12-01 | C153: NR | D153: 6.69 | E153: 4.24 | H153: ='Monthly AVG OIL'!E59 -> 11.28 | I153: 0.5930851064
B154: 1999-01-01 | C154: NR | D154: 7.17 | E154: 4.75 | H154: ='Monthly AVG OIL'!E60 -> 12.47210526 | I154: 0.5748828966
B155: 1999-02-01 | C155: NR | D155: 7.25 | E155: 4.9 | H155: ='Monthly AVG OIL'!E61 -> 12.01052632 | I155: 0.6036371604
B156: 1999-03-01 | C156: NR | D156: 8.71 | E156: 6.5 | H156: ='Monthly AVG OIL'!E62 -> 14.66086957 | I156: 0.5940984579
B157: 1999-04-01 | C157: NR | D157: 11 | E157: 9.1 | H157: ='Monthly AVG OIL'!E63 -> 17.34333333 | I157: 0.6342494715
B158: 1999-05-01 | C158: NR | D158: 11.75 | E158: 9.85 | H158: ='Monthly AVG OIL'!E64 -> 16.90380952 | I158: 0.6951095836
B159: 1999-06-01 | C159: NR | D159: 11.31 | E159: 9.41 | H159: ='Monthly AVG OIL'!E65 -> 17.88909091 | I159: 0.632228885
B160: 1999-07-01 | C160: NR | D160: 13.39 | E160: 11.49 | H160: ='Monthly AVG OIL'!E66 -> 20.07238095 | I160: 0.6670857848
B161: 1999-08-01 | C161: NR | D161: 15.06 | E161: 13.24 | H161: ='Monthly AVG OIL'!E67 -> 21.25727273 | I161: 0.7084634136
B162: 1999-09-01 | C162: NR | D162: 17.46 | E162: 15.66 | H162: ='Monthly AVG OIL'!E68 -> 23.88285714 | I162: 0.7310683096
B163: 1999-10-01 | C163: NR | D163: 17.66 | E163: 15.78 | H163: ='Monthly AVG OIL'!E69 -> 22.64285714 | I163: 0.7799369085
B164: 1999-11-01 | C164: NR | D164: 18.86 | E164: 16.96 | H164: ='Monthly AVG OIL'!E70 -> 24.97190476 | I164: 0.7552487557
B165: 1999-12-01 | C165: NR | D165: 20.06 | E165: 18.16 | H165: ='Monthly AVG OIL'!E71 -> 26.08333333 | I165: 0.7690734824
B166: 2000-01-01 | D166: 20.28 | E166: 18.38 | H166: ='Monthly AVG OIL'!E72 -> 27.184 | I166: 0.7460270747
B167: 2000-02-01 | D167: 22.85 | E167: 20.95 | H167: ='Monthly AVG OIL'!E73 -> 29.354 | I167: 0.7784288342
B168: 2000-03-01 | D168: 23.7 | E168: 21.8 | H168: ='Monthly AVG OIL'!E74 -> 29.89217391 | I168: 0.7928496626
B169: 2000-04-01 | D169: 19.57 | E169: 17.6 | H169: ='Monthly AVG OIL'!E75 -> 25.73578947 | I169: 0.7604196491
B170: 2000-05-01 | D170: 22.32 | E170: 20.32 | H170: ='Monthly AVG OIL'!E76 -> 28.78 | I170: 0.7755385685
B171: 2000-06-01 | D171: 25.22 | E171: 23.22 | H171: ='Monthly AVG OIL'!E77 -> 31.82954545 | I171: =D171/H171 -> 0.7923455909
B172: 2000-07-01 | D172: 24.38 | E172: 22.38 | H172: ='Monthly AVG OIL'!E78 -> 29.767 | I172: 0.8190277824
B173: 2000-08-01 | D173: 25.48 | E173: 23.48 | H173: ='Monthly AVG OIL'!E79 -> 31.21869565 | I173: 0.816177597
B174: 2000-09-01 | D174: 28.37 | E174: 26.37 | H174: ='Monthly AVG OIL'!E80 -> 33.884 | I174: 0.8372683272
B175: 2000-10-01 | D175: 26.33 | E175: 24.33 | H175: ='Monthly AVG OIL'!E81 -> 33.075 | I175: 0.7960695389
B176: 2000-11-01 | D176: 26.81 | E176: 24.81 | H176: ='Monthly AVG OIL'!E82 -> 34.48 | I176: 0.7775522042
B177: 2000-12-01 | D177: 19.45 | E177: 17.45 | H177: ='Monthly AVG OIL'!E83 -> 28.4585 | I177: 0.6834513414
B178: 2001-01-01 | D178: 19 | E178: 16.94 | H178: ='Monthly AVG OIL'!E84 -> 29.58 | I178: 0.6423258959
B179: 2001-02-01 | D179: 21.17 | E179: 18.73 | H179: ='Monthly AVG OIL'!E85 -> 29.60736842 | I179: 0.7150247094
B180: 2001-03-01 | D180: 20.56 | E180: 17.56 | H180: ='Monthly AVG OIL'!E86 -> 27.24136364 | I180: 0.7547346115
B181: 2001-04-01 | D181: 21.03 | E181: 17.68 | H181: ='Monthly AVG OIL'!E87 -> 27.3125 | I181: 0.7699771167
B182: 2001-05-01 | D182: 21.8 | E182: 18.45 | H182: ='Monthly AVG OIL'!E88 -> 28.64 | I182: 0.7611731844
B183: 2001-06-01 | D183: 21.11 | E183: 17.76 | H183: ='Monthly AVG OIL'!E89 -> 27.60095238 | I183: 0.7648286809
B184: 2001-07-01 | D184: 19.9 | E184: 16.55 | H184: ='Monthly AVG OIL'!E90 -> 26.44571429 | I184: 0.7524848747
B185: 2001-08-01 | D185: 19.42 | E185: 16.07 | H185: ='Monthly AVG OIL'!E91 -> 27.46782609 | I185: 0.7070089908
B186: 2001-09-01 | D186: 18.81 | E186: 15.46 | H186: ='Monthly AVG OIL'!E92 -> 25.88125 | I186: 0.7267809708
B187: 2001-10-01 | D187: 15.04 | E187: 11.69 | H187: ='Monthly AVG OIL'!E93 -> 22.21043478 | I187: 0.6771591888
B188: 2001-11-01 | D188: 13 | E188: 9.65 | H188: ='Monthly AVG OIL'!E94 -> 19.6695 | I188: 0.6609217316
B189: 2001-12-01 | D189: 12.5 | E189: 9.15 | H189: ='Monthly AVG OIL'!E95 -> 19.33210526 | I189: 0.6465927963
B190: 2002-01-01 | D190: 13.17 | E190: 9.82 | H190: ='Monthly AVG OIL'!E96 -> 19.67428571 | I190: 0.6694016846
B191: 2002-02-01 | D191: 14.79 | E191: 11.44 | H191: ='Monthly AVG OIL'!E97 -> 20.73578947 | I191: 0.7132595563
B192: 2002-03-01 | D192: 18.39 | E192: 15.04 | H192: ='Monthly AVG OIL'!E98 -> 24.417 | I192: 0.7531637793
B193: 2002-04-01 | D193: 21.13 | E193: 17.78 | H193: ='Monthly AVG OIL'!E99 -> 26.26636364 | I193: 0.8044509051
B194: 2002-05-01 | D194: 22.21 | E194: 18.86 | H194: ='Monthly AVG OIL'!E100 -> 27.02090909 | I194: 0.821956061
B195: 2002-06-01 | D195: 20.4 | E195: 17.05 | H195: ='Monthly AVG OIL'!E101 -> 25.521 | I195: 0.7993417186
B196: 2002-07-01 | D196: 22.15 | E196: 18.8 | H196: ='Monthly AVG OIL'!E102 -> 26.91863636 | I196: 0.8228500025
B197: 2002-08-01 | D197: 23.83 | E197: 20.48 | H197: ='Monthly AVG OIL'!E103 -> 28.38136364 | I197: 0.8396354842
B198: 2002-09-01 | D198: 24.52 | E198: 21.17 | H198: ='Monthly AVG OIL'!E104 -> 29.6655 | I198: 0.8265493587
B199: 2002-10-01 | D199: 23.25 | E199: 19.9 | H199: ='Monthly AVG OIL'!E105 -> 28.85391304 | I199: 0.805783256
B200: 2002-11-01 | D200: 20.06 | E200: 16.71 | H200: ='Monthly AVG OIL'!E106 -> 26.26631579 | I200: 0.7637157857
B201: 2002-12-01 | D201: 23.44 | E201: 20.09 | H201: ='Monthly AVG OIL'!E107 -> 29.42333333 | I201: 0.7966466523
B202: 2003-01-01 | D202: 27.13 | E202: 23.78 | H202: ='Monthly AVG OIL'!E108 -> 32.94333333 | I202: 0.8235353638
... 263 more rows

Sheet OLD PLOTS

Sheet Sheet6
